{"text_format":"1","workbook":"xlsx","n_sheets":19,"sheets":["Data","GUIDE","FORM","Sheet1","INDEX","OBA4401","OBM4406","OBM4408","OBM4401","OBM4419","OBM4407","OBM4404","OBM4403","OBA4408","OBM4405","OBA4403","OBM4420","OBM4402","OBM4427"],"not_rendered":{"charts":0,"images":5,"macros":1,"external_links":1,"defined_names":19,"comments":0,"pivot_tables":0},"unopened":[],"bounds":{"document_bytes":16777216,"sheet_cells":100000,"rows_first":2000,"rows_last":500,"rows_between":2000,"halvings":0,"cell_chars":16384,"cell_head_chars":4096},"cells_cut":0,"cells_raw":0,"read":"whole","date_system":"1900"}

{"sheet":"Data","index":0,"n_rows":29,"n_cols":5,"rows_kept":29,"cut":false,"hidden":true,"merged":[]}
["Tick","Semester","Year","Skills"]
["√",1,1,"Knowledge and understanding   ","Cognitive skills  "]
[null,2,2,"Cognitive skills  ","Interpersonal skills"]
[null,3,3,"Practical skills","Communication skills"]
[null,null,4,"Interpersonal skills","Digital skills  "]
[null,null,5,"Communication skills","Numeracy skills  "]
[null,null,6,"Digital skills  ","Leadership, autonomy and responsibility  "]
[null,null,null,"Numeracy skills  ","Personal skills  "]
[null,null,null,"Leadership, autonomy and responsibility  ","Entrepreneurial skills  "]
[null,null,null,"Personal skills  ","Ethics and professionalism. "]
[null,null,null,"Entrepreneurial skills  "]
[null,null,null,"Ethics and professionalism. "]
[]
[]
[]
[]
[]
[]
[null,null,1,"Knowledge and understanding   "]
[null,null,2,"Cognitive skills  "]
[null,null,3,"Practical skills"]
[null,null,4,"Interpersonal skills"]
[null,null,5,"Communication skills"]
[null,null,6,"Digital skills  "]
[null,null,7,"Numeracy skills  "]
[null,null,8,"Leadership, autonomy and responsibility  "]
[null,null,9,"Personal skills  "]
[null,null,10,"Entrepreneurial skills  "]
[null,null,11,"Ethics and professionalism. "]

{"sheet":"GUIDE","index":1,"n_rows":28,"n_cols":6,"rows_kept":28,"cut":false,"hidden":false,"merged":[[32,8,32,9],[33,8,33,9],[34,8,34,9],[3,8,3,9],[4,8,4,9],[5,8,5,9],[23,8,23,9],[29,8,29,9],[30,8,30,9],[7,2,8,18]]}
[]
[]
[null,null,null,null,null,"Summary of Course Information Template "]
[null,null,null,null,null,"(Table4 v2.0 June 2020)"]
[]
[]
[]
[null,null,"Please follow the instructions below in sequential order to provide the information on the courses in the programme. Following are the sequential instructions to fill in course information of the programme:-"]
[]
[]
[null,null,"1-","To create a new course information, click 'FORM' worksheet."]
[]
[null,null,"2-","Fill in the required information for the course. Course code is a mandatory field and it is unique. "]
[null,null,null,"Data for cells in dark green color will be generated automatically."]
[]
[null,null,"3-","Once completed, click 'Copy Sheet' button that available on the top right corner of the form."]
[null,null,null,"(A new worksheet will be replicated with a default name which is the course code)"]
[]
[null,null,"4-","To provide information for the following course, return to the 'FORM' worksheet."]
[null,null,null,"You can create a new couse by filling all new information by repeating steps 1 to 3 OR just edit the relevant fields and repeat step 3. "]
[null,null,null,"Click ‘Clear Form’ to fill in new information."]
[]
[null,null,"5-","Once all courses have been created, click 'Update  Index' button on the top right corner of the FORM worksheet."]
[]
[null,null,"6-","Go to 'INDEX' worksheet to see the summary index for all the courses of the programme."]
[null,null,null,"(All courses/ worksheet names will be populated together with % SLT for ODL courses)"]
[]
[null,null,"Note: This Table 4 and its SLT calculation are designed for home grown programme only."]

{"sheet":"FORM","index":2,"n_rows":119,"n_cols":35,"rows_kept":119,"cut":false,"hidden":false,"merged":[[72,4,72,9],[73,4,73,9],[67,4,67,9],[77,20,77,22],[41,3,41,25],[44,2,44,7],[66,4,66,9],[65,23,65,25],[66,10,66,11],[66,23,66,25],[65,10,65,11],[77,23,77,25],[65,20,65,22],[64,23,64,25],[62,10,62,11],[64,20,64,22],[67,10,67,11],[67,20,67,22],[67,23,67,25],[68,23,68,25],[74,23,74,25],[62,20,62,22],[29,22,29,25],[60,10,60,11],[30,22,30,25],[42,3,42,25],[36,3,38,4],[40,3,40,25],[28,3,28,4],[30,3,30,4],[60,20,60,22],[60,23,60,25],[29,17,29,21],[30,17,30,21],[36,17,36,21],[32,22,32,25],[29,3,29,4],[15,2,22,4],[15,5,15,6],[20,5,20,6],[55,3,58,9],[55,10,58,11],[55,12,55,22],[55,23,58,25],[57,12,57,15],[53,2,53,26],[24,2,24,27],[26,3,27,4],[56,12,56,19],[56,20,58,22],[49,8,50,8],[57,16,57,19],[31,22,31,25],[33,17,33,21],[34,17,34,21],[35,17,35,21],[33,22,33,25],[34,22,34,25],[35,22,35,25],[49,9,50,25],[48,8,48,25],[26,17,27,21],[26,22,27,25],[26,5,26,16],[28,17,28,21],[15,7,15,26],[16,5,16,6],[16,7,16,26],[17,5,17,6],[17,7,17,26],[18,5,18,6],[18,7,18,26],[19,5,19,6],[20,7,20,26],[21,7,21,26],[21,5,21,6],[19,7,19,26],[22,5,22,6],[22,7,22,26],[28,22,28,25],[45,2,46,7],[61,20,61,22],[61,23,61,25],[45,9,45,25],[46,9,46,25],[47,9,47,25],[32,3,32,4],[31,3,31,4],[33,3,33,4],[31,17,31,21],[32,17,32,21],[34,3,34,4],[35,3,35,4],[59,4,59,9],[59,10,59,11],[59,20,59,22],[59,23,59,25],[3,2,3,4],[3,5,3,27],[4,2,4,4],[4,5,4,27],[5,2,5,4],[5,5,5,27],[7,2,7,4],[7,5,7,27],[12,2,12,4],[12,5,12,7],[6,2,6,4],[6,5,6,11],[13,2,13,4],[13,5,13,27],[8,1,10,1],[8,2,10,4],[11,2,11,4],[11,5,11,7],[11,9,11,10],[11,12,11,27],[8,6,8,27],[9,6,9,27],[10,6,10,27],[60,4,60,9],[61,4,61,9],[52,2,52,27],[76,23,76,25],[68,20,68,22],[79,23,79,25],[79,3,79,22],[80,20,81,22],[69,4,69,9],[78,4,78,9],[80,3,81,9],[80,10,81,11],[81,12,81,15],[81,16,81,19],[80,12,80,19],[61,10,61,11],[62,23,62,25],[78,10,78,11],[78,20,78,22],[78,23,78,25],[77,4,77,9],[64,4,64,9],[70,4,70,9],[71,4,71,9],[63,23,63,25],[75,4,75,9],[88,3,89,9],[88,10,89,11],[89,12,89,15],[89,16,89,19],[88,12,88,19],[90,12,90,15],[90,16,90,19],[85,20,85,22],[86,20,86,22],[82,20,82,22],[83,20,83,22],[84,20,84,22],[84,4,84,9],[82,12,82,15],[82,16,82,19],[77,10,77,11],[87,23,87,25],[63,4,63,9],[83,12,83,15],[83,16,83,19],[84,12,84,15],[84,16,84,19],[104,4,104,22],[101,23,101,25],[106,3,106,22],[106,23,106,25],[91,12,91,15],[85,4,85,9],[85,10,85,11],[86,10,86,11],[75,23,75,25],[82,4,82,9],[83,4,83,9],[88,20,89,22],[86,16,86,19],[90,20,90,22],[99,4,100,22],[99,3,100,3],[82,10,82,11],[83,10,83,11],[86,4,86,9],[85,12,85,15],[99,23,100,25],[87,3,87,22],[93,16,93,19],[94,12,94,15],[94,16,94,19],[93,4,93,9],[119,1,119,27],[110,3,110,22],[111,1,112,1],[111,2,112,9],[111,10,112,27],[113,1,114,1],[113,2,114,9],[113,10,114,27],[115,1,116,1],[115,2,116,9],[115,10,116,27],[118,2,118,27],[108,3,108,25],[109,3,109,25],[102,23,102,25],[103,23,103,25],[104,23,104,25],[101,4,101,22],[102,4,102,22],[103,4,103,22],[84,10,84,11],[91,4,91,9],[85,16,85,19],[86,12,86,15],[97,3,97,22],[97,23,97,25],[98,3,98,22],[92,20,92,22],[92,16,92,19],[90,4,90,9],[92,4,92,9],[93,20,93,22],[94,20,94,22],[94,4,94,9],[98,23,98,25],[92,12,92,15],[95,23,95,25],[95,3,95,22],[90,10,90,11],[91,10,91,11],[92,10,92,11],[93,10,93,11],[94,10,94,11],[93,12,93,15],[69,20,69,22],[70,20,70,22],[71,20,71,22],[72,20,72,22],[91,20,91,22],[76,4,76,9],[65,4,65,9],[37,17,37,21],[38,17,38,21],[74,10,74,11],[74,20,74,22],[75,10,75,11],[75,20,75,22],[68,10,68,11],[76,20,76,22],[76,10,76,11],[63,10,63,11],[63,20,63,22],[64,10,64,11],[66,20,66,22],[62,4,62,9],[68,4,68,9],[74,4,74,9],[91,16,91,19]]}
[]
[null,"Table 4: Summary of Course Information"]
[null,null,null,null,null,null,null,null,null,null,null,null,null,null,null,null,null,null,null,null,null,null,null,null,null,null,null,null,null,null,null,null,null,null,"√"]
[]
[null,1,"Course Name:",null,null,null,null,null,null,null,null,null,null,null,null,null,null,null,null,null,null,null,null,null,null,null,null,null,null,null,null,null,null,null,"Semester"]
[null,null,"Course Code:",null,null,null,null,null,null,null,null,null,null,null,null,null,null,null,null,null,null,null,null,null,null,null,null,null,null,null,null,null,null,null,1]
[null,null,"Course Classification:",null,null,null,null,null,null,null,null,null,null,null,null,null,null,null,null,null,null,null,null,null,null,null,null,null,null,null,null,null,null,null,2]
[null,2,"Synopsis:",null,null,null,null,null,null,null,null,null,null,null,null,null,null,null,null,null,null,null,null,null,null,null,null,null,null,null,null,null,null,null,3]
[null,{"$f":"B8+1","v":3},"Name(s) of Academic Staff:",null,null,1]
[null,null,null,null,null,2,null,null,null,null,null,null,null,null,null,null,null,null,null,null,null,null,null,null,null,null,null,null,null,null,null,null,null,null,"Year Offered"]
[null,null,null,null,null,3,null,null,null,null,null,null,null,null,null,null,null,null,null,null,null,null,null,null,null,null,null,null,null,null,null,null,null,null,1]
[null,{"$f":"B9+1","v":4},"Semester and Year offered:",null,null,"Year Offered",null,null,null,"Semester",null,null,"Remarks:",null,null,null,null,null,null,null,null,null,null,null,null,null,null,null,null,null,null,null,null,null,2]
[null,{"$f":"B12+1","v":5},"Credit Value:",null,null,{"$f":"IF(X107 =\"√\",INT(X99/80),INT(X99/40))","v":0},null,null,3,null,null,null,null,null,null,null,null,null,null,null,null,null,null,null,null,null,null,null,null,null,null,null,null,null,3]
[null,6,"Pre-requisite/ co-requisite (if any):",null,null,null,null,null,null,null,null,null,null,null,null,null,null,null,null,null,null,null,null,null,null,null,null,null,null,null,null,null,null,null,4]
[null,null,null,null,null,null,null,null,null,null,null,null,null,null,null,null,null,null,null,null,null,null,null,null,null,null,null,null,null,null,null,null,null,null,5]
[null,7,"Course Learning Outcomes (CLO)",null,null,"CLO1",null,null,null,null,null,null,null,null,null,null,null,null,null,null,null,null,null,null,null,null,null,null,null,null,null,null,null,null,6]
[null,null,null,null,null,"CLO2",null,null,null,null,null,null,null,null,null,null,null,null,null,null,null,null,null,null,null,null,null,null,null,null,null,null,null,null,7]
[null,null,null,null,null,"CLO3",null,null,null,null,null,null,null,null,null,null,null,null,null,null,null,null,null,null,null,null,null,null,null,null,null,null,null,null,8]
[]
[null,null,null,null,null,null,null,null,null,null,null,null,null,null,null,null,null,null,null,null,null,null,null,null,null,null,null,null,null,null,null,null,null,null,"Compulsory"]
[null,null,null,null,null,null,null,null,null,null,null,null,null,null,null,null,null,null,null,null,null,null,null,null,null,null,null,null,null,null,null,null,null,null,"Major (core) "]
[null,null,null,null,null,null,null,null,null,null,null,null,null,null,null,null,null,null,null,null,null,null,null,null,null,null,null,null,null,null,null,null,null,null,"Minor"]
[null,null,null,null,null,null,null,null,null,null,null,null,null,null,null,null,null,null,null,null,null,null,null,null,null,null,null,null,null,null,null,null,null,null,"Elective (core) "]
[null,null,null,null,null,null,null,null,null,null,null,null,null,null,null,null,null,null,null,null,null,null,null,null,null,null,null,null,null,null,null,null,null,null,"Elective (open/free)"]
[null,8,"Mapping of the Course Learning Outcomes to the Programme Learning Outcomes, Teaching Methods and Assessment Methods"]
[]
[null,null,null,"Course Learning Outcomes",null,"Programme Learning Outcomes (PLO)",null,null,null,null,null,null,null,null,null,null,null,"Teaching Methods",null,null,null,null,"Assessment Methods"]
[null,null,null,null,null,"PLO 1","PLO 2","PLO 3","PLO 4","PLO 5","PLO 6","PLO 7","PLO 8","PLO 9","PLO 10","PLO 11"]
[null,null,null,{"$f":"IF(ISBLANK(F16),\"\",F16)","v":"CLO1"}]
[null,null,null,{"$f":"IF(ISBLANK(F17),\"\",F17)","v":"CLO2"}]
[null,null,null,"CLO3"]
[null,null,null,{"$f":"IF(ISBLANK(F19),\"\",F19)","v":""}]
[null,null,null,{"$f":"IF(ISBLANK(F20),\"\",F20)","v":""}]
[null,null,null,""]
[null,null,null,""]
[null,null,null,"",null,null,null,null,null,null,null,null,null,null,null,null,null,null,null,null,null,null,null,null,null,null,null,null,null,null,null,null,null,null,"Cognitive skills  "]
[null,null,null,"Mapping with MQF Cluster of Learning Outcomes",null,null,null,null,null,null,null,null,null,null,null,null,null,null,null,null,null,null,null,null,null,null,null,null,null,null,null,null,null,null,"Interpersonal skills"]
[null,null,null,null,null,null,null,null,null,null,null,null,null,null,null,null,null,null,null,null,null,null,null,null,null,null,null,null,null,null,null,null,null,null,"Communication Skills"]
[null,null,null,null,null,null,null,null,null,null,null,null,null,null,null,null,null,null,null,null,null,null,null,null,null,null,null,null,null,null,null,null,null,null,"Digital Skills"]
[null,null,null,null,null,null,null,null,null,null,null,null,null,null,null,null,null,null,null,null,null,null,null,null,null,null,null,null,null,null,null,null,null,null,"Numeracy Skills"]
[null,null,null,"Indicate the primary causal link between the CLO and PLO by ticking  '√' in the appropriate box.",null,null,null,null,null,null,null,null,null,null,null,null,null,null,null,null,null,null,null,null,null,null,null,null,null,null,null,null,null,null,"Leadership, Autonomy and Responsibility"]
[null,null,null,"C1 = Knowledge & Understanding, C2 = Cognitive Skills, C3A = Practical Skills, C3B = Interpersonal Skills, C3C = Communication Skills, C3D = Digital Skills,",null,null,null,null,null,null,null,null,null,null,null,null,null,null,null,null,null,null,null,null,null,null,null,null,null,null,null,null,null,null,"Personal Skills"]
[null,null,null,"C3E = Numeracy Skills, C3F = Leadership, Autonomy & Responsibility, C4A = Personal Skills, C4B = Entrepreneurial Skills, C5 = Ethics & Professionalism",null,null,null,null,null,null,null,null,null,null,null,null,null,null,null,null,null,null,null,null,null,null,null,null,null,null,null,null,null,null,"Entrepreneurial Skills"]
[null,null,null,null,null,null,null,null,null,null,null,null,null,null,null,null,null,null,null,null,null,null,null,null,null,null,null,null,null,null,null,null,null,null,"Ethics and Professionalism"]
[null,9,"Transferable Skills (if applicable)"]
[null,null,"(Skills learned in the course of study which can be useful and utilized in other settings)",null,null,null,null,null,1,null,null,null,null,null,null,null,null,null,null,null,null,null,null,null,null,null,null,null,null,null,null,null,null,null,"C1"]
[null,null,null,null,null,null,null,null,2,null,null,null,null,null,null,null,null,null,null,null,null,null,null,null,null,null,null,null,null,null,null,null,null,null,"C2"]
[null,null,null,null,null,null,null,null,3,null,null,null,null,null,null,null,null,null,null,null,null,null,null,null,null,null,null,null,null,null,null,null,null,null,"C3A"]
[null,null,null,null,null,null,null,null,"Open-ended response (if any)",null,null,null,null,null,null,null,null,null,null,null,null,null,null,null,null,null,null,null,null,null,null,null,null,null,"C3B"]
[null,null,null,null,null,null,null,null,4,null,null,null,null,null,null,null,null,null,null,null,null,null,null,null,null,null,null,null,null,null,null,null,null,null,"C3C"]
[null,null,null,null,null,null,null,null,null,null,null,null,null,null,null,null,null,null,null,null,null,null,null,null,null,null,null,null,null,null,null,null,null,null,"C3D"]
[null,null,null,null,null,null,null,null,null,null,null,null,null,null,null,null,null,null,null,null,null,null,null,null,null,null,null,"`",null,null,null,null,null,null,"C3E"]
[null,10,"Distribution of Student Learning Time (SLT)",null,null,null,null,null,null,null,null,null,null,null,null,null,null,null,null,null,null,null,null,null,null,null,null,null,null,null,null,null,null,null,"C3F"]
[null,null,"Note: This SLT calculation is designed for home grown programme only.",null,null,null,null,null,null,null,null,null,null,null,null,null,null,null,null,null,null,null,null,null,null,null,null,null,null,null,null,null,null,null,"C4A"]
[null,null,null,null,null,null,null,null,null,null,null,null,null,null,null,null,null,null,null,null,null,null,null,null,null,null,null,null,null,null,null,null,null,null,"C4B"]
[null,null,null,"Course Content Outline and Subtopics",null,null,null,null,null,null,"CLO*",null,"Learning and Teaching Activities**",null,null,null,null,null,null,null,null,null,null,"Total SLT",null,null,null,null,null,null,null,null,null,null,"C5"]
[null,null,null,null,null,null,null,null,null,null,null,null,"Face-to-Face (F2F)",null,null,null,null,null,null,null,"NF2F\nIndependent Learning\n(Asynchronous)"]
[null,null,null,null,null,null,null,null,null,null,null,null,"Physical",null,null,null,"Online/ Technology-mediated (Synchronous)"]
[null,null,null,null,null,null,null,null,null,null,null,null,"L","T","P","O","L","T","P","O"]
[null,null,null,1]
[null,null,null,2]
[null,null,null,3]
[null,null,null,4]
[null,null,null,5]
[null,null,null,6]
[null,null,null,7]
[null,null,null,8]
[null,null,null,9]
[null,null,null,10]
[null,null,null,{"$f":"D69+1","v":11}]
[null,null,null,{"$f":"D70+1","v":12}]
[null,null,null,13]
[null,null,null,14]
[null,null,null,15]
[null,null,null,16]
[null,null,null,17]
[null,null,null,18]
[null,null,null,19]
[null,null,null,20]
[null,null,null,"SUB-TOTAL SLT: ",null,null,null,null,null,null,null,null,null,null,null,null,null,null,null,null,null,null,null,{"$f":"SUM(M60:P79)+SUM(Q60:T79)+SUM(U60:W79)","v":0}]
[null,null,null,"Continous Assessement",null,null,null,null,null,null,"%",null,"Face-to-Face (F2F)",null,null,null,null,null,null,null,"NF2F\nIndependent Learning for Assessment (Asynchronous)"]
[null,null,null,null,null,null,null,null,null,null,null,null,"Physical",null,null,null,"Online/ Technology-mediated (Synchronous)"]
[null,null,null,1]
[null,null,null,2]
[null,null,null,3]
[null,null,null,4]
[null,null,null,5]
[null,null,null,"SUB-TOTAL SLT: ",null,null,null,null,null,null,null,null,null,null,null,null,null,null,null,null,null,null,null,{"$f":"SUM(M83:W87)","v":0}]
[null,null,null,"Final Assessement",null,null,null,null,null,null,"%",null,"Face-to-Face (F2F)",null,null,null,null,null,null,null,"NF2F\nIndependent Learning for Assessment (Asynchronous)"]
[null,null,null,null,null,null,null,null,null,null,null,null,"Physical",null,null,null,"Online/ Technology-mediated (Synchronous)"]
[null,null,null,1]
[null,null,null,2]
[null,null,null,3]
[null,null,null,4]
[null,null,null,5]
[null,null,null,"SUB-TOTAL SLT: ",null,null,null,null,null,null,null,null,null,null,null,null,null,null,null,null,null,null,null,{"$f":"SUM(M91:W95)","v":0}]
[]
[null,null,null,"SLT for Assessment:",null,null,null,null,null,null,null,null,null,null,null,null,null,null,null,null,null,null,null,{"$f":"X88+X96","v":0}]
[null,null,null,"GRAND TOTAL SLT:",null,null,null,null,null,null,null,null,null,null,null,null,null,null,null,null,null,null,null,{"$f":"X98+X80","v":0}]
[null,null,null,"A","% SLT for F2F Physical Component: \n[Total F2F Physical /(Total F2F Physical + Total F2F Online + Total Independent Learning) x 100)]",null,null,null,null,null,null,null,null,null,null,null,null,null,null,null,null,null,null,{"$f":"IFERROR(((SUM(M60:P79)+SUM(M83:P87)+SUM(M91:P95))/X99)* 100,\"\")","v":""}]
[]
[null,null,null,"B","% SLT for Online & Independent Learning Component:\n[(Total F2F Online + Total Independent Learning) /( Total F2F Physical + Total F2F Online + Total Independent Learning) x 100]",null,null,null,null,null,null,null,null,null,null,null,null,null,null,null,null,null,null,{"$f":"IFERROR((SUM(Q60:W79)+SUM(Q83:W87) + SUM(Q91:W95))/X99 * 100,\"\")","v":""}]
[null,null,null,"C","% SLT for All Practical Component:\n[% F2F Physical Practical + % F2F Online Practical]",null,null,null,null,null,null,null,null,null,null,null,null,null,null,null,null,null,null,{"$f":"IFERROR(X104+X105,\"\")","v":""}]
[null,null,null,"C1","% SLT for F2F Physical Practical Component\n[Total F2F Physical Practical /( Total F2F Physical + Total F2F Online + Total Independent Learning)  x 100)]",null,null,null,null,null,null,null,null,null,null,null,null,null,null,null,null,null,null,{"$f":"IFERROR(SUM(O60:O79)/X99*100,\"\")","v":""}]
[null,null,null,"C2","% SLT for F2F Online Practical Component\n[Total F2F Online Practical / (Total F2F Physical + Total F2F Online + Total Independent Learning) x 100]",null,null,null,null,null,null,null,null,null,null,null,null,null,null,null,null,null,null,{"$f":"IFERROR(SUM(S60:S79)/X99 *100,\"\")","v":""}]
[null,null,null,null,null,null,null,null,null,null,null,null,null,null,null,null,null,null,null,null,null,null,null,null,null,{"$f":"IFERROR(X102+X104,\"\")","v":""}]
[null,null,null,"Please  tick (√) if this course is Industrial Training/ Clinical Placement/ Practicum using 50% of Effective Learning Time (ELT)"]
[null,null,null,"Note: "]
[null,null,null,"* Indicate the CLO based on the CLO's numbering in Item 8"]
[null,null,null,"** For ODL programme: Courses with mandatory practical requiremnets imposed by the programme standards or any related standards can be exempted from complying to the minimum 80% ODL delivery rule in the SLT."]
[]
[null,11,"Identify special requirement or resources to deliver the course (e.g., software, nursery, computer lab, simulation room etc)"]
[]
[null,12,"References (include required and further readings, and should be the most current)"]
[]
[null,13,"Other additional information (if applicable)"]
[]
[]
[null,null,"Note: Number of PLO indicated is purely for illustration purposes only and the number is subjected to the curriculum design."]

{"sheet":"Sheet1","index":3,"n_rows":0,"n_cols":0,"rows_kept":0,"cut":false,"hidden":false,"merged":[]}

{"sheet":"INDEX","index":4,"n_rows":131,"n_cols":25,"rows_kept":131,"cut":false,"hidden":false,"merged":[[3,3,3,4]]}
[]
[null,"GUIDE",null,null,null,null,null,null,null,null,null,null,null,null,null,null,"√"]
[null,"FORM","Major (core) ",100,null,null,null,null,null,null,null,null,null,null,null,null,"X"]
[null,"INDEX","Classification of Courses","FOR ODL PROGRAMME ONLY\r\nSummary of SLT Percentage for Open and Distance Learning (ODL) per course\r\n(Min 80% / course)",null,"Comments by Panel of Assessors","Comments by Panel of Assessors during visit \n(if applicable)"]
[null,"OBA4401","Major (core) ",100,{"$f":"IF(D5=\"\",\"\",IF(D5>=80,\"√\",\"x\"))","v":"√"}]
[null,"OBM4406","Major (core) ",100,"√"]
[null,"OBM4408","Major (core) ",100,"√"]
[null,"OBM4401","Major (core) ",100,"√"]
[null,"OBM4419","Major (core) ",100,"√"]
[null,"OBM4407","Major (core) ",100,"√"]
[null,"OBM4404","Major (core) ",100,"√"]
[null,"OBM4403","Major (core) ",93.333333333333329,"√"]
[null,"OBA4408","Major (core) ",100,"√"]
[null,"OBM4405","Compulsory",97.5,"√"]
[null,"OBA4403","Elective (core) ",100,"√"]
[null,"OBM4420","Major (core) ",100,"√"]
[null,"OBM4402","Elective (core) ",100,"√"]
[null,"OBM4427","Major (core) ",100,"√"]
[null,null,null,null,""]
[null,null,null,null,""]
[null,null,null,null,""]
[null,null,null,null,""]
[null,null,null,null,""]
[null,null,null,null,""]
[null,null,null,null,""]
[null,null,null,null,""]
[null,null,null,null,""]
[null,null,null,null,""]
[null,null,null,null,""]
[null,null,null,null,""]
[null,null,null,null,""]
[null,null,null,null,""]
[null,null,null,null,""]
[null,null,null,null,""]
[null,null,null,null,""]
[null,null,null,null,""]
[null,null,null,null,""]
[null,null,null,null,""]
[null,null,null,null,""]
[null,null,null,null,""]
[null,null,null,null,""]
[null,null,null,null,"",null,null,null,null,null,null,null,{"$f":"IF(ISBLANK(D5),\"\",IF(D5>=80,\"√\",\"X\"))","v":"√"}]
[null,null,null,null,""]
[null,null,null,null,""]
[null,null,null,null,""]
[null,null,null,null,""]
[null,null,null,null,""]
[null,null,null,null,""]
[null,null,null,null,""]
[null,null,null,null,""]
[null,null,null,null,""]
[null,null,null,null,""]
[null,null,null,null,""]
[null,null,null,null,""]
[null,null,null,null,""]
[null,null,null,null,""]
[null,null,null,null,""]
[null,null,null,null,""]
[null,null,null,null,""]
[null,null,null,null,""]
[null,null,null,null,""]
[null,null,null,null,""]
[null,null,null,null,""]
[null,null,null,null,""]
[null,null,null,null,""]
[null,null,null,null,{"$f":"COUNTIF(E5:E65,\"√\")","v":14},"Number of ODL Courses"]
[null,null,null,null,{"$f":"COUNTA(B5:B65)","v":14},"Total Courses"]
[null,null,null,null,{"$f":"(E66/E67)*100","v":100},{"$f":"IFERROR(IF(E68>60,\"ODL PROGRAMME\", \"NOT MEETING MINIMUM REQUIREMENT OF ODL PROGRAMME\"),\"\")","v":"ODL PROGRAMME"},"% ODL Courses/ programme \n(Min 61%/ programme) "]
[]
[]
[]
[]
[]
[]
[]
[]
[]
[]
[]
[]
[]
[]
[]
[]
[]
[]
[]
[]
[]
[]
[]
[]
[]
[]
[]
[]
[]
[]
[]
[]
[]
[]
[]
[]
[]
[]
[]
[]
[]
[]
[]
[]
[]
[]
[]
[]
[]
[]
[]
[]
[]
[]
[]
[]
[]
[]
[]
[]
[]
[]
[null,null,null,null,null,null,null,null,null,null,null,null,null,null,null,null,null,null,null,null,null,null,null,null,{"$f":"SUM(T92:T106)","v":0}]

{"sheet":"OBA4401","index":5,"n_rows":119,"n_cols":35,"rows_kept":119,"cut":false,"hidden":false,"merged":[[8,1,10,1],[8,2,10,4],[8,6,8,27],[9,6,9,27],[10,6,10,27],[3,2,3,4],[3,5,3,27],[4,2,4,4],[4,5,4,27],[5,2,5,4],[5,5,5,27],[11,2,11,4],[11,5,11,7],[11,9,11,10],[11,12,11,27],[12,2,12,4],[12,5,12,7],[6,2,6,4],[6,5,6,11],[7,2,7,4],[7,5,7,27],[13,2,13,4],[13,5,13,27],[15,2,22,4],[15,5,15,6],[15,7,15,26],[16,5,16,6],[16,7,16,26],[17,5,17,6],[17,7,17,26],[18,5,18,6],[22,5,22,6],[22,7,22,26],[24,2,24,27],[26,3,27,4],[26,5,26,16],[26,17,27,21],[26,22,27,25],[18,7,18,26],[19,5,19,6],[19,7,19,26],[20,5,20,6],[20,7,20,26],[21,5,21,6],[21,7,21,26],[30,3,30,4],[30,17,30,21],[30,22,30,25],[31,3,31,4],[31,17,31,21],[31,22,31,25],[28,3,28,4],[28,17,28,21],[28,22,28,25],[29,3,29,4],[29,17,29,21],[29,22,29,25],[34,3,34,4],[34,17,34,21],[34,22,34,25],[35,3,35,4],[35,17,35,21],[35,22,35,25],[32,3,32,4],[32,17,32,21],[32,22,32,25],[33,3,33,4],[33,17,33,21],[33,22,33,25],[42,3,42,25],[44,2,44,7],[45,2,46,7],[45,9,45,25],[46,9,46,25],[47,9,47,25],[36,3,38,4],[36,17,36,21],[37,17,37,21],[38,17,38,21],[40,3,40,25],[41,3,41,25],[56,20,58,22],[57,12,57,15],[57,16,57,19],[59,4,59,9],[59,10,59,11],[59,20,59,22],[48,8,48,25],[49,8,50,8],[49,9,50,25],[52,2,52,27],[53,2,53,26],[55,3,58,9],[55,10,58,11],[55,12,55,22],[55,23,58,25],[56,12,56,19],[59,23,59,25],[60,4,60,9],[60,10,60,11],[60,20,60,22],[60,23,60,25],[61,4,61,9],[61,10,61,11],[61,20,61,22],[61,23,61,25],[64,4,64,9],[64,10,64,11],[64,20,64,22],[64,23,64,25],[65,4,65,9],[65,10,65,11],[65,20,65,22],[65,23,65,25],[62,4,62,9],[62,10,62,11],[62,20,62,22],[62,23,62,25],[63,4,63,9],[63,10,63,11],[63,20,63,22],[63,23,63,25],[68,23,68,25],[69,4,69,9],[70,4,70,9],[66,4,66,9],[66,10,66,11],[66,20,66,22],[66,23,66,25],[67,4,67,9],[67,10,67,11],[67,20,67,22],[67,23,67,25],[71,4,71,9],[72,4,72,9],[73,4,73,9],[74,4,74,9],[74,10,74,11],[74,20,74,22],[68,4,68,9],[68,10,68,11],[68,20,68,22],[74,23,74,25],[75,4,75,9],[75,10,75,11],[75,20,75,22],[75,23,75,25],[76,4,76,9],[76,10,76,11],[76,20,76,22],[76,23,76,25],[79,3,79,22],[79,23,79,25],[80,3,81,9],[80,10,81,11],[80,12,80,19],[80,20,81,22],[81,12,81,15],[81,16,81,19],[77,4,77,9],[77,10,77,11],[77,20,77,22],[77,23,77,25],[78,4,78,9],[78,10,78,11],[78,20,78,22],[78,23,78,25],[82,4,82,9],[82,10,82,11],[82,12,82,15],[82,16,82,19],[82,20,82,22],[83,4,83,9],[83,10,83,11],[83,12,83,15],[83,16,83,19],[83,20,83,22],[84,4,84,9],[84,10,84,11],[84,12,84,15],[84,16,84,19],[84,20,84,22],[85,4,85,9],[85,10,85,11],[85,12,85,15],[85,16,85,19],[85,20,85,22],[87,23,87,25],[88,3,89,9],[88,10,89,11],[88,12,88,19],[88,20,89,22],[89,12,89,15],[89,16,89,19],[86,4,86,9],[86,10,86,11],[86,12,86,15],[86,16,86,19],[86,20,86,22],[87,3,87,22],[90,4,90,9],[90,10,90,11],[90,12,90,15],[90,16,90,19],[90,20,90,22],[91,4,91,9],[91,10,91,11],[91,12,91,15],[91,16,91,19],[91,20,91,22],[92,4,92,9],[92,10,92,11],[92,12,92,15],[92,16,92,19],[92,20,92,22],[93,4,93,9],[93,10,93,11],[93,12,93,15],[93,16,93,19],[93,20,93,22],[95,23,95,25],[97,3,97,22],[97,23,97,25],[98,3,98,22],[98,23,98,25],[99,3,100,3],[99,4,100,22],[99,23,100,25],[94,4,94,9],[94,10,94,11],[94,12,94,15],[94,16,94,19],[94,20,94,22],[95,3,95,22],[104,4,104,22],[104,23,104,25],[106,3,106,22],[106,23,106,25],[108,3,108,25],[109,3,109,25],[101,4,101,22],[101,23,101,25],[102,4,102,22],[102,23,102,25],[103,4,103,22],[103,23,103,25],[115,1,116,1],[115,2,116,9],[115,10,116,27],[118,2,118,27],[119,1,119,27],[110,3,110,22],[111,1,112,1],[111,2,112,9],[111,10,112,27],[113,1,114,1],[113,2,114,9],[113,10,114,27]]}
[]
[null,"Back To FORM @ TEMPLATE"]
[null,null,null,null,null,null,null,null,null,null,null,null,null,null,null,null,null,null,null,null,null,null,null,null,null,null,null,null,null,null,null,null,null,null,"√"]
[]
[null,1,"Course Name:",null,null,"Financial Management",null,null,null,null,null,null,null,null,null,null,null,null,null,null,null,null,null,null,null,null,null,null,null,null,null,null,null,null,"Semester"]
[null,null,"Course Code:",null,null,"OBA4401",null,null,null,null,null,null,null,null,null,null,null,null,null,null,null,null,null,null,null,null,null,null,null,null,null,null,null,null,1]
[null,null,"Course Classification:",null,null,"Major (core) ",null,null,null,null,null,null,null,null,null,null,null,null,null,null,null,null,null,null,null,null,null,null,null,null,null,null,null,null,2]
[null,2,"Synopsis:",null,null,"This module is included to enable our MBA students to master the key issues in business finance, financial markets and the principles and concepts in accounting statements.",null,null,null,null,null,null,null,null,null,null,null,null,null,null,null,null,null,null,null,null,null,null,null,null,null,null,null,null,3]
[null,{"$f":"B8+1","v":3},"Name(s) of Academic Staff:",null,null,1,"Khairi Faiz Bin Mazri"]
[null,null,null,null,null,2,null,null,null,null,null,null,null,null,null,null,null,null,null,null,null,null,null,null,null,null,null,null,null,null,null,null,null,null,"Year Offered"]
[null,null,null,null,null,3,null,null,null,null,null,null,null,null,null,null,null,null,null,null,null,null,null,null,null,null,null,null,null,null,null,null,null,null,1]
[null,{"$f":"B9+1","v":4},"Semester and Year offered:",null,null,"Year Offered",null,null,1,"Semester",null,1,"Remarks:",null,null,null,null,null,null,null,null,null,null,null,null,null,null,null,null,null,null,null,null,null,2]
[null,{"$f":"B12+1","v":5},"Credit Value:",null,null,{"$f":"IF(X107 =\"√\",INT(X99/80),INT(X99/40))","v":3},null,null,3,null,null,null,null,null,null,null,null,null,null,null,null,null,null,null,null,null,null,null,null,null,null,null,null,null,3]
[null,6,"Pre-requisite/ co-requisite (if any):",null,null,"None",null,null,null,null,null,null,null,null,null,null,null,null,null,null,null,null,null,null,null,null,null,null,null,null,null,null,null,null,4]
[null,null,null,null,null,null,null,null,null,null,null,null,null,null,null,null,null,null,null,null,null,null,null,null,null,null,null,null,null,null,null,null,null,null,5]
[null,7,"Course Learning Outcomes (CLO)",null,null,"CLO1",null,"Appraise the need and benefits of the principles underlying the preparation of accounting information (C5, PLO 1)",null,null,null,null,null,null,null,null,null,null,null,null,null,null,null,null,null,null,null,null,null,null,null,null,null,null,6]
[null,null,null,null,null,"CLO2",null,"Elaborate the principles used in recording business transactions and assess the prepared financial statements (C5, PLO6)",null,null,null,null,null,null,null,null,null,null,null,null,null,null,null,null,null,null,null,null,null,null,null,null,null,null,7]
[null,null,null,null,null,"CLO3",null,"Analyze the use of accounting information for decision-making, planning and control (C4, PLO2)",null,null,null,null,null,null,null,null,null,null,null,null,null,null,null,null,null,null,null,null,null,null,null,null,null,null,8]
[]
[null,null,null,null,null,null,null,null,null,null,null,null,null,null,null,null,null,null,null,null,null,null,null,null,null,null,null,null,null,null,null,null,null,null,"Compulsory"]
[null,null,null,null,null,null,null,null,null,null,null,null,null,null,null,null,null,null,null,null,null,null,null,null,null,null,null,null,null,null,null,null,null,null,"Major (core) "]
[null,null,null,null,null,null,null,null,null,null,null,null,null,null,null,null,null,null,null,null,null,null,null,null,null,null,null,null,null,null,null,null,null,null,"Minor"]
[null,null,null,null,null,null,null,null,null,null,null,null,null,null,null,null,null,null,null,null,null,null,null,null,null,null,null,null,null,null,null,null,null,null,"Elective (core) "]
[null,null,null,null,null,null,null,null,null,null,null,null,null,null,null,null,null,null,null,null,null,null,null,null,null,null,null,null,null,null,null,null,null,null,"Elective (open/free)"]
[null,8,"Mapping of the Course Learning Outcomes to the Programme Learning Outcomes, Teaching Methods and Assessment Methods"]
[]
[null,null,null,"Course Learning Outcomes",null,"Programme Learning Outcomes (PLO)",null,null,null,null,null,null,null,null,null,null,null,"Teaching Methods",null,null,null,null,"Assessment Methods"]
[null,null,null,null,null,"PLO 1","PLO 2","PLO 3","PLO 4","PLO 5","PLO 6","PLO 7","PLO 8","PLO 9","PLO 10","PLO 11"]
[null,null,null,{"$f":"IF(ISBLANK(F16),\"\",F16)","v":"CLO1"},null,"√",null,null,null,null,null,null,null,null,null,null,null,"Online Techonology Mediated Video Based Learning             Tutorial",null,null,null,null,"Assignment"]
[null,null,null,{"$f":"IF(ISBLANK(F17),\"\",F17)","v":"CLO2"},null,null,null,null,null,null,"√",null,null,null,null,null,null,"Online Techonology Mediated Video Based Learning              Tutorial",null,null,null,null,"Assignment and final exam"]
[null,null,null,"CLO3",null,null,"√",null,null,null,null,null,null,null,null,null,null,"Online Techonology Mediated Video Based Learning              Tutorial",null,null,null,null,"Final Examination"]
[null,null,null,""]
[null,null,null,""]
[null,null,null,""]
[null,null,null,""]
[null,null,null,"",null,null,null,null,null,null,null,null,null,null,null,null,null,null,null,null,null,null,null,null,null,null,null,null,null,null,null,null,null,null,"Cognitive skills  "]
[null,null,null,"Mapping with MQF Cluster of Learning Outcomes",null,"C1",null,null,null,null,null,null,null,null,null,null,null,null,null,null,null,null,null,null,null,null,null,null,null,null,null,null,null,null,"Interpersonal skills"]
[null,null,null,null,null,null,"C2",null,null,null,null,null,null,null,null,null,null,null,null,null,null,null,null,null,null,null,null,null,null,null,null,null,null,null,"Communication Skills"]
[null,null,null,null,null,null,null,null,null,null,"C3E",null,null,null,null,null,null,null,null,null,null,null,null,null,null,null,null,null,null,null,null,null,null,null,"Digital Skills"]
[null,null,null,null,null,null,null,null,null,null,null,null,null,null,null,null,null,null,null,null,null,null,null,null,null,null,null,null,null,null,null,null,null,null,"Numeracy Skills"]
[null,null,null,"Indicate the primary causal link between the CLO and PLO by ticking  '√' in the appropriate box.",null,null,null,null,null,null,null,null,null,null,null,null,null,null,null,null,null,null,null,null,null,null,null,null,null,null,null,null,null,null,"Leadership, Autonomy and Responsibility"]
[null,null,null,"C1 = Knowledge & Understanding, C2 = Cognitive Skills, C3A = Practical Skills, C3B = Interpersonal Skills, C3C = Communication Skills, C3D = Digital Skills,",null,null,null,null,null,null,null,null,null,null,null,null,null,null,null,null,null,null,null,null,null,null,null,null,null,null,null,null,null,null,"Personal Skills"]
[null,null,null,"C3E = Numeracy Skills, C3F = Leadership, Autonomy & Responsibility, C4A = Personal Skills, C4B = Entrepreneurial Skills, C5 = Ethics & Professionalism",null,null,null,null,null,null,null,null,null,null,null,null,null,null,null,null,null,null,null,null,null,null,null,null,null,null,null,null,null,null,"Entrepreneurial Skills"]
[null,null,null,null,null,null,null,null,null,null,null,null,null,null,null,null,null,null,null,null,null,null,null,null,null,null,null,null,null,null,null,null,null,null,"Ethics and Professionalism"]
[null,9,"Transferable Skills (if applicable)"]
[null,null,"(Skills learned in the course of study which can be useful and utilized in other settings)",null,null,null,null,null,1,"Communication Skills",null,null,null,null,null,null,null,null,null,null,null,null,null,null,null,null,null,null,null,null,null,null,null,null,"C1"]
[null,null,null,null,null,null,null,null,2,"Numeracy Skills",null,null,null,null,null,null,null,null,null,null,null,null,null,null,null,null,null,null,null,null,null,null,null,null,"C2"]
[null,null,null,null,null,null,null,null,3,"Entrepreneurial Skills",null,null,null,null,null,null,null,null,null,null,null,null,null,null,null,null,null,null,null,null,null,null,null,null,"C3A"]
[null,null,null,null,null,null,null,null,"Open-ended response (if any)",null,null,null,null,null,null,null,null,null,null,null,null,null,null,null,null,null,null,null,null,null,null,null,null,null,"C3B"]
[null,null,null,null,null,null,null,null,4,null,null,null,null,null,null,null,null,null,null,null,null,null,null,null,null,null,null,null,null,null,null,null,null,null,"C3C"]
[null,null,null,null,null,null,null,null,null,null,null,null,null,null,null,null,null,null,null,null,null,null,null,null,null,null,null,null,null,null,null,null,null,null,"C3D"]
[null,null,null,null,null,null,null,null,null,null,null,null,null,null,null,null,null,null,null,null,null,null,null,null,null,null,null,"`",null,null,null,null,null,null,"C3E"]
[null,10,"Distribution of Student Learning Time (SLT)",null,null,null,null,null,null,null,null,null,null,null,null,null,null,null,null,null,null,null,null,null,null,null,null,null,null,null,null,null,null,null,"C3F"]
[null,null,"Note: This SLT calculation is designed for home grown programme only.",null,null,null,null,null,null,null,null,null,null,null,null,null,null,null,null,null,null,null,null,null,null,null,null,null,null,null,null,null,null,null,"C4A"]
[null,null,null,null,null,null,null,null,null,null,null,null,null,null,null,null,null,null,null,null,null,null,null,null,null,null,null,null,null,null,null,null,null,null,"C4B"]
[null,null,null,"Course Content Outline and Subtopics",null,null,null,null,null,null,"CLO*",null,"Learning and Teaching Activities**",null,null,null,null,null,null,null,null,null,null,"Total SLT",null,null,null,null,null,null,null,null,null,null,"C5"]
[null,null,null,null,null,null,null,null,null,null,null,null,"Face-to-Face (F2F)",null,null,null,null,null,null,null,"NF2F\nIndependent Learning\n(Asynchronous)"]
[null,null,null,null,null,null,null,null,null,null,null,null,"Physical",null,null,null,"Online/ Technology-mediated (Synchronous)"]
[null,null,null,null,null,null,null,null,null,null,null,null,"L","T","P","O","L","T","P","O"]
[null,null,null,1,"The different roles of accounting and its relationship to shareholder value and business structure",null,null,null,null,null,"CLO1",null,null,null,null,null,null,2,null,null,10]
[null,null,null,2,"Measuring and reporting financial performance: the balance sheet and the profit and loss account",null,null,null,null,null,"CLO2",null,null,null,null,null,null,2,null,null,10]
[null,null,null,3,"Management control and the use of budgets",null,null,null,null,null,"CLO1",null,null,null,null,null,null,2,null,null,10]
[null,null,null,4,"The role of accounting information in marketing, operating, banking and finance and accounting decisions",null,null,null,null,null,"CLO3",null,null,null,null,null,null,2,null,null,10]
[null,null,null,5,"Strategic investments decisions",null,null,null,null,null,"CLO3",null,null,null,null,null,null,2,null,null,10]
[null,null,null,6,"The management of working capital",null,null,null,null,null,"CLO2",null,null,null,null,null,null,2,null,null,10]
[null,null,null,7,"Sources of finance and financial market",null,null,null,null,null,"CLO3",null,null,null,null,null,null,2,null,null,10]
[null,null,null,8]
[null,null,null,9]
[null,null,null,10]
[null,null,null,{"$f":"D69+1","v":11}]
[null,null,null,{"$f":"D70+1","v":12}]
[null,null,null,13]
[null,null,null,14]
[null,null,null,15]
[null,null,null,16]
[null,null,null,17]
[null,null,null,18]
[null,null,null,19]
[null,null,null,20]
[null,null,null,"SUB-TOTAL SLT: ",null,null,null,null,null,null,null,null,null,null,null,null,null,null,null,null,null,null,null,{"$f":"SUM(M60:P79)+SUM(Q60:T79)+SUM(U60:W79)","v":84}]
[null,null,null,"Continous Assessement",null,null,null,null,null,null,"%",null,"Face-to-Face (F2F)",null,null,null,null,null,null,null,"NF2F\nIndependent Learning for Assessment (Asynchronous)"]
[null,null,null,null,null,null,null,null,null,null,null,null,"Physical",null,null,null,"Online/ Technology-mediated (Synchronous)"]
[null,null,null,1,"Individual Assignment 1",null,null,null,null,null,20,null,null,null,null,null,null,null,null,null,8]
[null,null,null,2,"Individual Assignment 2",null,null,null,null,null,25,null,null,null,null,null,null,null,null,null,8]
[null,null,null,3,"Individual Assignment 3",null,null,null,null,null,25,null,null,null,null,null,null,null,null,null,10]
[null,null,null,4]
[null,null,null,5]
[null,null,null,"SUB-TOTAL SLT: ",null,null,null,null,null,null,null,null,null,null,null,null,null,null,null,null,null,null,null,{"$f":"SUM(M83:W87)","v":26}]
[null,null,null,"Final Assessement",null,null,null,null,null,null,"%",null,"Face-to-Face (F2F)",null,null,null,null,null,null,null,"NF2F\nIndependent Learning for Assessment (Asynchronous)"]
[null,null,null,null,null,null,null,null,null,null,null,null,"Physical",null,null,null,"Online/ Technology-mediated (Synchronous)"]
[null,null,null,1,"Final Examination",null,null,null,null,null,30,null,null,null,null,null,2,null,null,null,8]
[null,null,null,2]
[null,null,null,3]
[null,null,null,4]
[null,null,null,5]
[null,null,null,"SUB-TOTAL SLT: ",null,null,null,null,null,null,null,null,null,null,null,null,null,null,null,null,null,null,null,{"$f":"SUM(M91:W95)","v":10}]
[]
[null,null,null,"SLT for Assessment:",null,null,null,null,null,null,null,null,null,null,null,null,null,null,null,null,null,null,null,{"$f":"X88+X96","v":36}]
[null,null,null,"GRAND TOTAL SLT:",null,null,null,null,null,null,null,null,null,null,null,null,null,null,null,null,null,null,null,{"$f":"X98+X80","v":120}]
[null,null,null,"A","% SLT for F2F Physical Component: \n[Total F2F Physical /(Total F2F Physical + Total F2F Online + Total Independent Learning) x 100)]",null,null,null,null,null,null,null,null,null,null,null,null,null,null,null,null,null,null,{"$f":"IFERROR(((SUM(M60:P79)+SUM(M83:P87)+SUM(M91:P95))/X99)* 100,\"\")","v":0}]
[]
[null,null,null,"B","% SLT for Online & Independent Learning Component:\n[(Total F2F Online + Total Independent Learning) /( Total F2F Physical + Total F2F Online + Total Independent Learning) x 100]",null,null,null,null,null,null,null,null,null,null,null,null,null,null,null,null,null,null,{"$f":"IFERROR((SUM(Q60:W79)+SUM(Q83:W87) + SUM(Q91:W95))/X99 * 100,\"\")","v":100}]
[null,null,null,"C","% SLT for All Practical Component:\n[% F2F Physical Practical + % F2F Online Practical]",null,null,null,null,null,null,null,null,null,null,null,null,null,null,null,null,null,null,{"$f":"IFERROR(X104+X105,\"\")","v":0}]
[null,null,null,"C1","% SLT for F2F Physical Practical Component\n[Total F2F Physical Practical /( Total F2F Physical + Total F2F Online + Total Independent Learning)  x 100)]",null,null,null,null,null,null,null,null,null,null,null,null,null,null,null,null,null,null,{"$f":"IFERROR(SUM(O60:O79)/X99*100,\"\")","v":0}]
[null,null,null,"C2","% SLT for F2F Online Practical Component\n[Total F2F Online Practical / (Total F2F Physical + Total F2F Online + Total Independent Learning) x 100]",null,null,null,null,null,null,null,null,null,null,null,null,null,null,null,null,null,null,{"$f":"IFERROR(SUM(S60:S79)/X99 *100,\"\")","v":0}]
[null,null,null,null,null,null,null,null,null,null,null,null,null,null,null,null,null,null,null,null,null,null,null,null,null,{"$f":"IFERROR(X102+X104,\"\")","v":100}]
[null,null,null,"Please  tick (√) if this course is Industrial Training/ Clinical Placement/ Practicum using 50% of Effective Learning Time (ELT)"]
[null,null,null,"Note: "]
[null,null,null,"* Indicate the CLO based on the CLO's numbering in Item 8"]
[null,null,null,"** For ODL programme: Courses with mandatory practical requiremnets imposed by the programme standards or any related standards can be exempted from complying to the minimum 80% ODL delivery rule in the SLT."]
[]
[null,11,"Identify special requirement or resources to deliver the course (e.g., software, nursery, computer lab, simulation room etc)"]
[]
[null,12,"References (include required and further readings, and should be the most current)",null,null,null,null,null,null,null,"Houston, J., & Brigham, E. (2018). Fundamentals of financial management (15th ed.). CENGAGE Learning Custom Publishing.\n\nBrigham, E. F., & Ehrhardt, M. C. (2019). Financial management : Theory & practice (16th ed.). CENGAGE Learning Custom Publishing.\n\nBrooks, R. (2018). Financial Management: Core Concepts (4th ed.). Pearson.\n\nNoreen, E., Brewer, P. and Garrison, R. (2020) Managerial Accounting for Managers. 5th ed. McGraw Hill Education. "]
[]
[null,13,"Other additional information (if applicable)"]
[]
[]
[null,null,"Note: Number of PLO indicated is purely for illustration purposes only and the number is subjected to the curriculum design."]

{"sheet":"OBM4406","index":6,"n_rows":119,"n_cols":35,"rows_kept":119,"cut":false,"hidden":false,"merged":[[8,1,10,1],[8,2,10,4],[8,6,8,27],[9,6,9,27],[10,6,10,27],[3,2,3,4],[3,5,3,27],[4,2,4,4],[4,5,4,27],[5,2,5,4],[5,5,5,27],[11,2,11,4],[11,5,11,7],[11,9,11,10],[11,12,11,27],[12,2,12,4],[12,5,12,7],[6,2,6,4],[6,5,6,11],[7,2,7,4],[7,5,7,27],[13,2,13,4],[13,5,13,27],[15,2,22,4],[15,5,15,6],[15,7,15,26],[16,5,16,6],[16,7,16,26],[17,5,17,6],[17,7,17,26],[18,5,18,6],[22,5,22,6],[22,7,22,26],[24,2,24,27],[26,3,27,4],[26,5,26,16],[26,17,27,21],[26,22,27,25],[18,7,18,26],[19,5,19,6],[19,7,19,26],[20,5,20,6],[20,7,20,26],[21,5,21,6],[21,7,21,26],[30,3,30,4],[30,17,30,21],[30,22,30,25],[31,3,31,4],[31,17,31,21],[31,22,31,25],[28,3,28,4],[28,17,28,21],[28,22,28,25],[29,3,29,4],[29,17,29,21],[29,22,29,25],[34,3,34,4],[34,17,34,21],[34,22,34,25],[35,3,35,4],[35,17,35,21],[35,22,35,25],[32,3,32,4],[32,17,32,21],[32,22,32,25],[33,3,33,4],[33,17,33,21],[33,22,33,25],[42,3,42,25],[44,2,44,7],[45,2,46,7],[45,9,45,25],[46,9,46,25],[47,9,47,25],[36,3,38,4],[36,17,36,21],[37,17,37,21],[38,17,38,21],[40,3,40,25],[41,3,41,25],[56,20,58,22],[57,12,57,15],[57,16,57,19],[59,4,59,9],[59,10,59,11],[59,20,59,22],[48,8,48,25],[49,8,50,8],[49,9,50,25],[52,2,52,27],[53,2,53,26],[55,3,58,9],[55,10,58,11],[55,12,55,22],[55,23,58,25],[56,12,56,19],[59,23,59,25],[60,4,60,9],[60,10,60,11],[60,20,60,22],[60,23,60,25],[61,4,61,9],[61,10,61,11],[61,20,61,22],[61,23,61,25],[64,4,64,9],[64,10,64,11],[64,20,64,22],[64,23,64,25],[65,4,65,9],[65,10,65,11],[65,20,65,22],[65,23,65,25],[62,4,62,9],[62,10,62,11],[62,20,62,22],[62,23,62,25],[63,4,63,9],[63,10,63,11],[63,20,63,22],[63,23,63,25],[68,4,68,9],[68,10,68,11],[68,20,68,22],[68,23,68,25],[69,4,69,9],[69,10,69,11],[69,20,69,22],[66,4,66,9],[66,10,66,11],[66,20,66,22],[66,23,66,25],[67,4,67,9],[67,10,67,11],[67,20,67,22],[67,23,67,25],[74,4,74,9],[74,10,74,11],[74,20,74,22],[74,23,74,25],[75,4,75,9],[75,10,75,11],[75,20,75,22],[75,23,75,25],[70,4,70,9],[70,10,70,11],[70,20,70,22],[71,4,71,9],[72,4,72,9],[73,4,73,9],[78,23,78,25],[79,3,79,22],[79,23,79,25],[76,4,76,9],[76,10,76,11],[76,20,76,22],[76,23,76,25],[77,4,77,9],[77,10,77,11],[77,20,77,22],[77,23,77,25],[80,3,81,9],[80,10,81,11],[80,12,80,19],[80,20,81,22],[81,12,81,15],[81,16,81,19],[78,4,78,9],[78,10,78,11],[78,20,78,22],[82,4,82,9],[82,10,82,11],[82,12,82,15],[82,16,82,19],[82,20,82,22],[83,4,83,9],[83,10,83,11],[83,12,83,15],[83,16,83,19],[83,20,83,22],[84,4,84,9],[84,10,84,11],[84,12,84,15],[84,16,84,19],[84,20,84,22],[85,4,85,9],[85,10,85,11],[85,12,85,15],[85,16,85,19],[85,20,85,22],[87,23,87,25],[88,3,89,9],[88,10,89,11],[88,12,88,19],[88,20,89,22],[89,12,89,15],[89,16,89,19],[86,4,86,9],[86,10,86,11],[86,12,86,15],[86,16,86,19],[86,20,86,22],[87,3,87,22],[90,4,90,9],[90,10,90,11],[90,12,90,15],[90,16,90,19],[90,20,90,22],[91,4,91,9],[91,10,91,11],[91,12,91,15],[91,16,91,19],[91,20,91,22],[92,4,92,9],[92,10,92,11],[92,12,92,15],[92,16,92,19],[92,20,92,22],[93,4,93,9],[93,10,93,11],[93,12,93,15],[93,16,93,19],[93,20,93,22],[95,23,95,25],[97,3,97,22],[97,23,97,25],[98,3,98,22],[98,23,98,25],[99,3,100,3],[99,4,100,22],[99,23,100,25],[94,4,94,9],[94,10,94,11],[94,12,94,15],[94,16,94,19],[94,20,94,22],[95,3,95,22],[104,4,104,22],[104,23,104,25],[106,3,106,22],[106,23,106,25],[108,3,108,25],[109,3,109,25],[101,4,101,22],[101,23,101,25],[102,4,102,22],[102,23,102,25],[103,4,103,22],[103,23,103,25],[115,1,116,1],[115,2,116,9],[115,10,116,27],[118,2,118,27],[119,1,119,27],[110,3,110,22],[111,1,112,1],[111,2,112,9],[111,10,112,27],[113,1,114,1],[113,2,114,9],[113,10,114,27]]}
[]
[null,"Back To FORM @ TEMPLATE"]
[null,null,null,null,null,null,null,null,null,null,null,null,null,null,null,null,null,null,null,null,null,null,null,null,null,null,null,null,null,null,null,null,null,null,"√"]
[]
[null,1,"Course Name:",null,null,"Research Methodology",null,null,null,null,null,null,null,null,null,null,null,null,null,null,null,null,null,null,null,null,null,null,null,null,null,null,null,null,"Semester"]
[null,null,"Course Code:",null,null,"OBM4406",null,null,null,null,null,null,null,null,null,null,null,null,null,null,null,null,null,null,null,null,null,null,null,null,null,null,null,null,1]
[null,null,"Course Classification:",null,null,"Major (core) ",null,null,null,null,null,null,null,null,null,null,null,null,null,null,null,null,null,null,null,null,null,null,null,null,null,null,null,null,2]
[null,2,"Synopsis:",null,null,"This module provides the guidelines relating to the process by which a  student carries out a research study on a proposed area of interest  to enable him or her to find an answer to solve a problem confronting him or  her.  The  module introduces the importance of developing a research topic, the development of the research questions and the setting of objectives from the research questions, determining the research approach, the research design for quantitative and qualitative studies and the research instruments for data collection and the analysis of the data gathered and the subsequent reporting of the findings.  It also emphasizes the importanceand imperative  of literature review and the ethical issues involved in conducting a research.  The differences of qualitative and quantitative research are distinguished.",null,null,null,null,null,null,null,null,null,null,null,null,null,null,null,null,null,null,null,null,null,null,null,null,null,null,null,null,3]
[null,{"$f":"B8+1","v":3},"Name(s) of Academic Staff:",null,null,1,"Dr.Gan"]
[null,null,null,null,null,2,null,null,null,null,null,null,null,null,null,null,null,null,null,null,null,null,null,null,null,null,null,null,null,null,null,null,null,null,"Year Offered"]
[null,null,null,null,null,3,null,null,null,null,null,null,null,null,null,null,null,null,null,null,null,null,null,null,null,null,null,null,null,null,null,null,null,null,1]
[null,{"$f":"B9+1","v":4},"Semester and Year offered:",null,null,"Year Offered",null,null,1,"Semester",null,1,"Remarks:",null,null,null,null,null,null,null,null,null,null,null,null,null,null,null,null,null,null,null,null,null,2]
[null,{"$f":"B12+1","v":5},"Credit Value:",null,null,{"$f":"IF(X107 =\"√\",INT(X99/80),INT(X99/40))","v":3},null,null,3,null,null,null,null,null,null,null,null,null,null,null,null,null,null,null,null,null,null,null,null,null,null,null,null,null,3]
[null,6,"Pre-requisite/ co-requisite (if any):",null,null,"Nil",null,null,null,null,null,null,null,null,null,null,null,null,null,null,null,null,null,null,null,null,null,null,null,null,null,null,null,null,4]
[null,null,null,null,null,null,null,null,null,null,null,null,null,null,null,null,null,null,null,null,null,null,null,null,null,null,null,null,null,null,null,null,null,null,5]
[null,7,"Course Learning Outcomes (CLO)",null,null,"CLO1",null,"Apply and analyse the science and arts of research methods. (C4, PLO3)",null,null,null,null,null,null,null,null,null,null,null,null,null,null,null,null,null,null,null,null,null,null,null,null,null,null,6]
[null,null,null,null,null,"CLO2",null,"Appraise the differenent  possibilities in research approach and research design to enable the collection of data and writing of the research report.(C5, PLO 4)",null,null,null,null,null,null,null,null,null,null,null,null,null,null,null,null,null,null,null,null,null,null,null,null,null,null,7]
[null,null,null,null,null,"CLO3",null,"Develop new pattern or proposing alternative solutions  such as theories from the research findings. (C6, PLO6)",null,null,null,null,null,null,null,null,null,null,null,null,null,null,null,null,null,null,null,null,null,null,null,null,null,null,8]
[]
[null,null,null,null,null,null,null,null,null,null,null,null,null,null,null,null,null,null,null,null,null,null,null,null,null,null,null,null,null,null,null,null,null,null,"Compulsory"]
[null,null,null,null,null,null,null,null,null,null,null,null,null,null,null,null,null,null,null,null,null,null,null,null,null,null,null,null,null,null,null,null,null,null,"Major (core) "]
[null,null,null,null,null,null,null,null,null,null,null,null,null,null,null,null,null,null,null,null,null,null,null,null,null,null,null,null,null,null,null,null,null,null,"Minor"]
[null,null,null,null,null,null,null,null,null,null,null,null,null,null,null,null,null,null,null,null,null,null,null,null,null,null,null,null,null,null,null,null,null,null,"Elective (core) "]
[null,null,null,null,null,null,null,null,null,null,null,null,null,null,null,null,null,null,null,null,null,null,null,null,null,null,null,null,null,null,null,null,null,null,"Elective (open/free)"]
[null,8,"Mapping of the Course Learning Outcomes to the Programme Learning Outcomes, Teaching Methods and Assessment Methods"]
[]
[null,null,null,"Course Learning Outcomes",null,"Programme Learning Outcomes (PLO)",null,null,null,null,null,null,null,null,null,null,null,"Teaching Methods",null,null,null,null,"Assessment Methods"]
[null,null,null,null,null,"PLO 1","PLO 2","PLO 3","PLO 4","PLO 5","PLO 6","PLO 7","PLO 8","PLO 9","PLO 10","PLO 11"]
[null,null,null,{"$f":"IF(ISBLANK(F16),\"\",F16)","v":"CLO1"},null,null,null,"√",null,null,null,null,null,null,null,null,null,"Tutorial; Online Discussion Forum",null,null,null,null,"Assignment 1; Final Exam"]
[null,null,null,{"$f":"IF(ISBLANK(F17),\"\",F17)","v":"CLO2"},null,null,null,null,"√",null,null,null,null,null,null,null,null,"Tutorial",null,null,null,null,"Assignment 2; Presentation; Final Exam"]
[null,null,null,"CLO3",null,null,null,null,null,null,"√",null,null,null,null,null,null,"Tutorial",null,null,null,null,"Assignment 3; Final Exam"]
[null,null,null,""]
[null,null,null,""]
[null,null,null,""]
[null,null,null,""]
[null,null,null,"",null,null,null,null,null,null,null,null,null,null,null,null,null,null,null,null,null,null,null,null,null,null,null,null,null,null,null,null,null,null,"Cognitive skills  "]
[null,null,null,"Mapping with MQF Cluster of Learning Outcomes",null,null,null,"C3A",null,null,"C3E",null,null,null,null,null,null,null,null,null,null,null,null,null,null,null,null,null,null,null,null,null,null,null,"Interpersonal skills"]
[null,null,null,null,null,null,null,null,"C3C",null,null,null,null,null,null,null,null,null,null,null,null,null,null,null,null,null,null,null,null,null,null,null,null,null,"Communication Skills"]
[null,null,null,null,null,null,null,null,null,null,null,null,null,null,null,null,null,null,null,null,null,null,null,null,null,null,null,null,null,null,null,null,null,null,"Digital Skills"]
[null,null,null,null,null,null,null,null,null,null,null,null,null,null,null,null,null,null,null,null,null,null,null,null,null,null,null,null,null,null,null,null,null,null,"Numeracy Skills"]
[null,null,null,"Indicate the primary causal link between the CLO and PLO by ticking  '√' in the appropriate box.",null,null,null,null,null,null,null,null,null,null,null,null,null,null,null,null,null,null,null,null,null,null,null,null,null,null,null,null,null,null,"Leadership, Autonomy and Responsibility"]
[null,null,null,"C1 = Knowledge & Understanding, C2 = Cognitive Skills, C3A = Practical Skills, C3B = Interpersonal Skills, C3C = Communication Skills, C3D = Digital Skills,",null,null,null,null,null,null,null,null,null,null,null,null,null,null,null,null,null,null,null,null,null,null,null,null,null,null,null,null,null,null,"Personal Skills"]
[null,null,null,"C3E = Numeracy Skills, C3F = Leadership, Autonomy & Responsibility, C4A = Personal Skills, C4B = Entrepreneurial Skills, C5 = Ethics & Professionalism",null,null,null,null,null,null,null,null,null,null,null,null,null,null,null,null,null,null,null,null,null,null,null,null,null,null,null,null,null,null,"Entrepreneurial Skills"]
[null,null,null,null,null,null,null,null,null,null,null,null,null,null,null,null,null,null,null,null,null,null,null,null,null,null,null,null,null,null,null,null,null,null,"Ethics and Professionalism"]
[null,9,"Transferable Skills (if applicable)"]
[null,null,"(Skills learned in the course of study which can be useful and utilized in other settings)",null,null,null,null,null,1,"Communication Skills",null,null,null,null,null,null,null,null,null,null,null,null,null,null,null,null,null,null,null,null,null,null,null,null,"C1"]
[null,null,null,null,null,null,null,null,2,"Digital Skills",null,null,null,null,null,null,null,null,null,null,null,null,null,null,null,null,null,null,null,null,null,null,null,null,"C2"]
[null,null,null,null,null,null,null,null,3,"Ethics and Professionalism",null,null,null,null,null,null,null,null,null,null,null,null,null,null,null,null,null,null,null,null,null,null,null,null,"C3A"]
[null,null,null,null,null,null,null,null,"Open-ended response (if any)",null,null,null,null,null,null,null,null,null,null,null,null,null,null,null,null,null,null,null,null,null,null,null,null,null,"C3B"]
[null,null,null,null,null,null,null,null,4,null,null,null,null,null,null,null,null,null,null,null,null,null,null,null,null,null,null,null,null,null,null,null,null,null,"C3C"]
[null,null,null,null,null,null,null,null,null,null,null,null,null,null,null,null,null,null,null,null,null,null,null,null,null,null,null,null,null,null,null,null,null,null,"C3D"]
[null,null,null,null,null,null,null,null,null,null,null,null,null,null,null,null,null,null,null,null,null,null,null,null,null,null,null,"`",null,null,null,null,null,null,"C3E"]
[null,10,"Distribution of Student Learning Time (SLT)",null,null,null,null,null,null,null,null,null,null,null,null,null,null,null,null,null,null,null,null,null,null,null,null,null,null,null,null,null,null,null,"C3F"]
[null,null,"Note: This SLT calculation is designed for home grown programme only.",null,null,null,null,null,null,null,null,null,null,null,null,null,null,null,null,null,null,null,null,null,null,null,null,null,null,null,null,null,null,null,"C4A"]
[null,null,null,null,null,null,null,null,null,null,null,null,null,null,null,null,null,null,null,null,null,null,null,null,null,null,null,null,null,null,null,null,null,null,"C4B"]
[null,null,null,"Course Content Outline and Subtopics",null,null,null,null,null,null,"CLO*",null,"Learning and Teaching Activities**",null,null,null,null,null,null,null,null,null,null,"Total SLT",null,null,null,null,null,null,null,null,null,null,"C5"]
[null,null,null,null,null,null,null,null,null,null,null,null,"Face-to-Face (F2F)",null,null,null,null,null,null,null,"NF2F\nIndependent Learning\n(Asynchronous)"]
[null,null,null,null,null,null,null,null,null,null,null,null,"Physical",null,null,null,"Online/ Technology-mediated (Synchronous)"]
[null,null,null,null,null,null,null,null,null,null,null,null,"L","T","P","O","L","T","P","O"]
[null,null,null,1,"Developing a research topic\n-\tAttributes of a good Research Topic\n-\tRefining Research Ideas",null,null,null,null,null,"CLO1",null,null,null,null,null,null,2,null,null,5]
[null,null,null,2,"Conducting a literature review\n-\tFinding the parameters for the research study\n-\tThe Purpose of Critical Review of the Literature\n-\tBenefits of literature review",null,null,null,null,null,"CLO1, CLO2",null,null,null,null,null,null,2,null,null,5]
[null,null,null,3,"Research approach and strategy; research design\n-\tThe Research Philosophy",null,null,null,null,null,"CLO1, CLO2",null,null,null,null,null,null,1,null,null,6]
[null,null,null,4,"Theoretical framework and Hypotheses development\n-\tTypes of variables\n-\tFormat of Hypotheses",null,null,null,null,null,"CLO1, CLO2, CLO3",null,null,null,null,null,null,1,null,null,6]
[null,null,null,5,"Negotiating access and ethics",null,null,null,null,null,"CLO1, CLO2, CLO3",null,null,null,null,null,null,1,null,null,6]
[null,null,null,6,"Sampling\n-\tTypes of sampling \n-\tThe Sample Size",null,null,null,null,null,"CLO1, CLO2, CLO3",null,null,null,null,null,null,1,null,null,6]
[null,null,null,7,"Using secondary data ",null,null,null,null,null,"CLO1, CLO2, CLO3",null,null,null,null,null,null,1,null,null,6]
[null,null,null,8,"Collecting primary data - observation and interview",null,null,null,null,null,"CLO1, CLO2, CLO3",null,null,null,null,null,null,1,null,null,6]
[null,null,null,9,"Collecting primary data - questionnaire",null,null,null,null,null,"CLO1, CLO2, CLO3",null,null,null,null,null,null,1,null,null,6]
[null,null,null,10,"Analysing quantitative data and qualitative data",null,null,null,null,null,"CLO1, CLO2, CLO3",null,null,null,null,null,null,1,null,null,6]
[null,null,null,{"$f":"D69+1","v":11},"Writing up and presenting project report",null,null,null,null,null,"CLO1, CLO2, CLO3",null,null,null,null,null,null,1,null,null,6]
[null,null,null,{"$f":"D70+1","v":12},"Overview qualitative research and quantitative research",null,null,null,null,null,"CLO1, CLO2, CLO3",null,null,null,null,null,null,1,null,null,6]
[null,null,null,13]
[null,null,null,14]
[null,null,null,15]
[null,null,null,16]
[null,null,null,17]
[null,null,null,18]
[null,null,null,19]
[null,null,null,20]
[null,null,null,"SUB-TOTAL SLT: ",null,null,null,null,null,null,null,null,null,null,null,null,null,null,null,null,null,null,null,{"$f":"SUM(M60:P79)+SUM(Q60:T79)+SUM(U60:W79)","v":84}]
[null,null,null,"Continous Assessement",null,null,null,null,null,null,"%",null,"Face-to-Face (F2F)",null,null,null,null,null,null,null,"NF2F\nIndependent Learning for Assessment (Asynchronous)"]
[null,null,null,null,null,null,null,null,null,null,null,null,"Physical",null,null,null,"Online/ Technology-mediated (Synchronous)"]
[null,null,null,1,"Assignment 1 - Initial Proposal",null,null,null,null,null,20,null,null,null,null,null,null,null,null,null,6]
[null,null,null,2,"Assignment 2 - Chapter 1, 2 & 3",null,null,null,null,null,20,null,null,null,null,null,null,null,null,null,6]
[null,null,null,3,"Assignment 3",null,null,null,null,null,20,null,null,null,null,null,2,null,null,null,9]
[null,null,null,4,"Individual Presentation",null,null,null,null,null,10,null,null,null,null,null,1,null,null,null,2]
[null,null,null,5]
[null,null,null,"SUB-TOTAL SLT: ",null,null,null,null,null,null,null,null,null,null,null,null,null,null,null,null,null,null,null,{"$f":"SUM(M83:W87)","v":26}]
[null,null,null,"Final Assessement",null,null,null,null,null,null,"%",null,"Face-to-Face (F2F)",null,null,null,null,null,null,null,"NF2F\nIndependent Learning for Assessment (Asynchronous)"]
[null,null,null,null,null,null,null,null,null,null,null,null,"Physical",null,null,null,"Online/ Technology-mediated (Synchronous)"]
[null,null,null,1,"Final Exam ",null,null,null,null,null,30,null,null,null,null,null,null,null,null,null,10]
[null,null,null,2]
[null,null,null,3]
[null,null,null,4]
[null,null,null,5]
[null,null,null,"SUB-TOTAL SLT: ",null,null,null,null,null,null,null,null,null,null,null,null,null,null,null,null,null,null,null,{"$f":"SUM(M91:W95)","v":10}]
[]
[null,null,null,"SLT for Assessment:",null,null,null,null,null,null,null,null,null,null,null,null,null,null,null,null,null,null,null,{"$f":"X88+X96","v":36}]
[null,null,null,"GRAND TOTAL SLT:",null,null,null,null,null,null,null,null,null,null,null,null,null,null,null,null,null,null,null,{"$f":"X98+X80","v":120}]
[null,null,null,"A","% SLT for F2F Physical Component: \n[Total F2F Physical /(Total F2F Physical + Total F2F Online + Total Independent Learning) x 100)]",null,null,null,null,null,null,null,null,null,null,null,null,null,null,null,null,null,null,{"$f":"IFERROR(((SUM(M60:P79)+SUM(M83:P87)+SUM(M91:P95))/X99)* 100,\"\")","v":0}]
[]
[null,null,null,"B","% SLT for Online & Independent Learning Component:\n[(Total F2F Online + Total Independent Learning) /( Total F2F Physical + Total F2F Online + Total Independent Learning) x 100]",null,null,null,null,null,null,null,null,null,null,null,null,null,null,null,null,null,null,{"$f":"IFERROR((SUM(Q60:W79)+SUM(Q83:W87) + SUM(Q91:W95))/X99 * 100,\"\")","v":100}]
[null,null,null,"C","% SLT for All Practical Component:\n[% F2F Physical Practical + % F2F Online Practical]",null,null,null,null,null,null,null,null,null,null,null,null,null,null,null,null,null,null,{"$f":"IFERROR(X104+X105,\"\")","v":0}]
[null,null,null,"C1","% SLT for F2F Physical Practical Component\n[Total F2F Physical Practical /( Total F2F Physical + Total F2F Online + Total Independent Learning)  x 100)]",null,null,null,null,null,null,null,null,null,null,null,null,null,null,null,null,null,null,{"$f":"IFERROR(SUM(O60:O79)/X99*100,\"\")","v":0}]
[null,null,null,"C2","% SLT for F2F Online Practical Component\n[Total F2F Online Practical / (Total F2F Physical + Total F2F Online + Total Independent Learning) x 100]",null,null,null,null,null,null,null,null,null,null,null,null,null,null,null,null,null,null,{"$f":"IFERROR(SUM(S60:S79)/X99 *100,\"\")","v":0}]
[null,null,null,null,null,null,null,null,null,null,null,null,null,null,null,null,null,null,null,null,null,null,null,null,null,{"$f":"IFERROR(X102+X104,\"\")","v":100}]
[null,null,null,"Please  tick (√) if this course is Industrial Training/ Clinical Placement/ Practicum using 50% of Effective Learning Time (ELT)"]
[null,null,null,"Note: "]
[null,null,null,"* Indicate the CLO based on the CLO's numbering in Item 8"]
[null,null,null,"** For ODL programme: Courses with mandatory practical requiremnets imposed by the programme standards or any related standards can be exempted from complying to the minimum 80% ODL delivery rule in the SLT."]
[]
[null,11,"Identify special requirement or resources to deliver the course (e.g., software, nursery, computer lab, simulation room etc)"]
[]
[null,12,"References (include required and further readings, and should be the most current)",null,null,null,null,null,null,null,"1. Pamelo S. Schinder (2019). Business Research Methods, 13th Edition, McGraw-Hill, New York.\n2. Uma Sekaran & Roger Bougie (2016). Research Methods for Business, 7th edition, UK: WILEY.                                                                                                                                                                                                                                                                                   3. Jonathhan Wilson (2014).  Essentials of Business Research, A Guide to Doing your Research Project, 2nd edition, Singapore:SAGE.                                                                               \n4.  Mark Saunders, Philip Lewis & Adrian Thornhill (2012). Research Methods for Business Students, 6th edition, UK:Prentice Hall.                      "]
[]
[null,13,"Other additional information (if applicable)"]
[]
[]
[null,null,"Note: Number of PLO indicated is purely for illustration purposes only and the number is subjected to the curriculum design."]

{"sheet":"OBM4408","index":7,"n_rows":119,"n_cols":35,"rows_kept":119,"cut":false,"hidden":false,"merged":[[8,1,10,1],[8,2,10,4],[8,6,8,27],[9,6,9,27],[10,6,10,27],[3,2,3,4],[3,5,3,27],[4,2,4,4],[4,5,4,27],[5,2,5,4],[5,5,5,27],[11,2,11,4],[11,5,11,7],[11,9,11,10],[11,12,11,27],[12,2,12,4],[12,5,12,7],[6,2,6,4],[6,5,6,11],[7,2,7,4],[7,5,7,27],[13,2,13,4],[13,5,13,27],[15,2,22,4],[15,5,15,6],[15,7,15,26],[16,5,16,6],[16,7,16,26],[17,5,17,6],[17,7,17,26],[18,5,18,6],[22,5,22,6],[22,7,22,26],[24,2,24,27],[26,3,27,4],[26,5,26,16],[26,17,27,21],[26,22,27,25],[18,7,18,26],[19,5,19,6],[19,7,19,26],[20,5,20,6],[20,7,20,26],[21,5,21,6],[21,7,21,26],[30,3,30,4],[30,17,30,21],[30,22,30,25],[31,3,31,4],[31,17,31,21],[31,22,31,25],[28,3,28,4],[28,17,28,21],[28,22,28,25],[29,3,29,4],[29,17,29,21],[29,22,29,25],[34,3,34,4],[34,17,34,21],[34,22,34,25],[35,3,35,4],[35,17,35,21],[35,22,35,25],[32,3,32,4],[32,17,32,21],[32,22,32,25],[33,3,33,4],[33,17,33,21],[33,22,33,25],[42,3,42,25],[44,2,44,7],[45,2,46,7],[45,9,45,25],[46,9,46,25],[47,9,47,25],[36,3,38,4],[36,17,36,21],[37,17,37,21],[38,17,38,21],[40,3,40,25],[41,3,41,25],[56,20,58,22],[57,12,57,15],[57,16,57,19],[59,4,59,9],[59,10,59,11],[59,20,59,22],[48,8,48,25],[49,8,50,8],[49,9,50,25],[52,2,52,27],[53,2,53,26],[55,3,58,9],[55,10,58,11],[55,12,55,22],[55,23,58,25],[56,12,56,19],[59,23,59,25],[60,4,60,9],[60,10,60,11],[60,20,60,22],[60,23,60,25],[61,4,61,9],[61,10,61,11],[61,20,61,22],[61,23,61,25],[64,4,64,9],[64,10,64,11],[64,20,64,22],[64,23,64,25],[65,4,65,9],[65,10,65,11],[65,20,65,22],[65,23,65,25],[62,4,62,9],[62,10,62,11],[62,20,62,22],[62,23,62,25],[63,4,63,9],[63,10,63,11],[63,20,63,22],[63,23,63,25],[68,4,68,9],[68,10,68,11],[68,20,68,22],[68,23,68,25],[69,4,69,9],[69,20,69,22],[66,4,66,9],[66,10,66,11],[66,20,66,22],[66,23,66,25],[67,4,67,9],[67,10,67,11],[67,20,67,22],[67,23,67,25],[74,4,74,9],[74,10,74,11],[74,20,74,22],[74,23,74,25],[75,4,75,9],[75,10,75,11],[75,20,75,22],[75,23,75,25],[70,4,70,9],[70,10,70,11],[70,20,70,22],[71,4,71,9],[72,4,72,9],[73,4,73,9],[78,23,78,25],[79,3,79,22],[79,23,79,25],[76,4,76,9],[76,10,76,11],[76,20,76,22],[76,23,76,25],[77,4,77,9],[77,10,77,11],[77,20,77,22],[77,23,77,25],[80,3,81,9],[80,10,81,11],[80,12,80,19],[80,20,81,22],[81,12,81,15],[81,16,81,19],[78,4,78,9],[78,10,78,11],[78,20,78,22],[82,4,82,9],[82,10,82,11],[82,12,82,15],[82,16,82,19],[82,20,82,22],[83,4,83,9],[83,10,83,11],[83,12,83,15],[83,16,83,19],[83,20,83,22],[84,4,84,9],[84,10,84,11],[84,12,84,15],[84,16,84,19],[84,20,84,22],[85,4,85,9],[85,10,85,11],[85,12,85,15],[85,16,85,19],[85,20,85,22],[87,23,87,25],[88,3,89,9],[88,10,89,11],[88,12,88,19],[88,20,89,22],[89,12,89,15],[89,16,89,19],[86,4,86,9],[86,10,86,11],[86,12,86,15],[86,16,86,19],[86,20,86,22],[87,3,87,22],[90,4,90,9],[90,10,90,11],[90,12,90,15],[90,16,90,19],[90,20,90,22],[91,4,91,9],[91,10,91,11],[91,12,91,15],[91,16,91,19],[91,20,91,22],[92,4,92,9],[92,10,92,11],[92,12,92,15],[92,16,92,19],[92,20,92,22],[93,4,93,9],[93,10,93,11],[93,12,93,15],[93,16,93,19],[93,20,93,22],[95,23,95,25],[97,3,97,22],[97,23,97,25],[98,3,98,22],[98,23,98,25],[99,3,100,3],[99,4,100,22],[99,23,100,25],[94,4,94,9],[94,10,94,11],[94,12,94,15],[94,16,94,19],[94,20,94,22],[95,3,95,22],[104,4,104,22],[104,23,104,25],[106,3,106,22],[106,23,106,25],[108,3,108,25],[109,3,109,25],[101,4,101,22],[101,23,101,25],[102,4,102,22],[102,23,102,25],[103,4,103,22],[103,23,103,25],[115,1,116,1],[115,2,116,9],[115,10,116,27],[118,2,118,27],[119,1,119,27],[110,3,110,22],[111,1,112,1],[111,2,112,9],[111,10,112,27],[113,1,114,1],[113,2,114,9],[113,10,114,27]]}
[]
[null,"Back To FORM @ TEMPLATE"]
[null,null,null,null,null,null,null,null,null,null,null,null,null,null,null,null,null,null,null,null,null,null,null,null,null,null,null,null,null,null,null,null,null,null,"√"]
[]
[null,1,"Course Name:",null,null,"Managing Change and Innovation",null,null,null,null,null,null,null,null,null,null,null,null,null,null,null,null,null,null,null,null,null,null,null,null,null,null,null,null,"Semester"]
[null,null,"Course Code:",null,null,"OBM4408",null,null,null,null,null,null,null,null,null,null,null,null,null,null,null,null,null,null,null,null,null,null,null,null,null,null,null,null,1]
[null,null,"Course Classification:",null,null,"Major (core) ",null,null,null,null,null,null,null,null,null,null,null,null,null,null,null,null,null,null,null,null,null,null,null,null,null,null,null,null,2]
[null,2,"Synopsis:",null,null,"This module introduces the nature of environmental change and how organisations are affected by it.  Organisations respond to the environmental changes in their strategies, structures, systems, people and cultures.  Organisations that are successful, have developed or found key  success factors or critical factors. They bring about changes and managing them and the creationof innovations for competitive advantages in the industries they are in.",null,null,null,null,null,null,null,null,null,null,null,null,null,null,null,null,null,null,null,null,null,null,null,null,null,null,null,null,3]
[null,{"$f":"B8+1","v":3},"Name(s) of Academic Staff:",null,null,1,"Sujatha Balakrishna"]
[null,null,null,null,null,2,"Dr.Gan Joo Kong",null,null,null,null,null,null,null,null,null,null,null,null,null,null,null,null,null,null,null,null,null,null,null,null,null,null,null,"Year Offered"]
[null,null,null,null,null,3,null,null,null,null,null,null,null,null,null,null,null,null,null,null,null,null,null,null,null,null,null,null,null,null,null,null,null,null,1]
[null,{"$f":"B9+1","v":4},"Semester and Year offered:",null,null,"Year Offered",null,null,1,"Semester",null,1,"Remarks:",null,null,null,null,null,null,null,null,null,null,null,null,null,null,null,null,null,null,null,null,null,2]
[null,{"$f":"B12+1","v":5},"Credit Value:",null,null,{"$f":"IF(X107 =\"√\",INT(X99/80),INT(X99/40))","v":3},null,null,3,null,null,null,null,null,null,null,null,null,null,null,null,null,null,null,null,null,null,null,null,null,null,null,null,null,3]
[null,6,"Pre-requisite/ co-requisite (if any):",null,null,"Nil",null,null,null,null,null,null,null,null,null,null,null,null,null,null,null,null,null,null,null,null,null,null,null,null,null,null,null,null,4]
[null,null,null,null,null,null,null,null,null,null,null,null,null,null,null,null,null,null,null,null,null,null,null,null,null,null,null,null,null,null,null,null,null,null,5]
[null,7,"Course Learning Outcomes (CLO)",null,null,"CLO1",null,"Distinguish the concepts of change of the elements in the external, internal and temporal environments and the possible ways by which organisations respond to the forces of change  in the environments. (C2, PLO1)",null,null,null,null,null,null,null,null,null,null,null,null,null,null,null,null,null,null,null,null,null,null,null,null,null,null,6]
[null,null,null,null,null,"CLO2",null,"Explain the fundamental importance of organisational changes in term of its strategies, structure, systems, power and politics, and culture. (C4, PLO7)",null,null,null,null,null,null,null,null,null,null,null,null,null,null,null,null,null,null,null,null,null,null,null,null,null,null,7]
[null,null,null,null,null,"CLO3",null,"Able to transfer the knowledge to enable  an organisation  to maintain its stability in the face of challenges from the environment. (C5, PLO2)",null,null,null,null,null,null,null,null,null,null,null,null,null,null,null,null,null,null,null,null,null,null,null,null,null,null,8]
[]
[null,null,null,null,null,null,null,null,null,null,null,null,null,null,null,null,null,null,null,null,null,null,null,null,null,null,null,null,null,null,null,null,null,null,"Compulsory"]
[null,null,null,null,null,null,null,null,null,null,null,null,null,null,null,null,null,null,null,null,null,null,null,null,null,null,null,null,null,null,null,null,null,null,"Major (core) "]
[null,null,null,null,null,null,null,null,null,null,null,null,null,null,null,null,null,null,null,null,null,null,null,null,null,null,null,null,null,null,null,null,null,null,"Minor"]
[null,null,null,null,null,null,null,null,null,null,null,null,null,null,null,null,null,null,null,null,null,null,null,null,null,null,null,null,null,null,null,null,null,null,"Elective (core) "]
[null,null,null,null,null,null,null,null,null,null,null,null,null,null,null,null,null,null,null,null,null,null,null,null,null,null,null,null,null,null,null,null,null,null,"Elective (open/free)"]
[null,8,"Mapping of the Course Learning Outcomes to the Programme Learning Outcomes, Teaching Methods and Assessment Methods"]
[]
[null,null,null,"Course Learning Outcomes",null,"Programme Learning Outcomes (PLO)",null,null,null,null,null,null,null,null,null,null,null,"Teaching Methods",null,null,null,null,"Assessment Methods"]
[null,null,null,null,null,"PLO 1","PLO 2","PLO 3","PLO 4","PLO 5","PLO 6","PLO 7","PLO 8","PLO 9","PLO 10","PLO 11"]
[null,null,null,{"$f":"IF(ISBLANK(F16),\"\",F16)","v":"CLO1"},null,"√",null,null,null,null,null,null,null,null,null,null,null,"Online Techonology Mediated Video Based Learning             Tutorial",null,null,null,null,"Assignment 1, Final Exam"]
[null,null,null,{"$f":"IF(ISBLANK(F17),\"\",F17)","v":"CLO2"},null,null,null,null,null,null,null,"√",null,null,null,null,null,"Online Techonology Mediated Video Based Learning             Tutorial",null,null,null,null,"Assignment 2, Final Exam"]
[null,null,null,"CLO3",null,null,"√",null,null,null,null,null,null,null,null,null,null,"Online Techonology Mediated Video Based Learning             Tutorial",null,null,null,null,"Group Assignment, Final Exam"]
[null,null,null,""]
[null,null,null,""]
[null,null,null,""]
[null,null,null,""]
[null,null,null,"",null,null,null,null,null,null,null,null,null,null,null,null,null,null,null,null,null,null,null,null,null,null,null,null,null,null,null,null,null,null,"Cognitive skills  "]
[null,null,null,"Mapping with MQF Cluster of Learning Outcomes",null,"C1",null,null,null,null,null,null,null,null,null,null,null,null,null,null,null,null,null,null,null,null,null,null,null,null,null,null,null,null,"Interpersonal skills"]
[null,null,null,null,null,null,null,null,null,null,null,"C3F",null,null,null,null,null,null,null,null,null,null,null,null,null,null,null,null,null,null,null,null,null,null,"Communication Skills"]
[null,null,null,null,null,null,"C2",null,null,null,null,"C5",null,null,null,null,null,null,null,null,null,null,null,null,null,null,null,null,null,null,null,null,null,null,"Digital Skills"]
[null,null,null,null,null,null,null,null,null,null,null,null,null,null,null,null,null,null,null,null,null,null,null,null,null,null,null,null,null,null,null,null,null,null,"Numeracy Skills"]
[null,null,null,"Indicate the primary causal link between the CLO and PLO by ticking  '√' in the appropriate box.",null,null,null,null,null,null,null,null,null,null,null,null,null,null,null,null,null,null,null,null,null,null,null,null,null,null,null,null,null,null,"Leadership, Autonomy and Responsibility"]
[null,null,null,"C1 = Knowledge & Understanding, C2 = Cognitive Skills, C3A = Practical Skills, C3B = Interpersonal Skills, C3C = Communication Skills, C3D = Digital Skills,",null,null,null,null,null,null,null,null,null,null,null,null,null,null,null,null,null,null,null,null,null,null,null,null,null,null,null,null,null,null,"Personal Skills"]
[null,null,null,"C3E = Numeracy Skills, C3F = Leadership, Autonomy & Responsibility, C4A = Personal Skills, C4B = Entrepreneurial Skills, C5 = Ethics & Professionalism",null,null,null,null,null,null,null,null,null,null,null,null,null,null,null,null,null,null,null,null,null,null,null,null,null,null,null,null,null,null,"Entrepreneurial Skills"]
[null,null,null,null,null,null,null,null,null,null,null,null,null,null,null,null,null,null,null,null,null,null,null,null,null,null,null,null,null,null,null,null,null,null,"Ethics and Professionalism"]
[null,9,"Transferable Skills (if applicable)"]
[null,null,"(Skills learned in the course of study which can be useful and utilized in other settings)",null,null,null,null,null,1,"Leadership, Autonomy and Responsibility",null,null,null,null,null,null,null,null,null,null,null,null,null,null,null,null,null,null,null,null,null,null,null,null,"C1"]
[null,null,null,null,null,null,null,null,2,"Interpersonal skills",null,null,null,null,null,null,null,null,null,null,null,null,null,null,null,null,null,null,null,null,null,null,null,null,"C2"]
[null,null,null,null,null,null,null,null,3,"Personal Skills",null,null,null,null,null,null,null,null,null,null,null,null,null,null,null,null,null,null,null,null,null,null,null,null,"C3A"]
[null,null,null,null,null,null,null,null,"Open-ended response (if any)",null,null,null,null,null,null,null,null,null,null,null,null,null,null,null,null,null,null,null,null,null,null,null,null,null,"C3B"]
[null,null,null,null,null,null,null,null,4,null,null,null,null,null,null,null,null,null,null,null,null,null,null,null,null,null,null,null,null,null,null,null,null,null,"C3C"]
[null,null,null,null,null,null,null,null,null,null,null,null,null,null,null,null,null,null,null,null,null,null,null,null,null,null,null,null,null,null,null,null,null,null,"C3D"]
[null,null,null,null,null,null,null,null,null,null,null,null,null,null,null,null,null,null,null,null,null,null,null,null,null,null,null,"`",null,null,null,null,null,null,"C3E"]
[null,10,"Distribution of Student Learning Time (SLT)",null,null,null,null,null,null,null,null,null,null,null,null,null,null,null,null,null,null,null,null,null,null,null,null,null,null,null,null,null,null,null,"C3F"]
[null,null,"Note: This SLT calculation is designed for home grown programme only.",null,null,null,null,null,null,null,null,null,null,null,null,null,null,null,null,null,null,null,null,null,null,null,null,null,null,null,null,null,null,null,"C4A"]
[null,null,null,null,null,null,null,null,null,null,null,null,null,null,null,null,null,null,null,null,null,null,null,null,null,null,null,null,null,null,null,null,null,null,"C4B"]
[null,null,null,"Course Content Outline and Subtopics",null,null,null,null,null,null,"CLO*",null,"Learning and Teaching Activities**",null,null,null,null,null,null,null,null,null,null,"Total SLT",null,null,null,null,null,null,null,null,null,null,"C5"]
[null,null,null,null,null,null,null,null,null,null,null,null,"Face-to-Face (F2F)",null,null,null,null,null,null,null,"NF2F\nIndependent Learning\n(Asynchronous)"]
[null,null,null,null,null,null,null,null,null,null,null,null,"Physical",null,null,null,"Online/ Technology-mediated (Synchronous)"]
[null,null,null,null,null,null,null,null,null,null,null,null,"L","T","P","O","L","T","P","O"]
[null,null,null,1,"Organisations and their changing environments",null,null,null,null,null,1,null,null,null,null,null,null,1,null,null,5]
[null,null,null,2,"The nature and causes of organisational change",null,null,null,null,null,1,null,null,null,null,null,null,2,null,null,10]
[null,null,null,3,"Strategy and structure of change",null,null,null,null,null,2,null,null,null,null,null,null,1,null,null,5]
[null,null,null,4,"Culture for change",null,null,null,null,null,2,null,null,null,null,null,null,1,null,null,5]
[null,null,null,5,"The politics of change",null,null,null,null,null,2,null,null,null,null,null,null,1,null,null,5]
[null,null,null,6,"The leadership of change",null,null,null,null,null,2,null,null,null,null,null,null,2,null,null,10]
[null,null,null,7,"Strategies for managing change - Soft and hard complexity",null,null,null,null,null,3,null,null,null,null,null,null,2,null,null,10]
[null,null,null,8,"Factors of success",null,null,null,null,null,3,null,null,null,null,null,null,1,null,null,5]
[null,null,null,9,"Managing innovation",null,null,null,null,null,3,null,null,null,null,null,null,1,null,null,5]
[null,null,null,10,"Capturing the benefits of innovation",null,null,null,null,null,3,null,null,null,null,null,null,1,null,null,5]
[null,null,null,{"$f":"D69+1","v":11},"Incremental innovation",null,null,null,null,null,null,3,null,null,null,null,null,1,null,null,5]
[null,null,null,{"$f":"D70+1","v":12}]
[null,null,null,13]
[null,null,null,14]
[null,null,null,15]
[null,null,null,16]
[null,null,null,17]
[null,null,null,18]
[null,null,null,19]
[null,null,null,20]
[null,null,null,"SUB-TOTAL SLT: ",null,null,null,null,null,null,null,null,null,null,null,null,null,null,null,null,null,null,null,{"$f":"SUM(M60:P79)+SUM(Q60:T79)+SUM(U60:W79)","v":84}]
[null,null,null,"Continous Assessement",null,null,null,null,null,null,"%",null,"Face-to-Face (F2F)",null,null,null,null,null,null,null,"NF2F\nIndependent Learning for Assessment (Asynchronous)"]
[null,null,null,null,null,null,null,null,null,null,null,null,"Physical",null,null,null,"Online/ Technology-mediated (Synchronous)"]
[null,null,null,1,"2 individual assessments",null,null,null,null,null,40,null,null,null,null,null,null,null,null,null,16]
[null,null,null,2,"1 group assessment",null,null,null,null,null,30,null,null,null,null,null,null,null,null,null,10]
[null,null,null,3]
[null,null,null,4]
[null,null,null,5]
[null,null,null,"SUB-TOTAL SLT: ",null,null,null,null,null,null,null,null,null,null,null,null,null,null,null,null,null,null,null,{"$f":"SUM(M83:W87)","v":26}]
[null,null,null,"Final Assessement",null,null,null,null,null,null,"%",null,"Face-to-Face (F2F)",null,null,null,null,null,null,null,"NF2F\nIndependent Learning for Assessment (Asynchronous)"]
[null,null,null,null,null,null,null,null,null,null,null,null,"Physical",null,null,null,"Online/ Technology-mediated (Synchronous)"]
[null,null,null,1,"Final Examination",null,null,null,null,null,30,null,null,null,null,null,2,null,null,null,8]
[null,null,null,2]
[null,null,null,3]
[null,null,null,4]
[null,null,null,5]
[null,null,null,"SUB-TOTAL SLT: ",null,null,null,null,null,null,null,null,null,null,null,null,null,null,null,null,null,null,null,{"$f":"SUM(M91:W95)","v":10}]
[]
[null,null,null,"SLT for Assessment:",null,null,null,null,null,null,null,null,null,null,null,null,null,null,null,null,null,null,null,{"$f":"X88+X96","v":36}]
[null,null,null,"GRAND TOTAL SLT:",null,null,null,null,null,null,null,null,null,null,null,null,null,null,null,null,null,null,null,{"$f":"X98+X80","v":120}]
[null,null,null,"A","% SLT for F2F Physical Component: \n[Total F2F Physical /(Total F2F Physical + Total F2F Online + Total Independent Learning) x 100)]",null,null,null,null,null,null,null,null,null,null,null,null,null,null,null,null,null,null,{"$f":"IFERROR(((SUM(M60:P79)+SUM(M83:P87)+SUM(M91:P95))/X99)* 100,\"\")","v":0}]
[]
[null,null,null,"B","% SLT for Online & Independent Learning Component:\n[(Total F2F Online + Total Independent Learning) /( Total F2F Physical + Total F2F Online + Total Independent Learning) x 100]",null,null,null,null,null,null,null,null,null,null,null,null,null,null,null,null,null,null,{"$f":"IFERROR((SUM(Q60:W79)+SUM(Q83:W87) + SUM(Q91:W95))/X99 * 100,\"\")","v":100}]
[null,null,null,"C","% SLT for All Practical Component:\n[% F2F Physical Practical + % F2F Online Practical]",null,null,null,null,null,null,null,null,null,null,null,null,null,null,null,null,null,null,{"$f":"IFERROR(X104+X105,\"\")","v":0}]
[null,null,null,"C1","% SLT for F2F Physical Practical Component\n[Total F2F Physical Practical /( Total F2F Physical + Total F2F Online + Total Independent Learning)  x 100)]",null,null,null,null,null,null,null,null,null,null,null,null,null,null,null,null,null,null,{"$f":"IFERROR(SUM(O60:O79)/X99*100,\"\")","v":0}]
[null,null,null,"C2","% SLT for F2F Online Practical Component\n[Total F2F Online Practical / (Total F2F Physical + Total F2F Online + Total Independent Learning) x 100]",null,null,null,null,null,null,null,null,null,null,null,null,null,null,null,null,null,null,{"$f":"IFERROR(SUM(S60:S79)/X99 *100,\"\")","v":0}]
[null,null,null,null,null,null,null,null,null,null,null,null,null,null,null,null,null,null,null,null,null,null,null,null,null,{"$f":"IFERROR(X102+X104,\"\")","v":100}]
[null,null,null,"Please  tick (√) if this course is Industrial Training/ Clinical Placement/ Practicum using 50% of Effective Learning Time (ELT)"]
[null,null,null,"Note: "]
[null,null,null,"* Indicate the CLO based on the CLO's numbering in Item 8"]
[null,null,null,"** For ODL programme: Courses with mandatory practical requiremnets imposed by the programme standards or any related standards can be exempted from complying to the minimum 80% ODL delivery rule in the SLT."]
[]
[null,11,"Identify special requirement or resources to deliver the course (e.g., software, nursery, computer lab, simulation room etc)"]
[]
[null,12,"References (include required and further readings, and should be the most current)",null,null,null,null,null,null,null,"1. Senior, B. & Swailer, T. & Carnall, C. (2020). Organisational Change (6th Edition), Pearson Education                     2. Patrick Dawson & Constantine Andriopoulos (2021). Managing Change, Creativity and Innovation, (4th Edition),   London SAGE."]
[]
[null,13,"Other additional information (if applicable)"]
[]
[]
[null,null,"Note: Number of PLO indicated is purely for illustration purposes only and the number is subjected to the curriculum design."]

{"sheet":"OBM4401","index":8,"n_rows":119,"n_cols":35,"rows_kept":119,"cut":false,"hidden":false,"merged":[[8,1,10,1],[8,2,10,4],[8,6,8,27],[9,6,9,27],[10,6,10,27],[3,2,3,4],[3,5,3,27],[4,2,4,4],[4,5,4,27],[5,2,5,4],[5,5,5,27],[11,2,11,4],[11,5,11,7],[11,9,11,10],[11,12,11,27],[12,2,12,4],[12,5,12,7],[6,2,6,4],[6,5,6,11],[7,2,7,4],[7,5,7,27],[13,2,13,4],[13,5,13,27],[15,2,22,4],[15,5,15,6],[15,7,15,26],[16,5,16,6],[16,7,16,26],[17,5,17,6],[17,7,17,26],[18,5,18,6],[22,5,22,6],[22,7,22,26],[24,2,24,27],[26,3,27,4],[26,5,26,16],[26,17,27,21],[26,22,27,25],[18,7,18,26],[19,5,19,6],[19,7,19,26],[20,5,20,6],[20,7,20,26],[21,5,21,6],[21,7,21,26],[30,3,30,4],[30,17,30,21],[30,22,30,25],[31,3,31,4],[31,17,31,21],[31,22,31,25],[28,3,28,4],[28,17,28,21],[28,22,28,25],[29,3,29,4],[29,17,29,21],[29,22,29,25],[34,3,34,4],[34,17,34,21],[34,22,34,25],[35,3,35,4],[35,17,35,21],[35,22,35,25],[32,3,32,4],[32,17,32,21],[32,22,32,25],[33,3,33,4],[33,17,33,21],[33,22,33,25],[42,3,42,25],[44,2,44,7],[45,2,46,7],[45,9,45,25],[46,9,46,25],[47,9,47,25],[36,3,38,4],[36,17,36,21],[37,17,37,21],[38,17,38,21],[40,3,40,25],[41,3,41,25],[56,20,58,22],[57,12,57,15],[57,16,57,19],[59,4,59,9],[59,10,59,11],[59,20,59,22],[48,8,48,25],[49,8,50,8],[49,9,50,25],[52,2,52,27],[53,2,53,26],[55,3,58,9],[55,10,58,11],[55,12,55,22],[55,23,58,25],[56,12,56,19],[59,23,59,25],[60,4,60,9],[60,10,60,11],[60,20,60,22],[60,23,60,25],[61,4,61,9],[61,10,61,11],[61,20,61,22],[61,23,61,25],[64,4,64,9],[64,10,64,11],[64,20,64,22],[64,23,64,25],[65,4,65,9],[65,10,65,11],[65,20,65,22],[65,23,65,25],[62,4,62,9],[62,10,62,11],[62,20,62,22],[62,23,62,25],[63,4,63,9],[63,10,63,11],[63,20,63,22],[63,23,63,25],[68,23,68,25],[69,4,69,9],[69,10,69,11],[69,20,69,22],[66,4,66,9],[66,10,66,11],[66,20,66,22],[66,23,66,25],[67,4,67,9],[67,10,67,11],[67,20,67,22],[67,23,67,25],[70,4,70,9],[70,20,70,22],[71,4,71,9],[71,20,71,22],[72,4,72,9],[72,20,72,22],[68,4,68,9],[68,10,68,11],[68,20,68,22],[73,4,73,9],[74,4,74,9],[74,10,74,11],[74,20,74,22],[74,23,74,25],[75,4,75,9],[75,10,75,11],[75,20,75,22],[75,23,75,25],[78,23,78,25],[79,3,79,22],[79,23,79,25],[76,4,76,9],[76,10,76,11],[76,20,76,22],[76,23,76,25],[77,4,77,9],[77,10,77,11],[77,20,77,22],[77,23,77,25],[80,3,81,9],[80,10,81,11],[80,12,80,19],[80,20,81,22],[81,12,81,15],[81,16,81,19],[78,4,78,9],[78,10,78,11],[78,20,78,22],[82,4,82,9],[82,10,82,11],[82,12,82,15],[82,16,82,19],[82,20,82,22],[83,4,83,9],[83,10,83,11],[83,12,83,15],[83,16,83,19],[83,20,83,22],[84,4,84,9],[84,10,84,11],[84,12,84,15],[84,16,84,19],[84,20,84,22],[85,4,85,9],[85,10,85,11],[85,12,85,15],[85,16,85,19],[85,20,85,22],[87,23,87,25],[88,3,89,9],[88,10,89,11],[88,12,88,19],[88,20,89,22],[89,12,89,15],[89,16,89,19],[86,4,86,9],[86,10,86,11],[86,12,86,15],[86,16,86,19],[86,20,86,22],[87,3,87,22],[90,4,90,9],[90,10,90,11],[90,12,90,15],[90,16,90,19],[90,20,90,22],[91,4,91,9],[91,10,91,11],[91,12,91,15],[91,16,91,19],[91,20,91,22],[92,4,92,9],[92,10,92,11],[92,12,92,15],[92,16,92,19],[92,20,92,22],[93,4,93,9],[93,10,93,11],[93,12,93,15],[93,16,93,19],[93,20,93,22],[95,23,95,25],[97,3,97,22],[97,23,97,25],[98,3,98,22],[98,23,98,25],[99,3,100,3],[99,4,100,22],[99,23,100,25],[94,4,94,9],[94,10,94,11],[94,12,94,15],[94,16,94,19],[94,20,94,22],[95,3,95,22],[104,4,104,22],[104,23,104,25],[106,3,106,22],[106,23,106,25],[108,3,108,25],[109,3,109,25],[101,4,101,22],[101,23,101,25],[102,4,102,22],[102,23,102,25],[103,4,103,22],[103,23,103,25],[115,1,116,1],[115,2,116,9],[115,10,116,27],[118,2,118,27],[119,1,119,27],[110,3,110,22],[111,1,112,1],[111,2,112,9],[111,10,112,27],[113,1,114,1],[113,2,114,9],[113,10,114,27]]}
[]
[null,"Back To FORM @ TEMPLATE"]
[null,null,null,null,null,null,null,null,null,null,null,null,null,null,null,null,null,null,null,null,null,null,null,null,null,null,null,null,null,null,null,null,null,null,"√"]
[]
[null,1,"Course Name:",null,null,"Organisational Management",null,null,null,null,null,null,null,null,null,null,null,null,null,null,null,null,null,null,null,null,null,null,null,null,null,null,null,null,"Semester"]
[null,null,"Course Code:",null,null,"OBM4401",null,null,null,null,null,null,null,null,null,null,null,null,null,null,null,null,null,null,null,null,null,null,null,null,null,null,null,null,1]
[null,null,"Course Classification:",null,null,"Major (core) ",null,null,null,null,null,null,null,null,null,null,null,null,null,null,null,null,null,null,null,null,null,null,null,null,null,null,null,null,2]
[null,2,"Synopsis:",null,null,"This module provides an integrated analysis of organisational management as an academic discipline, drawing on the work of classical and contemporary writers in the field, and as a practical strategic activity in a dynamic environment of continual change.",null,null,null,null,null,null,null,null,null,null,null,null,null,null,null,null,null,null,null,null,null,null,null,null,null,null,null,null,3]
[null,{"$f":"B8+1","v":3},"Name(s) of Academic Staff:",null,null,1,"Dr. Nurhafizah"]
[null,null,null,null,null,2,"Sujatha",null,null,null,null,null,null,null,null,null,null,null,null,null,null,null,null,null,null,null,null,null,null,null,null,null,null,null,"Year Offered"]
[null,null,null,null,null,3,null,null,null,null,null,null,null,null,null,null,null,null,null,null,null,null,null,null,null,null,null,null,null,null,null,null,null,null,1]
[null,{"$f":"B9+1","v":4},"Semester and Year offered:",null,null,"Year Offered",null,null,1,"Semester",null,1,"Remarks:",null,null,null,null,null,null,null,null,null,null,null,null,null,null,null,null,null,null,null,null,null,2]
[null,{"$f":"B12+1","v":5},"Credit Value:",null,null,{"$f":"IF(X107 =\"√\",INT(X99/80),INT(X99/40))","v":3},null,null,3,null,null,null,null,null,null,null,null,null,null,null,null,null,null,null,null,null,null,null,null,null,null,null,null,null,3]
[null,6,"Pre-requisite/ co-requisite (if any):",null,null,null,null,null,null,null,null,null,null,null,null,null,null,null,null,null,null,null,null,null,null,null,null,null,null,null,null,null,null,null,4]
[null,null,null,null,null,null,null,null,null,null,null,null,null,null,null,null,null,null,null,null,null,null,null,null,null,null,null,null,null,null,null,null,null,null,5]
[null,7,"Course Learning Outcomes (CLO)",null,null,"CLO1",null,"Analyze the management and organisational theory and practice  at three distinct levels i.e. individual,  team and organisation (C4, PLO1).",null,null,null,null,null,null,null,null,null,null,null,null,null,null,null,null,null,null,null,null,null,null,null,null,null,null,6]
[null,null,null,null,null,"CLO2",null,"Evaluate organisational management issues  at three distinct levels (C5,PLO2).",null,null,null,null,null,null,null,null,null,null,null,null,null,null,null,null,null,null,null,null,null,null,null,null,null,null,7]
[null,null,null,null,null,"CLO3",null,"Select the management and organisational theory and practice to resolve the organisational management issues (C5, PLO7).",null,null,null,null,null,null,null,null,null,null,null,null,null,null,null,null,null,null,null,null,null,null,null,null,null,null,8]
[]
[null,null,null,null,null,null,null,null,null,null,null,null,null,null,null,null,null,null,null,null,null,null,null,null,null,null,null,null,null,null,null,null,null,null,"Compulsory"]
[null,null,null,null,null,null,null,null,null,null,null,null,null,null,null,null,null,null,null,null,null,null,null,null,null,null,null,null,null,null,null,null,null,null,"Major (core) "]
[null,null,null,null,null,null,null,null,null,null,null,null,null,null,null,null,null,null,null,null,null,null,null,null,null,null,null,null,null,null,null,null,null,null,"Minor"]
[null,null,null,null,null,null,null,null,null,null,null,null,null,null,null,null,null,null,null,null,null,null,null,null,null,null,null,null,null,null,null,null,null,null,"Elective (core) "]
[null,null,null,null,null,null,null,null,null,null,null,null,null,null,null,null,null,null,null,null,null,null,null,null,null,null,null,null,null,null,null,null,null,null,"Elective (open/free)"]
[null,8,"Mapping of the Course Learning Outcomes to the Programme Learning Outcomes, Teaching Methods and Assessment Methods"]
[]
[null,null,null,"Course Learning Outcomes",null,"Programme Learning Outcomes (PLO)",null,null,null,null,null,null,null,null,null,null,null,"Teaching Methods",null,null,null,null,"Assessment Methods"]
[null,null,null,null,null,"PLO 1","PLO 2","PLO 3","PLO 4","PLO 5","PLO 6","PLO 7","PLO 8","PLO 9","PLO 10","PLO 11"]
[null,null,null,{"$f":"IF(ISBLANK(F16),\"\",F16)","v":"CLO1"},null,"√",null,null,null,null,null,null,null,null,null,null,null,"Online Technology Mediated\nVideo Based-Learning\nTutorials",null,null,null,null,"Case Study\nFinal Examination"]
[null,null,null,{"$f":"IF(ISBLANK(F17),\"\",F17)","v":"CLO2"},null,null,"√",null,null,null,null,null,null,null,null,null,null,"Online Technology Mediated\nVideo Based-Learning\nTutorials",null,null,null,null,"Article Review\nFinal Examination"]
[null,null,null,"CLO3",null,null,null,null,null,null,null,"√",null,null,null,null,null,"Online Technology Mediated\nVideo Based-Learning\nTutorials",null,null,null,null,"Reflective Writing\nFinal Examination"]
[null,null,null,""]
[null,null,null,""]
[null,null,null,""]
[null,null,null,""]
[null,null,null,"",null,null,null,null,null,null,null,null,null,null,null,null,null,null,null,null,null,null,null,null,null,null,null,null,null,null,null,null,null,null,"Cognitive skills  "]
[null,null,null,"Mapping with MQF Cluster of Learning Outcomes",null,"C1","C2",null,null,null,null,"C3F",null,null,null,null,null,null,null,null,null,null,null,null,null,null,null,null,null,null,null,null,null,null,"Interpersonal skills"]
[null,null,null,null,null,null,null,null,null,null,null,"C5",null,null,null,null,null,null,null,null,null,null,null,null,null,null,null,null,null,null,null,null,null,null,"Communication Skills"]
[null,null,null,null,null,null,null,null,null,null,null,null,null,null,null,null,null,null,null,null,null,null,null,null,null,null,null,null,null,null,null,null,null,null,"Digital Skills"]
[null,null,null,null,null,null,null,null,null,null,null,null,null,null,null,null,null,null,null,null,null,null,null,null,null,null,null,null,null,null,null,null,null,null,"Numeracy Skills"]
[null,null,null,"Indicate the primary causal link between the CLO and PLO by ticking  '√' in the appropriate box.",null,null,null,null,null,null,null,null,null,null,null,null,null,null,null,null,null,null,null,null,null,null,null,null,null,null,null,null,null,null,"Leadership, Autonomy and Responsibility"]
[null,null,null,"C1 = Knowledge & Understanding, C2 = Cognitive Skills, C3A = Practical Skills, C3B = Interpersonal Skills, C3C = Communication Skills, C3D = Digital Skills,",null,null,null,null,null,null,null,null,null,null,null,null,null,null,null,null,null,null,null,null,null,null,null,null,null,null,null,null,null,null,"Personal Skills"]
[null,null,null,"C3E = Numeracy Skills, C3F = Leadership, Autonomy & Responsibility, C4A = Personal Skills, C4B = Entrepreneurial Skills, C5 = Ethics & Professionalism",null,null,null,null,null,null,null,null,null,null,null,null,null,null,null,null,null,null,null,null,null,null,null,null,null,null,null,null,null,null,"Entrepreneurial Skills"]
[null,null,null,null,null,null,null,null,null,null,null,null,null,null,null,null,null,null,null,null,null,null,null,null,null,null,null,null,null,null,null,null,null,null,"Ethics and Professionalism"]
[null,9,"Transferable Skills (if applicable)"]
[null,null,"(Skills learned in the course of study which can be useful and utilized in other settings)",null,null,null,null,null,1,"Personal Skills",null,null,null,null,null,null,null,null,null,null,null,null,null,null,null,null,null,null,null,null,null,null,null,null,"C1"]
[null,null,null,null,null,null,null,null,2,"Ethics and Professionalism",null,null,null,null,null,null,null,null,null,null,null,null,null,null,null,null,null,null,null,null,null,null,null,null,"C2"]
[null,null,null,null,null,null,null,null,3,"Interpersonal skills",null,null,null,null,null,null,null,null,null,null,null,null,null,null,null,null,null,null,null,null,null,null,null,null,"C3A"]
[null,null,null,null,null,null,null,null,"Open-ended response (if any)",null,null,null,null,null,null,null,null,null,null,null,null,null,null,null,null,null,null,null,null,null,null,null,null,null,"C3B"]
[null,null,null,null,null,null,null,null,4,null,null,null,null,null,null,null,null,null,null,null,null,null,null,null,null,null,null,null,null,null,null,null,null,null,"C3C"]
[null,null,null,null,null,null,null,null,null,null,null,null,null,null,null,null,null,null,null,null,null,null,null,null,null,null,null,null,null,null,null,null,null,null,"C3D"]
[null,null,null,null,null,null,null,null,null,null,null,null,null,null,null,null,null,null,null,null,null,null,null,null,null,null,null,"`",null,null,null,null,null,null,"C3E"]
[null,10,"Distribution of Student Learning Time (SLT)",null,null,null,null,null,null,null,null,null,null,null,null,null,null,null,null,null,null,null,null,null,null,null,null,null,null,null,null,null,null,null,"C3F"]
[null,null,"Note: This SLT calculation is designed for home grown programme only.",null,null,null,null,null,null,null,null,null,null,null,null,null,null,null,null,null,null,null,null,null,null,null,null,null,null,null,null,null,null,null,"C4A"]
[null,null,null,null,null,null,null,null,null,null,null,null,null,null,null,null,null,null,null,null,null,null,null,null,null,null,null,null,null,null,null,null,null,null,"C4B"]
[null,null,null,"Course Content Outline and Subtopics",null,null,null,null,null,null,"CLO*",null,"Learning and Teaching Activities**",null,null,null,null,null,null,null,null,null,null,"Total SLT",null,null,null,null,null,null,null,null,null,null,"C5"]
[null,null,null,null,null,null,null,null,null,null,null,null,"Face-to-Face (F2F)",null,null,null,null,null,null,null,"NF2F\nIndependent Learning\n(Asynchronous)"]
[null,null,null,null,null,null,null,null,null,null,null,null,"Physical",null,null,null,"Online/ Technology-mediated (Synchronous)"]
[null,null,null,null,null,null,null,null,null,null,null,null,"L","T","P","O","L","T","P","O"]
[null,null,null,1,"Overview of the Course\n- Who are managers?\n- Why are managers important.\n- Management vs managers\n- Managerial challenges today and into the future.",null,null,null,null,null,"CLO1",null,null,null,null,null,null,1,null,null,5]
[null,null,null,2,"Theories and models of management (Part 1)\n- Importance of theory and history of management.\n",null,null,null,null,null,"CLO1",null,null,null,null,null,null,1,null,null,5]
[null,null,null,3,"Theories and models of management (Part 2)\n- Early management pioneers.\n- Early theories in management.",null,null,null,null,null,"CLO1",null,null,null,null,null,null,1,null,null,5]
[null,null,null,4,"Individuals, groups and teams in the organisation-Part 1\n- Goals of individual behavior within organizations.\n- Attitudes play in job performance\npersonality theories.",null,null,null,null,null,"CLO2",null,null,null,null,null,null,1,null,null,5]
[null,null,null,5,"Individuals, groups and teams in the organisation-Part 2\n- Stages of group development.\n- Group performance and satisfaction.",null,null,null,null,null,"CLO2",null,null,null,null,null,null,1,null,null,5]
[null,null,null,6,"Learning organisations, communication, motivation and teamwork-Part 1\n- Communication process.",null,null,null,null,null,"CLO2",null,null,null,null,null,null,1,null,null,5]
[null,null,null,7,"Learning organisations, communication, motivation and teamwork-Part 2\n- Early theories of motivation.\n- Current issues in motivation.",null,null,null,null,null,"CLO2",null,null,null,null,null,null,1,null,null,5]
[null,null,null,8,"Organisation structures: strategy. design and function\n- Elements in organizational design\nmechanistic and organic structures.\n- Traditional organizational design options.\n- Organizing for flexibility in the twenty-first century.",null,null,null,null,null,"CLO2",null,null,null,null,null,null,1,null,null,5]
[null,null,null,9,"Organisation processes: survival, change growth and development\n- Lewin’s Force Field Analysis Model.\n- Change agents and diffusion of change.",null,null,null,null,null,"CLO3",null,null,null,null,null,null,1,null,null,5]
[null,null,null,10,"The importance of organisation culture\n- Omnipotent and symbolic views. \n- Challenges facing managers in today’s external environment.\n- Characteristics and importance of organizational culture.",null,null,null,null,null,"CLO3",null,null,null,null,null,null,1,null,null,5]
[null,null,null,{"$f":"D69+1","v":11},"Leadership and decision making-Part 1\n- Early theories of leadership.\n- Major contingency theories of leadership.\n- Contemporary views of leadership.",null,null,null,null,null,"CLO3",null,null,null,null,null,null,1,null,null,5]
[null,null,null,{"$f":"D70+1","v":12},"Leadership and decision making-Part 2\n- Decision-making process. ",null,null,null,null,null,"CLO3",null,null,null,null,null,null,1,null,null,5]
[null,null,null,13,"Power, control and conflict resolution (Part 1)\n- Contingencies of power.\n",null,null,null,null,null,"CLO2",null,null,null,null,null,null,1,null,null,5]
[null,null,null,14,"Power, control and conflict resolution (Part 2)\n- Types of influence tactics.\n- Conflict process.",null,null,null,null,null,"CLO2",null,null,null,null,null,null,1,null,null,5]
[null,null,null,15]
[null,null,null,16]
[null,null,null,17]
[null,null,null,18]
[null,null,null,19]
[null,null,null,20]
[null,null,null,"SUB-TOTAL SLT: ",null,null,null,null,null,null,null,null,null,null,null,null,null,null,null,null,null,null,null,{"$f":"SUM(M60:P79)+SUM(Q60:T79)+SUM(U60:W79)","v":84}]
[null,null,null,"Continous Assessement",null,null,null,null,null,null,"%",null,"Face-to-Face (F2F)",null,null,null,null,null,null,null,"NF2F\nIndependent Learning for Assessment (Asynchronous)"]
[null,null,null,null,null,null,null,null,null,null,null,null,"Physical",null,null,null,"Online/ Technology-mediated (Synchronous)"]
[null,null,null,1,"Case Study",null,null,null,null,null,20,null,null,null,null,null,null,null,null,null,7]
[null,null,null,2,"Article Review",null,null,null,null,null,20,null,null,null,null,null,null,null,null,null,7]
[null,null,null,3,"Reflective Writing",null,null,null,null,null,30,null,null,null,null,null,null,null,null,null,12]
[null,null,null,4]
[null,null,null,5]
[null,null,null,"SUB-TOTAL SLT: ",null,null,null,null,null,null,null,null,null,null,null,null,null,null,null,null,null,null,null,{"$f":"SUM(M83:W87)","v":26}]
[null,null,null,"Final Assessement",null,null,null,null,null,null,"%",null,"Face-to-Face (F2F)",null,null,null,null,null,null,null,"NF2F\nIndependent Learning for Assessment (Asynchronous)"]
[null,null,null,null,null,null,null,null,null,null,null,null,"Physical",null,null,null,"Online/ Technology-mediated (Synchronous)"]
[null,null,null,1,"Final Examination",null,null,null,null,null,30,null,null,null,null,null,2,null,null,null,8]
[null,null,null,2]
[null,null,null,3]
[null,null,null,4]
[null,null,null,5]
[null,null,null,"SUB-TOTAL SLT: ",null,null,null,null,null,null,null,null,null,null,null,null,null,null,null,null,null,null,null,{"$f":"SUM(M91:W95)","v":10}]
[]
[null,null,null,"SLT for Assessment:",null,null,null,null,null,null,null,null,null,null,null,null,null,null,null,null,null,null,null,{"$f":"X88+X96","v":36}]
[null,null,null,"GRAND TOTAL SLT:",null,null,null,null,null,null,null,null,null,null,null,null,null,null,null,null,null,null,null,{"$f":"X98+X80","v":120}]
[null,null,null,"A","% SLT for F2F Physical Component: \n[Total F2F Physical /(Total F2F Physical + Total F2F Online + Total Independent Learning) x 100)]",null,null,null,null,null,null,null,null,null,null,null,null,null,null,null,null,null,null,{"$f":"IFERROR(((SUM(M60:P79)+SUM(M83:P87)+SUM(M91:P95))/X99)* 100,\"\")","v":0}]
[]
[null,null,null,"B","% SLT for Online & Independent Learning Component:\n[(Total F2F Online + Total Independent Learning) /( Total F2F Physical + Total F2F Online + Total Independent Learning) x 100]",null,null,null,null,null,null,null,null,null,null,null,null,null,null,null,null,null,null,{"$f":"IFERROR((SUM(Q60:W79)+SUM(Q83:W87) + SUM(Q91:W95))/X99 * 100,\"\")","v":100}]
[null,null,null,"C","% SLT for All Practical Component:\n[% F2F Physical Practical + % F2F Online Practical]",null,null,null,null,null,null,null,null,null,null,null,null,null,null,null,null,null,null,{"$f":"IFERROR(X104+X105,\"\")","v":0}]
[null,null,null,"C1","% SLT for F2F Physical Practical Component\n[Total F2F Physical Practical /( Total F2F Physical + Total F2F Online + Total Independent Learning)  x 100)]",null,null,null,null,null,null,null,null,null,null,null,null,null,null,null,null,null,null,{"$f":"IFERROR(SUM(O60:O79)/X99*100,\"\")","v":0}]
[null,null,null,"C2","% SLT for F2F Online Practical Component\n[Total F2F Online Practical / (Total F2F Physical + Total F2F Online + Total Independent Learning) x 100]",null,null,null,null,null,null,null,null,null,null,null,null,null,null,null,null,null,null,{"$f":"IFERROR(SUM(S60:S79)/X99 *100,\"\")","v":0}]
[null,null,null,null,null,null,null,null,null,null,null,null,null,null,null,null,null,null,null,null,null,null,null,null,null,{"$f":"IFERROR(X102+X104,\"\")","v":100}]
[null,null,null,"Please  tick (√) if this course is Industrial Training/ Clinical Placement/ Practicum using 50% of Effective Learning Time (ELT)"]
[null,null,null,"Note: "]
[null,null,null,"* Indicate the CLO based on the CLO's numbering in Item 8"]
[null,null,null,"** For ODL programme: Courses with mandatory practical requiremnets imposed by the programme standards or any related standards can be exempted from complying to the minimum 80% ODL delivery rule in the SLT."]
[]
[null,11,"Identify special requirement or resources to deliver the course (e.g., software, nursery, computer lab, simulation room etc)",null,null,null,null,null,null,null,"None"]
[]
[null,12,"References (include required and further readings, and should be the most current)",null,null,null,null,null,null,null,"Robbins, S. P., Coulter, M. A. (2020).  Management.  Person Higher Education.\nGriffin, R. W., Phillips, J. M., Gully, S. M. (2020).  Organizational behavior: managing people and organizations.  Cengage Learning.\nScandura, T. A., Gower, K. (2020). Management today: best practices for the modern workplace. SAGE Publications."]
[]
[null,13,"Other additional information (if applicable)"]
[]
[]
[null,null,"Note: Number of PLO indicated is purely for illustration purposes only and the number is subjected to the curriculum design."]

{"sheet":"OBM4419","index":9,"n_rows":119,"n_cols":35,"rows_kept":119,"cut":false,"hidden":false,"merged":[[8,1,10,1],[8,2,10,4],[8,6,8,27],[9,6,9,27],[10,6,10,27],[3,2,3,4],[3,5,3,27],[4,2,4,4],[4,5,4,27],[5,2,5,4],[5,5,5,27],[11,2,11,4],[11,5,11,7],[11,9,11,10],[11,12,11,27],[12,2,12,4],[12,5,12,7],[6,2,6,4],[6,5,6,11],[7,2,7,4],[7,5,7,27],[13,2,13,4],[13,5,13,27],[15,2,22,4],[15,5,15,6],[15,7,15,26],[16,5,16,6],[16,7,16,26],[17,5,17,6],[17,7,17,26],[18,5,18,6],[22,5,22,6],[22,7,22,26],[24,2,24,27],[26,3,27,4],[26,5,26,16],[26,17,27,21],[26,22,27,25],[18,7,18,26],[19,5,19,6],[19,7,19,26],[20,5,20,6],[20,7,20,26],[21,5,21,6],[21,7,21,26],[30,3,30,4],[30,17,30,21],[30,22,30,25],[31,3,31,4],[31,17,31,21],[31,22,31,25],[28,3,28,4],[28,17,28,21],[28,22,28,25],[29,3,29,4],[29,17,29,21],[29,22,29,25],[34,3,34,4],[34,17,34,21],[34,22,34,25],[35,3,35,4],[35,17,35,21],[35,22,35,25],[32,3,32,4],[32,17,32,21],[32,22,32,25],[33,3,33,4],[33,17,33,21],[33,22,33,25],[42,3,42,25],[44,2,44,7],[45,2,46,7],[45,9,45,25],[46,9,46,25],[47,9,47,25],[36,3,38,4],[36,17,36,21],[37,17,37,21],[38,17,38,21],[40,3,40,25],[41,3,41,25],[56,20,58,22],[57,12,57,15],[57,16,57,19],[59,4,59,9],[59,10,59,11],[59,20,59,22],[48,8,48,25],[49,8,50,8],[49,9,50,25],[52,2,52,27],[53,2,53,26],[55,3,58,9],[55,10,58,11],[55,12,55,22],[55,23,58,25],[56,12,56,19],[59,23,59,25],[60,4,60,9],[60,10,60,11],[60,20,60,22],[60,23,60,25],[61,4,61,9],[61,10,61,11],[61,20,61,22],[61,23,61,25],[64,4,64,9],[64,10,64,11],[64,20,64,22],[64,23,64,25],[65,4,65,9],[65,10,65,11],[65,20,65,22],[65,23,65,25],[62,4,62,9],[62,10,62,11],[62,20,62,22],[62,23,62,25],[63,4,63,9],[63,10,63,11],[63,20,63,22],[63,23,63,25],[68,23,68,25],[69,4,69,9],[69,10,69,11],[69,20,69,22],[66,4,66,9],[66,10,66,11],[66,20,66,22],[66,23,66,25],[67,4,67,9],[67,10,67,11],[67,20,67,22],[67,23,67,25],[70,4,70,9],[70,20,70,22],[71,4,71,9],[71,20,71,22],[72,4,72,9],[72,20,72,22],[68,4,68,9],[68,10,68,11],[68,20,68,22],[73,4,73,9],[74,4,74,9],[74,10,74,11],[74,20,74,22],[74,23,74,25],[75,4,75,9],[75,10,75,11],[75,20,75,22],[75,23,75,25],[78,23,78,25],[79,3,79,22],[79,23,79,25],[76,4,76,9],[76,10,76,11],[76,20,76,22],[76,23,76,25],[77,4,77,9],[77,10,77,11],[77,20,77,22],[77,23,77,25],[80,3,81,9],[80,10,81,11],[80,12,80,19],[80,20,81,22],[81,12,81,15],[81,16,81,19],[78,4,78,9],[78,10,78,11],[78,20,78,22],[82,4,82,9],[82,10,82,11],[82,12,82,15],[82,16,82,19],[82,20,82,22],[83,4,83,9],[83,10,83,11],[83,12,83,15],[83,16,83,19],[83,20,83,22],[84,4,84,9],[84,10,84,11],[84,12,84,15],[84,16,84,19],[84,20,84,22],[85,4,85,9],[85,10,85,11],[85,12,85,15],[85,16,85,19],[85,20,85,22],[87,23,87,25],[88,3,89,9],[88,10,89,11],[88,12,88,19],[88,20,89,22],[89,12,89,15],[89,16,89,19],[86,4,86,9],[86,10,86,11],[86,12,86,15],[86,16,86,19],[86,20,86,22],[87,3,87,22],[90,4,90,9],[90,10,90,11],[90,12,90,15],[90,16,90,19],[90,20,90,22],[91,4,91,9],[91,10,91,11],[91,12,91,15],[91,16,91,19],[91,20,91,22],[92,4,92,9],[92,10,92,11],[92,12,92,15],[92,16,92,19],[92,20,92,22],[93,4,93,9],[93,10,93,11],[93,12,93,15],[93,16,93,19],[93,20,93,22],[95,23,95,25],[97,3,97,22],[97,23,97,25],[98,3,98,22],[98,23,98,25],[99,3,100,3],[99,4,100,22],[99,23,100,25],[94,4,94,9],[94,10,94,11],[94,12,94,15],[94,16,94,19],[94,20,94,22],[95,3,95,22],[104,4,104,22],[104,23,104,25],[106,3,106,22],[106,23,106,25],[108,3,108,25],[109,3,109,25],[101,4,101,22],[101,23,101,25],[102,4,102,22],[102,23,102,25],[103,4,103,22],[103,23,103,25],[115,1,116,1],[115,2,116,9],[115,10,116,27],[118,2,118,27],[119,1,119,27],[110,3,110,22],[111,1,112,1],[111,2,112,9],[111,10,112,27],[113,1,114,1],[113,2,114,9],[113,10,114,27]]}
[]
[null,"Back To FORM @ TEMPLATE"]
[null,null,null,null,null,null,null,null,null,null,null,null,null,null,null,null,null,null,null,null,null,null,null,null,null,null,null,null,null,null,null,null,null,null,"√"]
[]
[null,1,"Course Name:",null,null,"Business Analytics",null,null,null,null,null,null,null,null,null,null,null,null,null,null,null,null,null,null,null,null,null,null,null,null,null,null,null,null,"Semester"]
[null,null,"Course Code:",null,null,"OBM4419",null,null,null,null,null,null,null,null,null,null,null,null,null,null,null,null,null,null,null,null,null,null,null,null,null,null,null,null,1]
[null,null,"Course Classification:",null,null,"Major (core) ",null,null,null,null,null,null,null,null,null,null,null,null,null,null,null,null,null,null,null,null,null,null,null,null,null,null,null,null,2]
[null,2,"Synopsis:",null,null,"This module provide MBA students with the fundamental concepts and tools needed to understand the role of modern business analytics, to apply basic business analytics tools in a spreadsheet environment, and to communicate with analytics professionals to effectively use and interpret analytic models and results in order to make an informed business decisions.",null,null,null,null,null,null,null,null,null,null,null,null,null,null,null,null,null,null,null,null,null,null,null,null,null,null,null,null,3]
[null,{"$f":"B8+1","v":3},"Name(s) of Academic Staff:",null,null,1,"Mohd Najib Bin Abd Majid"]
[null,null,null,null,null,2,"Lim Chan Chee",null,null,null,null,null,null,null,null,null,null,null,null,null,null,null,null,null,null,null,null,null,null,null,null,null,null,null,"Year Offered"]
[null,null,null,null,null,3,"Khairi Faiz Bin Mazri",null,null,null,null,null,null,null,null,null,null,null,null,null,null,null,null,null,null,null,null,null,null,null,null,null,null,null,1]
[null,{"$f":"B9+1","v":4},"Semester and Year offered:",null,null,"Year Offered",null,null,1,"Semester",null,1,"Remarks:",null,null,null,null,null,null,null,null,null,null,null,null,null,null,null,null,null,null,null,null,null,2]
[null,{"$f":"B12+1","v":5},"Credit Value:",null,null,{"$f":"IF(X107 =\"√\",INT(X99/80),INT(X99/40))","v":3},null,null,3,null,null,null,null,null,null,null,null,null,null,null,null,null,null,null,null,null,null,null,null,null,null,null,null,null,3]
[null,6,"Pre-requisite/ co-requisite (if any):",null,null,"None",null,null,null,null,null,null,null,null,null,null,null,null,null,null,null,null,null,null,null,null,null,null,null,null,null,null,null,null,4]
[null,null,null,null,null,null,null,null,null,null,null,null,null,null,null,null,null,null,null,null,null,null,null,null,null,null,null,null,null,null,null,null,null,null,5]
[null,7,"Course Learning Outcomes (CLO)",null,null,"CLO1",null,"Interpret the fundamental concepts and tools needed to understand the role of modern business analytics (C2, PLO 1).",null,null,null,null,null,null,null,null,null,null,null,null,null,null,null,null,null,null,null,null,null,null,null,null,null,null,6]
[null,null,null,null,null,"CLO2",null,"Apply the basic business analytic tools so as to communicate with analytics professional (C3, PLO6).",null,null,null,null,null,null,null,null,null,null,null,null,null,null,null,null,null,null,null,null,null,null,null,null,null,null,7]
[null,null,null,null,null,"CLO3",null,"Evaluate the analytic models and result in order to make an informed business decisions (C5, PLO6).",null,null,null,null,null,null,null,null,null,null,null,null,null,null,null,null,null,null,null,null,null,null,null,null,null,null,8]
[]
[null,null,null,null,null,null,null,null,null,null,null,null,null,null,null,null,null,null,null,null,null,null,null,null,null,null,null,null,null,null,null,null,null,null,"Compulsory"]
[null,null,null,null,null,null,null,null,null,null,null,null,null,null,null,null,null,null,null,null,null,null,null,null,null,null,null,null,null,null,null,null,null,null,"Major (core) "]
[null,null,null,null,null,null,null,null,null,null,null,null,null,null,null,null,null,null,null,null,null,null,null,null,null,null,null,null,null,null,null,null,null,null,"Minor"]
[null,null,null,null,null,null,null,null,null,null,null,null,null,null,null,null,null,null,null,null,null,null,null,null,null,null,null,null,null,null,null,null,null,null,"Elective (core) "]
[null,null,null,null,null,null,null,null,null,null,null,null,null,null,null,null,null,null,null,null,null,null,null,null,null,null,null,null,null,null,null,null,null,null,"Elective (open/free)"]
[null,8,"Mapping of the Course Learning Outcomes to the Programme Learning Outcomes, Teaching Methods and Assessment Methods"]
[]
[null,null,null,"Course Learning Outcomes",null,"Programme Learning Outcomes (PLO)",null,null,null,null,null,null,null,null,null,null,null,"Teaching Methods",null,null,null,null,"Assessment Methods"]
[null,null,null,null,null,"PLO 1","PLO 2","PLO 3","PLO 4","PLO 5","PLO 6","PLO 7","PLO 8","PLO 9","PLO 10","PLO 11"]
[null,null,null,{"$f":"IF(ISBLANK(F16),\"\",F16)","v":"CLO1"},null,"√",null,null,null,null,null,null,null,null,null,null,null,"Online Techonology Mediated Video Based Learning             Tutorial",null,null,null,null,"Assignment"]
[null,null,null,{"$f":"IF(ISBLANK(F17),\"\",F17)","v":"CLO2"},null,null,null,null,null,null,"√",null,null,null,null,null,null,"Online Techonology Mediated Video Based Learning             Tutorial",null,null,null,null,"Assignment and final exam"]
[null,null,null,"CLO3",null,null,null,null,null,null,"√",null,null,null,null,null,null,"Online Techonology Mediated Video Based Learning             Tutorial",null,null,null,null,"Final Examination"]
[null,null,null,""]
[null,null,null,""]
[null,null,null,""]
[null,null,null,""]
[null,null,null,"",null,null,null,null,null,null,null,null,null,null,null,null,null,null,null,null,null,null,null,null,null,null,null,null,null,null,null,null,null,null,"Cognitive skills  "]
[null,null,null,"Mapping with MQF Cluster of Learning Outcomes",null,"C1",null,null,null,null,null,null,null,null,null,null,null,null,null,null,null,null,null,null,null,null,null,null,null,null,null,null,null,null,"Interpersonal skills"]
[null,null,null,null,null,null,null,null,null,null,"C3E",null,null,null,null,null,null,null,null,null,null,null,null,null,null,null,null,null,null,null,null,null,null,null,"Communication Skills"]
[null,null,null,null,null,null,null,null,null,null,"C3E",null,null,null,null,null,null,null,null,null,null,null,null,null,null,null,null,null,null,null,null,null,null,null,"Digital Skills"]
[null,null,null,null,null,null,null,null,null,null,null,null,null,null,null,null,null,null,null,null,null,null,null,null,null,null,null,null,null,null,null,null,null,null,"Numeracy Skills"]
[null,null,null,"Indicate the primary causal link between the CLO and PLO by ticking  '√' in the appropriate box.",null,null,null,null,null,null,null,null,null,null,null,null,null,null,null,null,null,null,null,null,null,null,null,null,null,null,null,null,null,null,"Leadership, Autonomy and Responsibility"]
[null,null,null,"C1 = Knowledge & Understanding, C2 = Cognitive Skills, C3A = Practical Skills, C3B = Interpersonal Skills, C3C = Communication Skills, C3D = Digital Skills,",null,null,null,null,null,null,null,null,null,null,null,null,null,null,null,null,null,null,null,null,null,null,null,null,null,null,null,null,null,null,"Personal Skills"]
[null,null,null,"C3E = Numeracy Skills, C3F = Leadership, Autonomy & Responsibility, C4A = Personal Skills, C4B = Entrepreneurial Skills, C5 = Ethics & Professionalism",null,null,null,null,null,null,null,null,null,null,null,null,null,null,null,null,null,null,null,null,null,null,null,null,null,null,null,null,null,null,"Entrepreneurial Skills"]
[null,null,null,null,null,null,null,null,null,null,null,null,null,null,null,null,null,null,null,null,null,null,null,null,null,null,null,null,null,null,null,null,null,null,"Ethics and Professionalism"]
[null,9,"Transferable Skills (if applicable)"]
[null,null,"(Skills learned in the course of study which can be useful and utilized in other settings)",null,null,null,null,null,1,"Communication Skills",null,null,null,null,null,null,null,null,null,null,null,null,null,null,null,null,null,null,null,null,null,null,null,null,"C1"]
[null,null,null,null,null,null,null,null,2,"Numeracy Skills",null,null,null,null,null,null,null,null,null,null,null,null,null,null,null,null,null,null,null,null,null,null,null,null,"C2"]
[null,null,null,null,null,null,null,null,3,"Entrepreneurial Skills",null,null,null,null,null,null,null,null,null,null,null,null,null,null,null,null,null,null,null,null,null,null,null,null,"C3A"]
[null,null,null,null,null,null,null,null,"Open-ended response (if any)",null,null,null,null,null,null,null,null,null,null,null,null,null,null,null,null,null,null,null,null,null,null,null,null,null,"C3B"]
[null,null,null,null,null,null,null,null,4,null,null,null,null,null,null,null,null,null,null,null,null,null,null,null,null,null,null,null,null,null,null,null,null,null,"C3C"]
[null,null,null,null,null,null,null,null,null,null,null,null,null,null,null,null,null,null,null,null,null,null,null,null,null,null,null,null,null,null,null,null,null,null,"C3D"]
[null,null,null,null,null,null,null,null,null,null,null,null,null,null,null,null,null,null,null,null,null,null,null,null,null,null,null,"`",null,null,null,null,null,null,"C3E"]
[null,10,"Distribution of Student Learning Time (SLT)",null,null,null,null,null,null,null,null,null,null,null,null,null,null,null,null,null,null,null,null,null,null,null,null,null,null,null,null,null,null,null,"C3F"]
[null,null,"Note: This SLT calculation is designed for home grown programme only.",null,null,null,null,null,null,null,null,null,null,null,null,null,null,null,null,null,null,null,null,null,null,null,null,null,null,null,null,null,null,null,"C4A"]
[null,null,null,null,null,null,null,null,null,null,null,null,null,null,null,null,null,null,null,null,null,null,null,null,null,null,null,null,null,null,null,null,null,null,"C4B"]
[null,null,null,"Course Content Outline and Subtopics",null,null,null,null,null,null,"CLO*",null,"Learning and Teaching Activities**",null,null,null,null,null,null,null,null,null,null,"Total SLT",null,null,null,null,null,null,null,null,null,null,"C5"]
[null,null,null,null,null,null,null,null,null,null,null,null,"Face-to-Face (F2F)",null,null,null,null,null,null,null,"NF2F\nIndependent Learning\n(Asynchronous)"]
[null,null,null,null,null,null,null,null,null,null,null,null,"Physical",null,null,null,"Online/ Technology-mediated (Synchronous)"]
[null,null,null,null,null,null,null,null,null,null,null,null,"L","T","P","O","L","T","P","O"]
[null,null,null,1,"Introduction to Business Analytics",null,null,null,null,null,"CLO1",null,null,null,null,null,null,1,null,null,6]
[null,null,null,2,"Database Analytics",null,null,null,null,null,"CLO1",null,null,null,null,null,null,1,null,null,6]
[null,null,null,3,"Data Visualization",null,null,null,null,null,"CLO2",null,null,null,null,null,null,1,null,null,6]
[null,null,null,4,"Descriptive Statistics",null,null,null,null,null,"CLO2",null,null,null,null,null,null,1,null,null,6]
[null,null,null,5,"Probability Distribution and Data Modeling",null,null,null,null,null,"CLO2",null,null,null,null,null,null,1,null,null,6]
[null,null,null,6,"Trendlines and Regression Analysis",null,null,null,null,null,"CLO2",null,null,null,null,null,null,1,null,null,6]
[null,null,null,7,"Spreadsheet Modeling and Analysis",null,null,null,null,null,"CLO2",null,null,null,null,null,null,1,null,null,6]
[null,null,null,8,"Simulation and Risk Analysis",null,null,null,null,null,"CLO2",null,null,null,null,null,null,2,null,null,7]
[null,null,null,9,"Linear Optimization",null,null,null,null,null,"CLO3",null,null,null,null,null,null,2,null,null,7]
[null,null,null,10,"Integer and Nonlinear Optimization",null,null,null,null,null,"CLO3",null,null,null,null,null,null,2,null,null,7]
[null,null,null,{"$f":"D69+1","v":11},"Decision Analysis",null,null,null,null,null,"CLO3",null,null,null,null,null,null,1,null,null,7]
[null,null,null,{"$f":"D70+1","v":12}]
[null,null,null,13]
[null,null,null,14]
[null,null,null,15]
[null,null,null,16]
[null,null,null,17]
[null,null,null,18]
[null,null,null,19]
[null,null,null,20]
[null,null,null,"SUB-TOTAL SLT: ",null,null,null,null,null,null,null,null,null,null,null,null,null,null,null,null,null,null,null,{"$f":"SUM(M60:P79)+SUM(Q60:T79)+SUM(U60:W79)","v":84}]
[null,null,null,"Continous Assessement",null,null,null,null,null,null,"%",null,"Face-to-Face (F2F)",null,null,null,null,null,null,null,"NF2F\nIndependent Learning for Assessment (Asynchronous)"]
[null,null,null,null,null,null,null,null,null,null,null,null,"Physical",null,null,null,"Online/ Technology-mediated (Synchronous)"]
[null,null,null,1,"Individual Assignment 1",null,null,null,null,null,20,null,null,null,null,null,null,null,null,null,8]
[null,null,null,2,"Individual Assignment 2",null,null,null,null,null,25,null,null,null,null,null,null,null,null,null,8]
[null,null,null,3,"Individual Assignment 3",null,null,null,null,null,25,null,null,null,null,null,null,null,null,null,10]
[null,null,null,4]
[null,null,null,5]
[null,null,null,"SUB-TOTAL SLT: ",null,null,null,null,null,null,null,null,null,null,null,null,null,null,null,null,null,null,null,{"$f":"SUM(M83:W87)","v":26}]
[null,null,null,"Final Assessement",null,null,null,null,null,null,"%",null,"Face-to-Face (F2F)",null,null,null,null,null,null,null,"NF2F\nIndependent Learning for Assessment (Asynchronous)"]
[null,null,null,null,null,null,null,null,null,null,null,null,"Physical",null,null,null,"Online/ Technology-mediated (Synchronous)"]
[null,null,null,1,"Final Examination",null,null,null,null,null,30,null,null,null,null,null,2,null,null,null,8]
[null,null,null,2]
[null,null,null,3]
[null,null,null,4]
[null,null,null,5]
[null,null,null,"SUB-TOTAL SLT: ",null,null,null,null,null,null,null,null,null,null,null,null,null,null,null,null,null,null,null,{"$f":"SUM(M91:W95)","v":10}]
[]
[null,null,null,"SLT for Assessment:",null,null,null,null,null,null,null,null,null,null,null,null,null,null,null,null,null,null,null,{"$f":"X88+X96","v":36}]
[null,null,null,"GRAND TOTAL SLT:",null,null,null,null,null,null,null,null,null,null,null,null,null,null,null,null,null,null,null,{"$f":"X98+X80","v":120}]
[null,null,null,"A","% SLT for F2F Physical Component: \n[Total F2F Physical /(Total F2F Physical + Total F2F Online + Total Independent Learning) x 100)]",null,null,null,null,null,null,null,null,null,null,null,null,null,null,null,null,null,null,{"$f":"IFERROR(((SUM(M60:P79)+SUM(M83:P87)+SUM(M91:P95))/X99)* 100,\"\")","v":0}]
[]
[null,null,null,"B","% SLT for Online & Independent Learning Component:\n[(Total F2F Online + Total Independent Learning) /( Total F2F Physical + Total F2F Online + Total Independent Learning) x 100]",null,null,null,null,null,null,null,null,null,null,null,null,null,null,null,null,null,null,{"$f":"IFERROR((SUM(Q60:W79)+SUM(Q83:W87) + SUM(Q91:W95))/X99 * 100,\"\")","v":100}]
[null,null,null,"C","% SLT for All Practical Component:\n[% F2F Physical Practical + % F2F Online Practical]",null,null,null,null,null,null,null,null,null,null,null,null,null,null,null,null,null,null,{"$f":"IFERROR(X104+X105,\"\")","v":0}]
[null,null,null,"C1","% SLT for F2F Physical Practical Component\n[Total F2F Physical Practical /( Total F2F Physical + Total F2F Online + Total Independent Learning)  x 100)]",null,null,null,null,null,null,null,null,null,null,null,null,null,null,null,null,null,null,{"$f":"IFERROR(SUM(O60:O79)/X99*100,\"\")","v":0}]
[null,null,null,"C2","% SLT for F2F Online Practical Component\n[Total F2F Online Practical / (Total F2F Physical + Total F2F Online + Total Independent Learning) x 100]",null,null,null,null,null,null,null,null,null,null,null,null,null,null,null,null,null,null,{"$f":"IFERROR(SUM(S60:S79)/X99 *100,\"\")","v":0}]
[null,null,null,null,null,null,null,null,null,null,null,null,null,null,null,null,null,null,null,null,null,null,null,null,null,{"$f":"IFERROR(X102+X104,\"\")","v":100}]
[null,null,null,"Please  tick (√) if this course is Industrial Training/ Clinical Placement/ Practicum using 50% of Effective Learning Time (ELT)"]
[null,null,null,"Note: "]
[null,null,null,"* Indicate the CLO based on the CLO's numbering in Item 8"]
[null,null,null,"** For ODL programme: Courses with mandatory practical requiremnets imposed by the programme standards or any related standards can be exempted from complying to the minimum 80% ODL delivery rule in the SLT."]
[]
[null,11,"Identify special requirement or resources to deliver the course (e.g., software, nursery, computer lab, simulation room etc)"]
[]
[null,12,"References (include required and further readings, and should be the most current)",null,null,null,null,null,null,null,"James R.Evans. (2020). Business Analytics, Global Edition (3rd ed.). Pearson.\n\nWayne Winston & S.Albright. (2019). Business Analytics : Data Analysis & Decision Making(7th ed.). CENGAGE South-Western College Publishing.\n\nMichael Fry, Jeffrey Ohlmann, Jeffrey Camm & James Cochran. (2020). Business Analytics. CENGAGE South-Western College Publishing."]
[]
[null,13,"Other additional information (if applicable)"]
[]
[]
[null,null,"Note: Number of PLO indicated is purely for illustration purposes only and the number is subjected to the curriculum design."]

{"sheet":"OBM4407","index":10,"n_rows":119,"n_cols":35,"rows_kept":119,"cut":false,"hidden":false,"merged":[[8,1,10,1],[8,2,10,4],[8,6,8,27],[9,6,9,27],[10,6,10,27],[3,2,3,4],[3,5,3,27],[4,2,4,4],[4,5,4,27],[5,2,5,4],[5,5,5,27],[11,2,11,4],[11,5,11,7],[11,9,11,10],[11,12,11,27],[12,2,12,4],[12,5,12,7],[6,2,6,4],[6,5,6,11],[7,2,7,4],[7,5,7,27],[13,2,13,4],[13,5,13,27],[15,2,22,4],[15,5,15,6],[15,7,15,26],[16,5,16,6],[16,7,16,26],[17,5,17,6],[17,7,17,26],[18,5,18,6],[22,5,22,6],[22,7,22,26],[24,2,24,27],[26,3,27,4],[26,5,26,16],[26,17,27,21],[26,22,27,25],[18,7,18,26],[19,5,19,6],[19,7,19,26],[20,5,20,6],[20,7,20,26],[21,5,21,6],[21,7,21,26],[30,3,30,4],[30,17,30,21],[30,22,30,25],[31,3,31,4],[31,17,31,21],[31,22,31,25],[28,3,28,4],[28,17,28,21],[28,22,28,25],[29,3,29,4],[29,17,29,21],[29,22,29,25],[34,3,34,4],[34,17,34,21],[34,22,34,25],[35,3,35,4],[35,17,35,21],[35,22,35,25],[32,3,32,4],[32,17,32,21],[32,22,32,25],[33,3,33,4],[33,17,33,21],[33,22,33,25],[42,3,42,25],[44,2,44,7],[45,2,46,7],[45,9,45,25],[46,9,46,25],[47,9,47,25],[36,3,38,4],[36,17,36,21],[37,17,37,21],[38,17,38,21],[40,3,40,25],[41,3,41,25],[56,20,58,22],[57,12,57,15],[57,16,57,19],[59,4,59,9],[59,10,59,11],[59,20,59,22],[48,8,48,25],[49,8,50,8],[49,9,50,25],[52,2,52,27],[53,2,53,26],[55,3,58,9],[55,10,58,11],[55,12,55,22],[55,23,58,25],[56,12,56,19],[59,23,59,25],[60,4,60,9],[60,10,60,11],[60,20,60,22],[60,23,60,25],[61,4,61,9],[61,10,61,11],[61,20,61,22],[61,23,61,25],[64,4,64,9],[64,10,64,11],[64,20,64,22],[64,23,64,25],[65,4,65,9],[65,10,65,11],[65,20,65,22],[65,23,65,25],[62,4,62,9],[62,10,62,11],[62,20,62,22],[62,23,62,25],[63,4,63,9],[63,10,63,11],[63,20,63,22],[63,23,63,25],[68,23,68,25],[69,4,69,9],[69,20,69,22],[66,4,66,9],[66,10,66,11],[66,20,66,22],[66,23,66,25],[67,4,67,9],[67,10,67,11],[67,20,67,22],[67,23,67,25],[70,4,70,9],[70,20,70,22],[71,4,71,9],[71,20,71,22],[72,4,72,9],[72,20,72,22],[68,4,68,9],[68,10,68,11],[68,20,68,22],[73,4,73,9],[74,4,74,9],[74,10,74,11],[74,20,74,22],[74,23,74,25],[75,4,75,9],[75,10,75,11],[75,20,75,22],[75,23,75,25],[78,23,78,25],[79,3,79,22],[79,23,79,25],[76,4,76,9],[76,10,76,11],[76,20,76,22],[76,23,76,25],[77,4,77,9],[77,10,77,11],[77,20,77,22],[77,23,77,25],[80,3,81,9],[80,10,81,11],[80,12,80,19],[80,20,81,22],[81,12,81,15],[81,16,81,19],[78,4,78,9],[78,10,78,11],[78,20,78,22],[82,4,82,9],[82,10,82,11],[82,12,82,15],[82,16,82,19],[82,20,82,22],[83,4,83,9],[83,10,83,11],[83,12,83,15],[83,16,83,19],[83,20,83,22],[84,4,84,9],[84,10,84,11],[84,12,84,15],[84,16,84,19],[84,20,84,22],[85,4,85,9],[85,10,85,11],[85,12,85,15],[85,16,85,19],[85,20,85,22],[87,23,87,25],[88,3,89,9],[88,10,89,11],[88,12,88,19],[88,20,89,22],[89,12,89,15],[89,16,89,19],[86,4,86,9],[86,10,86,11],[86,12,86,15],[86,16,86,19],[86,20,86,22],[87,3,87,22],[90,4,90,9],[90,10,90,11],[90,12,90,15],[90,16,90,19],[90,20,90,22],[91,4,91,9],[91,10,91,11],[91,12,91,15],[91,16,91,19],[91,20,91,22],[92,4,92,9],[92,10,92,11],[92,12,92,15],[92,16,92,19],[92,20,92,22],[93,4,93,9],[93,10,93,11],[93,12,93,15],[93,16,93,19],[93,20,93,22],[95,23,95,25],[97,3,97,22],[97,23,97,25],[98,3,98,22],[98,23,98,25],[99,3,100,3],[99,4,100,22],[99,23,100,25],[94,4,94,9],[94,10,94,11],[94,12,94,15],[94,16,94,19],[94,20,94,22],[95,3,95,22],[104,4,104,22],[104,23,104,25],[106,3,106,22],[106,23,106,25],[108,3,108,25],[109,3,109,25],[101,4,101,22],[101,23,101,25],[102,4,102,22],[102,23,102,25],[103,4,103,22],[103,23,103,25],[115,1,116,1],[115,2,116,9],[115,10,116,27],[118,2,118,27],[119,1,119,27],[110,3,110,22],[111,1,112,1],[111,2,112,9],[111,10,112,27],[113,1,114,1],[113,2,114,9],[113,10,114,27]]}
[]
[null,"Back To FORM @ TEMPLATE"]
[null,null,null,null,null,null,null,null,null,null,null,null,null,null,null,null,null,null,null,null,null,null,null,null,null,null,null,null,null,null,null,null,null,null,"√"]
[]
[null,1,"Course Name:",null,null,"Strategic Management",null,null,null,null,null,null,null,null,null,null,null,null,null,null,null,null,null,null,null,null,null,null,null,null,null,null,null,null,"Semester"]
[null,null,"Course Code:",null,null,"OBM4407",null,null,null,null,null,null,null,null,null,null,null,null,null,null,null,null,null,null,null,null,null,null,null,null,null,null,null,null,1]
[null,null,"Course Classification:",null,null,"Major (core) ",null,null,null,null,null,null,null,null,null,null,null,null,null,null,null,null,null,null,null,null,null,null,null,null,null,null,null,null,2]
[null,2,"Synopsis:",null,null,"The introduction of Corporate Strategy into this programme is aim to instill an in-depth understanding of how strategy integrates an organisation’s functional activities and to ensure that our MBA graduates will understand the theoretical concepts underlying the resource-based view of strategic management that is so important to the business world today.",null,null,null,null,null,null,null,null,null,null,null,null,null,null,null,null,null,null,null,null,null,null,null,null,null,null,null,null,3]
[null,{"$f":"B8+1","v":3},"Name(s) of Academic Staff:",null,null,1,"Dr. Gan Joo Kong"]
[null,null,null,null,null,2,"Dr.Nurhafizah Zainal",null,null,null,null,null,null,null,null,null,null,null,null,null,null,null,null,null,null,null,null,null,null,null,null,null,null,null,"Year Offered"]
[null,null,null,null,null,3,"Dr. Vikneswaran A. Maniam",null,null,null,null,null,null,null,null,null,null,null,null,null,null,null,null,null,null,null,null,null,null,null,null,null,null,null,1]
[null,{"$f":"B9+1","v":4},"Semester and Year offered:",null,null,"Year Offered",null,null,1,"Semester",null,2,"Remarks:",null,null,null,null,null,null,null,null,null,null,null,null,null,null,null,null,null,null,null,null,null,2]
[null,{"$f":"B12+1","v":5},"Credit Value:",null,null,{"$f":"IF(X107 =\"√\",INT(X99/80),INT(X99/40))","v":3},null,null,3,null,null,null,null,null,null,null,null,null,null,null,null,null,null,null,null,null,null,null,null,null,null,null,null,null,3]
[null,6,"Pre-requisite/ co-requisite (if any):",null,null,"None",null,null,null,null,null,null,null,null,null,null,null,null,null,null,null,null,null,null,null,null,null,null,null,null,null,null,null,null,4]
[null,null,null,null,null,null,null,null,null,null,null,null,null,null,null,null,null,null,null,null,null,null,null,null,null,null,null,null,null,null,null,null,null,null,5]
[null,7,"Course Learning Outcomes (CLO)",null,null,"CLO1",null,"Interpret the terminology of strategic management in an organisational context (C2, PLO1).",null,null,null,null,null,null,null,null,null,null,null,null,null,null,null,null,null,null,null,null,null,null,null,null,null,null,6]
[null,null,null,null,null,"CLO2",null,"Evaluate strategy as a continuing managerial process and appreciate the dangers of drift (C5, PLO2).",null,null,null,null,null,null,null,null,null,null,null,null,null,null,null,null,null,null,null,null,null,null,null,null,null,null,7]
[null,null,null,null,null,"CLO3",null,"Select strategic decisions that is significant to culture and cultural change (C4,PLO9).",null,null,null,null,null,null,null,null,null,null,null,null,null,null,null,null,null,null,null,null,null,null,null,null,null,null,8]
[]
[null,null,null,null,null,null,null,null,null,null,null,null,null,null,null,null,null,null,null,null,null,null,null,null,null,null,null,null,null,null,null,null,null,null,"Compulsory"]
[null,null,null,null,null,null,null,null,null,null,null,null,null,null,null,null,null,null,null,null,null,null,null,null,null,null,null,null,null,null,null,null,null,null,"Major (core) "]
[null,null,null,null,null,null,null,null,null,null,null,null,null,null,null,null,null,null,null,null,null,null,null,null,null,null,null,null,null,null,null,null,null,null,"Minor"]
[null,null,null,null,null,null,null,null,null,null,null,null,null,null,null,null,null,null,null,null,null,null,null,null,null,null,null,null,null,null,null,null,null,null,"Elective (core) "]
[null,null,null,null,null,null,null,null,null,null,null,null,null,null,null,null,null,null,null,null,null,null,null,null,null,null,null,null,null,null,null,null,null,null,"Elective (open/free)"]
[null,8,"Mapping of the Course Learning Outcomes to the Programme Learning Outcomes, Teaching Methods and Assessment Methods"]
[]
[null,null,null,"Course Learning Outcomes",null,"Programme Learning Outcomes (PLO)",null,null,null,null,null,null,null,null,null,null,null,"Teaching Methods",null,null,null,null,"Assessment Methods"]
[null,null,null,null,null,"PLO 1","PLO 2","PLO 3","PLO 4","PLO 5","PLO 6","PLO 7","PLO 8","PLO 9","PLO 10","PLO 11"]
[null,null,null,{"$f":"IF(ISBLANK(F16),\"\",F16)","v":"CLO1"},null,"√",null,null,null,null,null,null,null,null,null,null,null,"Online Techonology Mediated\nVideo Based Learning\nTutorial",null,null,null,null,"Case Study \nFinal Examination"]
[null,null,null,{"$f":"IF(ISBLANK(F17),\"\",F17)","v":"CLO2"},null,null,"√",null,null,null,null,null,null,null,null,null,null,"Online Techonology Mediated\nVideo Based Learning\nTutorial",null,null,null,null,"Article Review\nFinal Examination"]
[null,null,null,"CLO3",null,null,null,null,null,null,null,null,null,"√",null,null,null,"Online Techonology Mediated\nVideo Based Learning\nTutorial",null,null,null,null,"Reflective Writing\nFinal Examination"]
[null,null,null,""]
[null,null,null,""]
[null,null,null,""]
[null,null,null,""]
[null,null,null,"",null,null,null,null,null,null,null,null,null,null,null,null,null,null,null,null,null,null,null,null,null,null,null,null,null,null,null,null,null,null,"Cognitive skills  "]
[null,null,null,"Mapping with MQF Cluster of Learning Outcomes",null,"C1","C2",null,null,null,null,null,null,"C4B",null,null,null,null,null,null,null,null,null,null,null,null,null,null,null,null,null,null,null,null,"Interpersonal skills"]
[null,null,null,null,null,null,null,null,null,null,null,null,null,null,null,null,null,null,null,null,null,null,null,null,null,null,null,null,null,null,null,null,null,null,"Communication Skills"]
[null,null,null,null,null,null,null,null,null,null,null,null,null,null,null,null,null,null,null,null,null,null,null,null,null,null,null,null,null,null,null,null,null,null,"Digital Skills"]
[null,null,null,null,null,null,null,null,null,null,null,null,null,null,null,null,null,null,null,null,null,null,null,null,null,null,null,null,null,null,null,null,null,null,"Numeracy Skills"]
[null,null,null,"Indicate the primary causal link between the CLO and PLO by ticking  '√' in the appropriate box.",null,null,null,null,null,null,null,null,null,null,null,null,null,null,null,null,null,null,null,null,null,null,null,null,null,null,null,null,null,null,"Leadership, Autonomy and Responsibility"]
[null,null,null,"C1 = Knowledge & Understanding, C2 = Cognitive Skills, C3A = Practical Skills, C3B = Interpersonal Skills, C3C = Communication Skills, C3D = Digital Skills,",null,null,null,null,null,null,null,null,null,null,null,null,null,null,null,null,null,null,null,null,null,null,null,null,null,null,null,null,null,null,"Personal Skills"]
[null,null,null,"C3E = Numeracy Skills, C3F = Leadership, Autonomy & Responsibility, C4A = Personal Skills, C4B = Entrepreneurial Skills, C5 = Ethics & Professionalism",null,null,null,null,null,null,null,null,null,null,null,null,null,null,null,null,null,null,null,null,null,null,null,null,null,null,null,null,null,null,"Entrepreneurial Skills"]
[null,null,null,null,null,null,null,null,null,null,null,null,null,null,null,null,null,null,null,null,null,null,null,null,null,null,null,null,null,null,null,null,null,null,"Ethics and Professionalism"]
[null,9,"Transferable Skills (if applicable)"]
[null,null,"(Skills learned in the course of study which can be useful and utilized in other settings)",null,null,null,null,null,1,"Personal Skills",null,null,null,null,null,null,null,null,null,null,null,null,null,null,null,null,null,null,null,null,null,null,null,null,"C1"]
[null,null,null,null,null,null,null,null,2,"Leadership, Autonomy and Responsibility",null,null,null,null,null,null,null,null,null,null,null,null,null,null,null,null,null,null,null,null,null,null,null,null,"C2"]
[null,null,null,null,null,null,null,null,3,"Interpersonal skills",null,null,null,null,null,null,null,null,null,null,null,null,null,null,null,null,null,null,null,null,null,null,null,null,"C3A"]
[null,null,null,null,null,null,null,null,"Open-ended response (if any)",null,null,null,null,null,null,null,null,null,null,null,null,null,null,null,null,null,null,null,null,null,null,null,null,null,"C3B"]
[null,null,null,null,null,null,null,null,4,null,null,null,null,null,null,null,null,null,null,null,null,null,null,null,null,null,null,null,null,null,null,null,null,null,"C3C"]
[null,null,null,null,null,null,null,null,null,null,null,null,null,null,null,null,null,null,null,null,null,null,null,null,null,null,null,null,null,null,null,null,null,null,"C3D"]
[null,null,null,null,null,null,null,null,null,null,null,null,null,null,null,null,null,null,null,null,null,null,null,null,null,null,null,"`",null,null,null,null,null,null,"C3E"]
[null,10,"Distribution of Student Learning Time (SLT)",null,null,null,null,null,null,null,null,null,null,null,null,null,null,null,null,null,null,null,null,null,null,null,null,null,null,null,null,null,null,null,"C3F"]
[null,null,"Note: This SLT calculation is designed for home grown programme only.",null,null,null,null,null,null,null,null,null,null,null,null,null,null,null,null,null,null,null,null,null,null,null,null,null,null,null,null,null,null,null,"C4A"]
[null,null,null,null,null,null,null,null,null,null,null,null,null,null,null,null,null,null,null,null,null,null,null,null,null,null,null,null,null,null,null,null,null,null,"C4B"]
[null,null,null,"Course Content Outline and Subtopics",null,null,null,null,null,null,"CLO*",null,"Learning and Teaching Activities**",null,null,null,null,null,null,null,null,null,null,"Total SLT",null,null,null,null,null,null,null,null,null,null,"C5"]
[null,null,null,null,null,null,null,null,null,null,null,null,"Face-to-Face (F2F)",null,null,null,null,null,null,null,"NF2F\nIndependent Learning\n(Asynchronous)"]
[null,null,null,null,null,null,null,null,null,null,null,null,"Physical",null,null,null,"Online/ Technology-mediated (Synchronous)"]
[null,null,null,null,null,null,null,null,null,null,null,null,"L","T","P","O","L","T","P","O"]
[null,null,null,1,"Overview of the course\n- What is strategic management?\n- Strategy statement and its components.\n- Strategy formulation process.\n- Policy vs strategy.",null,null,null,null,null,"CLO1",null,null,null,null,null,null,1,null,null,5]
[null,null,null,2,"The concepts of strategic management\n-Definition of strategic management.\n-Strategic management process model.\n- Benefits of strategic management.\n-Strategic management and rapidly changing environment.",null,null,null,null,null,"CLO1",null,null,null,null,null,null,1,null,null,5]
[null,null,null,3,"The vocabulary of strategy; prescriptive and emergent strategies-Part 1\n- Charting a direction.\n- Strategic vision.\n- Strategic mission.",null,null,null,null,null,"CLO1",null,null,null,null,null,null,1,null,null,5]
[null,null,null,4,"The vocabulary of strategy; prescriptive and emergent strategies-Part 2\n- Strategic objectives.\n- Hierarchy of strategies.\n- Uniting the strategy-making effort.\n",null,null,null,null,null,"CLO1",null,null,null,null,null,null,1,null,null,5]
[null,null,null,5,"Strategy, the organisation and the environment-Part 1\n- External environment.\n- Internal environment.",null,null,null,null,null,"CLO2",null,null,null,null,null,null,1,null,null,5]
[null,null,null,6,"Strategy, the organisation and the environment-Part 2\n- The value-chain analysis.\n- The resource-based view.\n",null,null,null,null,null,"CLO2",null,null,null,null,null,null,1,null,null,5]
[null,null,null,7,"The core processes: strategic analysis; strategy formulation; strategic choice-Part 1\n- Types of strategies.\n- Value chain analysis and benchmarking.\n- Michael Porter's Two Generic Strategies.\n- Process of generating and selecting strategies. ",null,null,null,null,null,"CLO2",null,null,null,null,null,null,1,null,null,5]
[null,null,null,8,"The core processes: strategic analysis; strategy formulation; strategic choice-Part 2\n- Comprehensive strategy-formulation framework.\n- The input stage.\n- The matching stage.\n- The decision stage.",null,null,null,null,null,"CLO2",null,null,null,null,null,null,1,null,null,5]
[null,null,null,9,"Implementing strategy: building capacity and allocating resources-Part 1\n- Resource allocation.\n- Strategic human resource issues.",null,null,null,null,null,"CLO3",null,null,null,null,null,null,1,null,null,5]
[null,null,null,10,"Implementing strategy: building capacity and allocating resources-Part 2\n- Strategic marketing issues.",null,null,null,null,null,"CLO3",null,null,null,null,null,null,1,null,null,5]
[null,null,null,{"$f":"D69+1","v":11},"Managing strategic change\n- Key elements in managing strategic change.\n- Strategic leadership roles.\n- Styles of managing change.",null,null,null,null,null,"CLO1",null,null,null,null,null,null,1,null,null,5]
[null,null,null,{"$f":"D70+1","v":12},"Monitoring and reviewing the implementation process\n- Strategy implementation.\n- The framework of Irwin.\n- Why strategic implementation fails.",null,null,null,null,null,"CLO1",null,null,null,null,null,null,1,null,null,5]
[null,null,null,13,"Revision",null,null,null,null,null,"CLO1\nCLO2\nCLO3",null,null,null,null,null,null,1,null,null,5]
[null,null,null,14,"Revision",null,null,null,null,null,"CLO3",null,null,null,null,null,null,1,null,null,5]
[null,null,null,15]
[null,null,null,16]
[null,null,null,17]
[null,null,null,18]
[null,null,null,19]
[null,null,null,20]
[null,null,null,"SUB-TOTAL SLT: ",null,null,null,null,null,null,null,null,null,null,null,null,null,null,null,null,null,null,null,{"$f":"SUM(M60:P79)+SUM(Q60:T79)+SUM(U60:W79)","v":84}]
[null,null,null,"Continous Assessement",null,null,null,null,null,null,"%",null,"Face-to-Face (F2F)",null,null,null,null,null,null,null,"NF2F\nIndependent Learning for Assessment (Asynchronous)"]
[null,null,null,null,null,null,null,null,null,null,null,null,"Physical",null,null,null,"Online/ Technology-mediated (Synchronous)"]
[null,null,null,1,"Case Study",null,null,null,null,null,20,null,null,null,null,null,null,null,null,null,7]
[null,null,null,2,"Article Review",null,null,null,null,null,20,null,null,null,null,null,null,null,null,null,7]
[null,null,null,3,"Reflective writing",null,null,null,null,null,30,null,null,null,null,null,null,null,null,null,12]
[null,null,null,4]
[null,null,null,5]
[null,null,null,"SUB-TOTAL SLT: ",null,null,null,null,null,null,null,null,null,null,null,null,null,null,null,null,null,null,null,{"$f":"SUM(M83:W87)","v":26}]
[null,null,null,"Final Assessement",null,null,null,null,null,null,"%",null,"Face-to-Face (F2F)",null,null,null,null,null,null,null,"NF2F\nIndependent Learning for Assessment (Asynchronous)"]
[null,null,null,null,null,null,null,null,null,null,null,null,"Physical",null,null,null,"Online/ Technology-mediated (Synchronous)"]
[null,null,null,1,"Final Examination",null,null,null,null,null,30,null,null,null,null,null,2,null,null,null,8]
[null,null,null,2]
[null,null,null,3]
[null,null,null,4]
[null,null,null,5]
[null,null,null,"SUB-TOTAL SLT: ",null,null,null,null,null,null,null,null,null,null,null,null,null,null,null,null,null,null,null,{"$f":"SUM(M91:W95)","v":10}]
[]
[null,null,null,"SLT for Assessment:",null,null,null,null,null,null,null,null,null,null,null,null,null,null,null,null,null,null,null,{"$f":"X88+X96","v":36}]
[null,null,null,"GRAND TOTAL SLT:",null,null,null,null,null,null,null,null,null,null,null,null,null,null,null,null,null,null,null,{"$f":"X98+X80","v":120}]
[null,null,null,"A","% SLT for F2F Physical Component: \n[Total F2F Physical /(Total F2F Physical + Total F2F Online + Total Independent Learning) x 100)]",null,null,null,null,null,null,null,null,null,null,null,null,null,null,null,null,null,null,{"$f":"IFERROR(((SUM(M60:P79)+SUM(M83:P87)+SUM(M91:P95))/X99)* 100,\"\")","v":0}]
[]
[null,null,null,"B","% SLT for Online & Independent Learning Component:\n[(Total F2F Online + Total Independent Learning) /( Total F2F Physical + Total F2F Online + Total Independent Learning) x 100]",null,null,null,null,null,null,null,null,null,null,null,null,null,null,null,null,null,null,{"$f":"IFERROR((SUM(Q60:W79)+SUM(Q83:W87) + SUM(Q91:W95))/X99 * 100,\"\")","v":100}]
[null,null,null,"C","% SLT for All Practical Component:\n[% F2F Physical Practical + % F2F Online Practical]",null,null,null,null,null,null,null,null,null,null,null,null,null,null,null,null,null,null,{"$f":"IFERROR(X104+X105,\"\")","v":0}]
[null,null,null,"C1","% SLT for F2F Physical Practical Component\n[Total F2F Physical Practical /( Total F2F Physical + Total F2F Online + Total Independent Learning)  x 100)]",null,null,null,null,null,null,null,null,null,null,null,null,null,null,null,null,null,null,{"$f":"IFERROR(SUM(O60:O79)/X99*100,\"\")","v":0}]
[null,null,null,"C2","% SLT for F2F Online Practical Component\n[Total F2F Online Practical / (Total F2F Physical + Total F2F Online + Total Independent Learning) x 100]",null,null,null,null,null,null,null,null,null,null,null,null,null,null,null,null,null,null,{"$f":"IFERROR(SUM(S60:S79)/X99 *100,\"\")","v":0}]
[null,null,null,null,null,null,null,null,null,null,null,null,null,null,null,null,null,null,null,null,null,null,null,null,null,{"$f":"IFERROR(X102+X104,\"\")","v":100}]
[null,null,null,"Please  tick (√) if this course is Industrial Training/ Clinical Placement/ Practicum using 50% of Effective Learning Time (ELT)"]
[null,null,null,"Note: "]
[null,null,null,"* Indicate the CLO based on the CLO's numbering in Item 8"]
[null,null,null,"** For ODL programme: Courses with mandatory practical requiremnets imposed by the programme standards or any related standards can be exempted from complying to the minimum 80% ODL delivery rule in the SLT."]
[]
[null,11,"Identify special requirement or resources to deliver the course (e.g., software, nursery, computer lab, simulation room etc)",null,null,null,null,null,null,null,"None"]
[]
[null,12,"References (include required and further readings, and should be the most current)",null,null,null,null,null,null,null,"David, F. R. (2020). Strategic Management: Concepts and Cases. USA, Person Prentice Hall.\nDess, G. C., McNamara, G., Eisner, A. B., Lee, S. H. (2021). Strategic Management: Text and Cases. McGraw-Hill Education.\nLynch, R. (2018). Strategic Management. Pearson, UK. ISBN: 1292211431, 9781292211435.\n"]
[]
[null,13,"Other additional information (if applicable)",null,null,null,null,null,null,null,"None"]
[]
[]
[null,null,"Note: Number of PLO indicated is purely for illustration purposes only and the number is subjected to the curriculum design."]

{"sheet":"OBM4404","index":11,"n_rows":119,"n_cols":35,"rows_kept":119,"cut":false,"hidden":false,"merged":[[8,1,10,1],[8,2,10,4],[8,6,8,27],[9,6,9,27],[10,6,10,27],[3,2,3,4],[3,5,3,27],[4,2,4,4],[4,5,4,27],[5,2,5,4],[5,5,5,27],[11,2,11,4],[11,5,11,7],[11,9,11,10],[11,12,11,27],[12,2,12,4],[12,5,12,7],[6,2,6,4],[6,5,6,11],[7,2,7,4],[7,5,7,27],[13,2,13,4],[13,5,13,27],[15,2,22,4],[15,5,15,6],[15,7,15,26],[16,5,16,6],[16,7,16,26],[17,5,17,6],[17,7,17,26],[18,5,18,6],[22,5,22,6],[22,7,22,26],[24,2,24,27],[26,3,27,4],[26,5,26,16],[26,17,27,21],[26,22,27,25],[18,7,18,26],[19,5,19,6],[19,7,19,26],[20,5,20,6],[20,7,20,26],[21,5,21,6],[21,7,21,26],[30,3,30,4],[30,17,30,21],[30,22,30,25],[31,3,31,4],[31,17,31,21],[31,22,31,25],[28,3,28,4],[28,17,28,21],[28,22,28,25],[29,3,29,4],[29,17,29,21],[29,22,29,25],[34,3,34,4],[34,17,34,21],[34,22,34,25],[35,3,35,4],[35,17,35,21],[35,22,35,25],[32,3,32,4],[32,17,32,21],[32,22,32,25],[33,3,33,4],[33,17,33,21],[33,22,33,25],[42,3,42,25],[44,2,44,7],[45,2,46,7],[45,9,45,25],[46,9,46,25],[47,9,47,25],[36,3,38,4],[36,17,36,21],[37,17,37,21],[38,17,38,21],[40,3,40,25],[41,3,41,25],[56,20,58,22],[57,12,57,15],[57,16,57,19],[59,4,59,9],[59,10,59,11],[59,20,59,22],[48,8,48,25],[49,8,50,8],[49,9,50,25],[52,2,52,27],[53,2,53,26],[55,3,58,9],[55,10,58,11],[55,12,55,22],[55,23,58,25],[56,12,56,19],[59,23,59,25],[60,4,60,9],[60,10,60,11],[60,20,60,22],[60,23,60,25],[61,4,61,9],[61,10,61,11],[61,20,61,22],[61,23,61,25],[64,4,64,9],[64,10,64,11],[64,20,64,22],[64,23,64,25],[65,4,65,9],[65,10,65,11],[65,20,65,22],[65,23,65,25],[62,4,62,9],[62,10,62,11],[62,20,62,22],[62,23,62,25],[63,4,63,9],[63,10,63,11],[63,20,63,22],[63,23,63,25],[68,23,68,25],[69,4,69,9],[69,10,69,11],[69,20,69,22],[66,4,66,9],[66,10,66,11],[66,20,66,22],[66,23,66,25],[67,4,67,9],[67,10,67,11],[67,20,67,22],[67,23,67,25],[70,4,70,9],[70,10,70,11],[70,20,70,22],[71,4,71,9],[71,20,71,22],[72,4,72,9],[72,20,72,22],[68,4,68,9],[68,10,68,11],[68,20,68,22],[73,4,73,9],[74,4,74,9],[74,10,74,11],[74,20,74,22],[74,23,74,25],[75,4,75,9],[75,10,75,11],[75,20,75,22],[75,23,75,25],[78,23,78,25],[79,3,79,22],[79,23,79,25],[76,4,76,9],[76,10,76,11],[76,20,76,22],[76,23,76,25],[77,4,77,9],[77,10,77,11],[77,20,77,22],[77,23,77,25],[80,3,81,9],[80,10,81,11],[80,12,80,19],[80,20,81,22],[81,12,81,15],[81,16,81,19],[78,4,78,9],[78,10,78,11],[78,20,78,22],[82,4,82,9],[82,10,82,11],[82,12,82,15],[82,16,82,19],[82,20,82,22],[83,4,83,9],[83,10,83,11],[83,12,83,15],[83,16,83,19],[83,20,83,22],[84,4,84,9],[84,10,84,11],[84,12,84,15],[84,16,84,19],[84,20,84,22],[85,4,85,9],[85,10,85,11],[85,12,85,15],[85,16,85,19],[85,20,85,22],[87,23,87,25],[88,3,89,9],[88,10,89,11],[88,12,88,19],[88,20,89,22],[89,12,89,15],[89,16,89,19],[86,4,86,9],[86,10,86,11],[86,12,86,15],[86,16,86,19],[86,20,86,22],[87,3,87,22],[90,4,90,9],[90,10,90,11],[90,12,90,15],[90,16,90,19],[90,20,90,22],[91,4,91,9],[91,10,91,11],[91,12,91,15],[91,16,91,19],[91,20,91,22],[92,4,92,9],[92,10,92,11],[92,12,92,15],[92,16,92,19],[92,20,92,22],[93,4,93,9],[93,10,93,11],[93,12,93,15],[93,16,93,19],[93,20,93,22],[95,23,95,25],[97,3,97,22],[97,23,97,25],[98,3,98,22],[98,23,98,25],[99,3,100,3],[99,4,100,22],[99,23,100,25],[94,4,94,9],[94,10,94,11],[94,12,94,15],[94,16,94,19],[94,20,94,22],[95,3,95,22],[104,4,104,22],[104,23,104,25],[106,3,106,22],[106,23,106,25],[108,3,108,25],[109,3,109,25],[101,4,101,22],[101,23,101,25],[102,4,102,22],[102,23,102,25],[103,4,103,22],[103,23,103,25],[115,1,116,1],[115,2,116,9],[115,10,116,27],[118,2,118,27],[119,1,119,27],[110,3,110,22],[111,1,112,1],[111,2,112,9],[111,10,112,27],[113,1,114,1],[113,2,114,9],[113,10,114,27]]}
[]
[null,"Back To FORM @ TEMPLATE"]
[null,null,null,null,null,null,null,null,null,null,null,null,null,null,null,null,null,null,null,null,null,null,null,null,null,null,null,null,null,null,null,null,null,null,"√"]
[]
[null,1,"Course Name:",null,null,"Managerial Economics",null,null,null,null,null,null,null,null,null,null,null,null,null,null,null,null,null,null,null,null,null,null,null,null,null,null,null,null,"Semester"]
[null,null,"Course Code:",null,null,"OBM4404",null,null,null,null,null,null,null,null,null,null,null,null,null,null,null,null,null,null,null,null,null,null,null,null,null,null,null,null,1]
[null,null,"Course Classification:",null,null,"Major (core) ",null,null,null,null,null,null,null,null,null,null,null,null,null,null,null,null,null,null,null,null,null,null,null,null,null,null,null,null,2]
[null,2,"Synopsis:",null,null,"This module is concerned with the application of economic principles to key management decisions within organisations. It provides guidance to increase value creation within organisations, and allows a better understanding of the external business environment in which organisations operate.",null,null,null,null,null,null,null,null,null,null,null,null,null,null,null,null,null,null,null,null,null,null,null,null,null,null,null,null,3]
[null,{"$f":"B8+1","v":3},"Name(s) of Academic Staff:",null,null,1,"Dr.Chandramalar Munusami"]
[null,null,null,null,null,2,null,null,null,null,null,null,null,null,null,null,null,null,null,null,null,null,null,null,null,null,null,null,null,null,null,null,null,null,"Year Offered"]
[null,null,null,null,null,3,null,null,null,null,null,null,null,null,null,null,null,null,null,null,null,null,null,null,null,null,null,null,null,null,null,null,null,null,1]
[null,{"$f":"B9+1","v":4},"Semester and Year offered:",null,null,"Year Offered",null,null,1,"Semester",null,2,"Remarks:",null,null,null,null,null,null,null,null,null,null,null,null,null,null,null,null,null,null,null,null,null,2]
[null,{"$f":"B12+1","v":5},"Credit Value:",null,null,{"$f":"IF(X107 =\"√\",INT(X99/80),INT(X99/40))","v":3},null,null,3,null,null,null,null,null,null,null,null,null,null,null,null,null,null,null,null,null,null,null,null,null,null,null,null,null,3]
[null,6,"Pre-requisite/ co-requisite (if any):",null,null,null,null,null,null,null,null,null,null,null,null,null,null,null,null,null,null,null,null,null,null,null,null,null,null,null,null,null,null,null,4]
[null,null,null,null,null,null,null,null,null,null,null,null,null,null,null,null,null,null,null,null,null,null,null,null,null,null,null,null,null,null,null,null,null,null,5]
[null,7,"Course Learning Outcomes (CLO)",null,null,"CLO1",null,"Explain the underlying theories of microeconomics and macroeconomics in managerial problem solving.(C2, PLO2)",null,null,null,null,null,null,null,null,null,null,null,null,null,null,null,null,null,null,null,null,null,null,null,null,null,null,6]
[null,null,null,null,null,"CLO2",null,"Discuss the role of economics in our society (C6, PLO4)",null,null,null,null,null,null,null,null,null,null,null,null,null,null,null,null,null,null,null,null,null,null,null,null,null,null,7]
[null,null,null,null,null,"CLO3",null,"Elaborate the role played by the government in economics.(C6, PLO9) ",null,null,null,null,null,null,null,null,null,null,null,null,null,null,null,null,null,null,null,null,null,null,null,null,null,null,8]
[]
[null,null,null,null,null,null,null,null,null,null,null,null,null,null,null,null,null,null,null,null,null,null,null,null,null,null,null,null,null,null,null,null,null,null,"Compulsory"]
[null,null,null,null,null,null,null,null,null,null,null,null,null,null,null,null,null,null,null,null,null,null,null,null,null,null,null,null,null,null,null,null,null,null,"Major (core) "]
[null,null,null,null,null,null,null,null,null,null,null,null,null,null,null,null,null,null,null,null,null,null,null,null,null,null,null,null,null,null,null,null,null,null,"Minor"]
[null,null,null,null,null,null,null,null,null,null,null,null,null,null,null,null,null,null,null,null,null,null,null,null,null,null,null,null,null,null,null,null,null,null,"Elective (core) "]
[null,null,null,null,null,null,null,null,null,null,null,null,null,null,null,null,null,null,null,null,null,null,null,null,null,null,null,null,null,null,null,null,null,null,"Elective (open/free)"]
[null,8,"Mapping of the Course Learning Outcomes to the Programme Learning Outcomes, Teaching Methods and Assessment Methods"]
[]
[null,null,null,"Course Learning Outcomes",null,"Programme Learning Outcomes (PLO)",null,null,null,null,null,null,null,null,null,null,null,"Teaching Methods",null,null,null,null,"Assessment Methods"]
[null,null,null,null,null,"PLO 1","PLO 2","PLO 3","PLO 4","PLO 5","PLO 6","PLO 7","PLO 8","PLO 9","PLO 10","PLO 11"]
[null,null,null,{"$f":"IF(ISBLANK(F16),\"\",F16)","v":"CLO1"},null,null,"√",null,null,null,null,null,null,null,null,null,null,"Tutorial; Online Discussion Forum",null,null,null,null,"Assignment 1; Final Exam"]
[null,null,null,{"$f":"IF(ISBLANK(F17),\"\",F17)","v":"CLO2"},null,null,null,null,"√",null,null,null,null,null,null,null,null,"Tutorial",null,null,null,null,"Assigment 2; Presentation; Final Exam"]
[null,null,null,"CLO3",null,null,null,null,null,null,null,null,null,"√",null,null,null,"Tutorial",null,null,null,null,"Assignment 3; Final Exam"]
[null,null,null,""]
[null,null,null,""]
[null,null,null,""]
[null,null,null,""]
[null,null,null,"",null,null,null,null,null,null,null,null,null,null,null,null,null,null,null,null,null,null,null,null,null,null,null,null,null,null,null,null,null,null,"Cognitive skills  "]
[null,null,null,"Mapping with MQF Cluster of Learning Outcomes",null,null,"C1",null,"C3B",null,null,null,null,"C5",null,null,null,null,null,null,null,null,null,null,null,null,null,null,null,null,null,null,null,null,"Interpersonal skills"]
[null,null,null,null,null,null,null,null,"C3C",null,null,null,null,null,null,null,null,null,null,null,null,null,null,null,null,null,null,null,null,null,null,null,null,null,"Communication Skills"]
[null,null,null,null,null,null,null,null,null,null,null,null,null,null,null,null,null,null,null,null,null,null,null,null,null,null,null,null,null,null,null,null,null,null,"Digital Skills"]
[null,null,null,null,null,null,null,null,null,null,null,null,null,null,null,null,null,null,null,null,null,null,null,null,null,null,null,null,null,null,null,null,null,null,"Numeracy Skills"]
[null,null,null,"Indicate the primary causal link between the CLO and PLO by ticking  '√' in the appropriate box.",null,null,null,null,null,null,null,null,null,null,null,null,null,null,null,null,null,null,null,null,null,null,null,null,null,null,null,null,null,null,"Leadership, Autonomy and Responsibility"]
[null,null,null,"C1 = Knowledge & Understanding, C2 = Cognitive Skills, C3A = Practical Skills, C3B = Interpersonal Skills, C3C = Communication Skills, C3D = Digital Skills,",null,null,null,null,null,null,null,null,null,null,null,null,null,null,null,null,null,null,null,null,null,null,null,null,null,null,null,null,null,null,"Personal Skills"]
[null,null,null,"C3E = Numeracy Skills, C3F = Leadership, Autonomy & Responsibility, C4A = Personal Skills, C4B = Entrepreneurial Skills, C5 = Ethics & Professionalism",null,null,null,null,null,null,null,null,null,null,null,null,null,null,null,null,null,null,null,null,null,null,null,null,null,null,null,null,null,null,"Entrepreneurial Skills"]
[null,null,null,null,null,null,null,null,null,null,null,null,null,null,null,null,null,null,null,null,null,null,null,null,null,null,null,null,null,null,null,null,null,null,"Ethics and Professionalism"]
[null,9,"Transferable Skills (if applicable)"]
[null,null,"(Skills learned in the course of study which can be useful and utilized in other settings)",null,null,null,null,null,1,"Personal Skills",null,null,null,null,null,null,null,null,null,null,null,null,null,null,null,null,null,null,null,null,null,null,null,null,"C1"]
[null,null,null,null,null,null,null,null,2,"Entrepreneurial Skills",null,null,null,null,null,null,null,null,null,null,null,null,null,null,null,null,null,null,null,null,null,null,null,null,"C2"]
[null,null,null,null,null,null,null,null,3,"Leadership, Autonomy and Responsibility",null,null,null,null,null,null,null,null,null,null,null,null,null,null,null,null,null,null,null,null,null,null,null,null,"C3A"]
[null,null,null,null,null,null,null,null,"Open-ended response (if any)",null,null,null,null,null,null,null,null,null,null,null,null,null,null,null,null,null,null,null,null,null,null,null,null,null,"C3B"]
[null,null,null,null,null,null,null,null,4,null,null,null,null,null,null,null,null,null,null,null,null,null,null,null,null,null,null,null,null,null,null,null,null,null,"C3C"]
[null,null,null,null,null,null,null,null,null,null,null,null,null,null,null,null,null,null,null,null,null,null,null,null,null,null,null,null,null,null,null,null,null,null,"C3D"]
[null,null,null,null,null,null,null,null,null,null,null,null,null,null,null,null,null,null,null,null,null,null,null,null,null,null,null,"`",null,null,null,null,null,null,"C3E"]
[null,10,"Distribution of Student Learning Time (SLT)",null,null,null,null,null,null,null,null,null,null,null,null,null,null,null,null,null,null,null,null,null,null,null,null,null,null,null,null,null,null,null,"C3F"]
[null,null,"Note: This SLT calculation is designed for home grown programme only.",null,null,null,null,null,null,null,null,null,null,null,null,null,null,null,null,null,null,null,null,null,null,null,null,null,null,null,null,null,null,null,"C4A"]
[null,null,null,null,null,null,null,null,null,null,null,null,null,null,null,null,null,null,null,null,null,null,null,null,null,null,null,null,null,null,null,null,null,null,"C4B"]
[null,null,null,"Course Content Outline and Subtopics",null,null,null,null,null,null,"CLO*",null,"Learning and Teaching Activities**",null,null,null,null,null,null,null,null,null,null,"Total SLT",null,null,null,null,null,null,null,null,null,null,"C5"]
[null,null,null,null,null,null,null,null,null,null,null,null,"Face-to-Face (F2F)",null,null,null,null,null,null,null,"NF2F\nIndependent Learning\n(Asynchronous)"]
[null,null,null,null,null,null,null,null,null,null,null,null,"Physical",null,null,null,"Online/ Technology-mediated (Synchronous)"]
[null,null,null,null,null,null,null,null,null,null,null,null,"L","T","P","O","L","T","P","O"]
[null,null,null,1,"Managers & Economics\n-\tMicroeconomics\n-\tMacroeconomics",null,null,null,null,null,"CLO1",null,null,null,null,null,null,2,null,null,5]
[null,null,null,2,"Demand & Supply\n-\tEquilibrium Prices\n-\tDemand & Supply Function\n-\tDemand & Supply Curve",null,null,null,null,null,"CLO1",null,null,null,null,null,null,2,null,null,5]
[null,null,null,3,"Demand Elasticities\n- Price elasticity on demand\n- The influence of price elasticity on managerial decision making",null,null,null,null,null,"CLO1,CLO2",null,null,null,null,null,null,1,null,null,6]
[null,null,null,4,"Production and Cost Analysis in the Short Run\n-\tThe production function\n-\tShot run Vs long run production functions \n-\tRelationship among TP, AP, MP\n-\tModel of short run cost functions\n-\tRelationship among TC, AC, MC",null,null,null,null,null,"CLO1,CLO2",null,null,null,null,null,null,1,null,null,6]
[null,null,null,5,"Market Structure: Perfect Competition\n-\tCharacteristic of PC\n-\tCalculation of profit",null,null,null,null,null,"CLO1,CLO2",null,null,null,null,null,null,1,null,null,6]
[null,null,null,6,"Market Structure: Monopoly and Monopolistic Competition\n-\tCharacteristic \n-\tCalculation of profit",null,null,null,null,null,"CLO1,CLO2",null,null,null,null,null,null,1,null,null,6]
[null,null,null,7,"Market Structure: Oligopoly\n-\tCharacteristic ",null,null,null,null,null,"CLO1,CLO2",null,null,null,null,null,null,1,null,null,6]
[null,null,null,8,"Measuring Macroeconomic Activity-PART 1",null,null,null,null,null,"CLO2,CLO3",null,null,null,null,null,null,1,null,null,6]
[null,null,null,9,"Measuring Macroeconomic Activity-PART 2",null,null,null,null,null,"CLO2,CLO3",null,null,null,null,null,null,1,null,null,6]
[null,null,null,10,"The Aggregate Model of the Macro Economy",null,null,null,null,null,"CLO2,CLO3",null,null,null,null,null,null,1,null,null,6]
[null,null,null,{"$f":"D69+1","v":11},"Combining Micro and Macro Analysis for Managerial Decision Making-PART 1",null,null,null,null,null,"CLO2,CLO3",null,null,null,null,null,null,1,null,null,6]
[null,null,null,{"$f":"D70+1","v":12},"Combining Micro and Macro Analysis for Managerial Decision Making-PART 2",null,null,null,null,null,"CLO2,CLO3",null,null,null,null,null,null,1,null,null,6]
[null,null,null,13]
[null,null,null,14]
[null,null,null,15]
[null,null,null,16]
[null,null,null,17]
[null,null,null,18]
[null,null,null,19]
[null,null,null,20]
[null,null,null,"SUB-TOTAL SLT: ",null,null,null,null,null,null,null,null,null,null,null,null,null,null,null,null,null,null,null,{"$f":"SUM(M60:P79)+SUM(Q60:T79)+SUM(U60:W79)","v":84}]
[null,null,null,"Continous Assessement",null,null,null,null,null,null,"%",null,"Face-to-Face (F2F)",null,null,null,null,null,null,null,"NF2F\nIndependent Learning for Assessment (Asynchronous)"]
[null,null,null,null,null,null,null,null,null,null,null,null,"Physical",null,null,null,"Online/ Technology-mediated (Synchronous)"]
[null,null,null,1,"Assignment 1",null,null,null,null,null,20,null,null,null,null,null,null,null,null,null,6]
[null,null,null,2,"Assignment 2",null,null,null,null,null,20,null,null,null,null,null,null,null,null,null,6]
[null,null,null,3,"Assignment 3",null,null,null,null,null,20,null,null,null,null,null,2,null,null,null,6]
[null,null,null,4,"Presentation",null,null,null,null,null,10,null,null,null,null,null,2,null,null,null,4]
[null,null,null,5]
[null,null,null,"SUB-TOTAL SLT: ",null,null,null,null,null,null,null,null,null,null,null,null,null,null,null,null,null,null,null,{"$f":"SUM(M83:W87)","v":26}]
[null,null,null,"Final Assessement",null,null,null,null,null,null,"%",null,"Face-to-Face (F2F)",null,null,null,null,null,null,null,"NF2F\nIndependent Learning for Assessment (Asynchronous)"]
[null,null,null,null,null,null,null,null,null,null,null,null,"Physical",null,null,null,"Online/ Technology-mediated (Synchronous)"]
[null,null,null,1,"Final Exam",null,null,null,null,null,30,null,null,null,null,null,null,null,null,null,10]
[null,null,null,2]
[null,null,null,3]
[null,null,null,4]
[null,null,null,5]
[null,null,null,"SUB-TOTAL SLT: ",null,null,null,null,null,null,null,null,null,null,null,null,null,null,null,null,null,null,null,{"$f":"SUM(M91:W95)","v":10}]
[]
[null,null,null,"SLT for Assessment:",null,null,null,null,null,null,null,null,null,null,null,null,null,null,null,null,null,null,null,{"$f":"X88+X96","v":36}]
[null,null,null,"GRAND TOTAL SLT:",null,null,null,null,null,null,null,null,null,null,null,null,null,null,null,null,null,null,null,{"$f":"X98+X80","v":120}]
[null,null,null,"A","% SLT for F2F Physical Component: \n[Total F2F Physical /(Total F2F Physical + Total F2F Online + Total Independent Learning) x 100)]",null,null,null,null,null,null,null,null,null,null,null,null,null,null,null,null,null,null,{"$f":"IFERROR(((SUM(M60:P79)+SUM(M83:P87)+SUM(M91:P95))/X99)* 100,\"\")","v":0}]
[]
[null,null,null,"B","% SLT for Online & Independent Learning Component:\n[(Total F2F Online + Total Independent Learning) /( Total F2F Physical + Total F2F Online + Total Independent Learning) x 100]",null,null,null,null,null,null,null,null,null,null,null,null,null,null,null,null,null,null,{"$f":"IFERROR((SUM(Q60:W79)+SUM(Q83:W87) + SUM(Q91:W95))/X99 * 100,\"\")","v":100}]
[null,null,null,"C","% SLT for All Practical Component:\n[% F2F Physical Practical + % F2F Online Practical]",null,null,null,null,null,null,null,null,null,null,null,null,null,null,null,null,null,null,{"$f":"IFERROR(X104+X105,\"\")","v":0}]
[null,null,null,"C1","% SLT for F2F Physical Practical Component\n[Total F2F Physical Practical /( Total F2F Physical + Total F2F Online + Total Independent Learning)  x 100)]",null,null,null,null,null,null,null,null,null,null,null,null,null,null,null,null,null,null,{"$f":"IFERROR(SUM(O60:O79)/X99*100,\"\")","v":0}]
[null,null,null,"C2","% SLT for F2F Online Practical Component\n[Total F2F Online Practical / (Total F2F Physical + Total F2F Online + Total Independent Learning) x 100]",null,null,null,null,null,null,null,null,null,null,null,null,null,null,null,null,null,null,{"$f":"IFERROR(SUM(S60:S79)/X99 *100,\"\")","v":0}]
[null,null,null,null,null,null,null,null,null,null,null,null,null,null,null,null,null,null,null,null,null,null,null,null,null,{"$f":"IFERROR(X102+X104,\"\")","v":100}]
[null,null,null,"Please  tick (√) if this course is Industrial Training/ Clinical Placement/ Practicum using 50% of Effective Learning Time (ELT)"]
[null,null,null,"Note: "]
[null,null,null,"* Indicate the CLO based on the CLO's numbering in Item 8"]
[null,null,null,"** For ODL programme: Courses with mandatory practical requiremnets imposed by the programme standards or any related standards can be exempted from complying to the minimum 80% ODL delivery rule in the SLT."]
[]
[null,11,"Identify special requirement or resources to deliver the course (e.g., software, nursery, computer lab, simulation room etc)"]
[]
[null,12,"References (include required and further readings, and should be the most current)",null,null,null,null,null,null,null,"Mankiw, N.G, 2017. Principles of economics. 8th ed. South-Western College Pub"]
[]
[null,13,"Other additional information (if applicable)",null,null,null,null,null,null,null,"Krugman, P. & Wells, R. 2015. Economics. 4th ed. Worth Publishers."]
[]
[]
[null,null,"Note: Number of PLO indicated is purely for illustration purposes only and the number is subjected to the curriculum design."]

{"sheet":"OBM4403","index":12,"n_rows":119,"n_cols":35,"rows_kept":119,"cut":false,"hidden":false,"merged":[[8,1,10,1],[8,2,10,4],[8,6,8,27],[9,6,9,27],[10,6,10,27],[3,2,3,4],[3,5,3,27],[4,2,4,4],[4,5,4,27],[5,2,5,4],[5,5,5,27],[11,2,11,4],[11,5,11,7],[11,9,11,10],[11,12,11,27],[12,2,12,4],[12,5,12,7],[6,2,6,4],[6,5,6,11],[7,2,7,4],[7,5,7,27],[13,2,13,4],[13,5,13,27],[15,2,22,4],[15,5,15,6],[15,7,15,26],[16,5,16,6],[16,7,16,26],[17,5,17,6],[17,7,17,26],[18,5,18,6],[22,5,22,6],[22,7,22,26],[24,2,24,27],[26,3,27,4],[26,5,26,16],[26,17,27,21],[26,22,27,25],[18,7,18,26],[19,5,19,6],[19,7,19,26],[20,5,20,6],[20,7,20,26],[21,5,21,6],[21,7,21,26],[30,3,30,4],[30,17,30,21],[30,22,30,25],[31,3,31,4],[31,17,31,21],[31,22,31,25],[28,3,28,4],[28,17,28,21],[28,22,28,25],[29,3,29,4],[29,17,29,21],[29,22,29,25],[34,3,34,4],[34,17,34,21],[34,22,34,25],[35,3,35,4],[35,17,35,21],[35,22,35,25],[32,3,32,4],[32,17,32,21],[32,22,32,25],[33,3,33,4],[33,17,33,21],[33,22,33,25],[42,3,42,25],[44,2,44,7],[45,2,46,7],[45,9,45,25],[46,9,46,25],[47,9,47,25],[36,3,38,4],[36,17,36,21],[37,17,37,21],[38,17,38,21],[40,3,40,25],[41,3,41,25],[56,20,58,22],[57,12,57,15],[57,16,57,19],[59,4,59,9],[59,10,59,11],[59,20,59,22],[48,8,48,25],[49,8,50,8],[49,9,50,25],[52,2,52,27],[53,2,53,26],[55,3,58,9],[55,10,58,11],[55,12,55,22],[55,23,58,25],[56,12,56,19],[59,23,59,25],[60,4,60,9],[60,10,60,11],[60,20,60,22],[60,23,60,25],[61,4,61,9],[61,10,61,11],[61,20,61,22],[61,23,61,25],[64,4,64,9],[64,10,64,11],[64,20,64,22],[64,23,64,25],[65,4,65,9],[65,10,65,11],[65,20,65,22],[65,23,65,25],[62,4,62,9],[62,10,62,11],[62,20,62,22],[62,23,62,25],[63,4,63,9],[63,10,63,11],[63,20,63,22],[63,23,63,25],[68,4,68,9],[68,10,68,11],[68,20,68,22],[68,23,68,25],[69,4,69,9],[69,10,69,11],[69,20,69,22],[66,4,66,9],[66,10,66,11],[66,20,66,22],[66,23,66,25],[67,4,67,9],[67,10,67,11],[67,20,67,22],[67,23,67,25],[72,4,72,9],[72,10,72,11],[72,20,72,22],[73,4,73,9],[74,4,74,9],[74,10,74,11],[74,20,74,22],[70,4,70,9],[70,10,70,11],[70,20,70,22],[71,4,71,9],[71,10,71,11],[71,20,71,22],[74,23,74,25],[75,4,75,9],[75,10,75,11],[75,20,75,22],[75,23,75,25],[76,4,76,9],[76,10,76,11],[76,20,76,22],[76,23,76,25],[79,3,79,22],[79,23,79,25],[80,3,81,9],[80,10,81,11],[80,12,80,19],[80,20,81,22],[81,12,81,15],[81,16,81,19],[77,4,77,9],[77,10,77,11],[77,20,77,22],[77,23,77,25],[78,4,78,9],[78,10,78,11],[78,20,78,22],[78,23,78,25],[82,4,82,9],[82,10,82,11],[82,12,82,15],[82,16,82,19],[82,20,82,22],[83,4,83,9],[83,10,83,11],[83,12,83,15],[83,16,83,19],[83,20,83,22],[84,4,84,9],[84,10,84,11],[84,12,84,15],[84,16,84,19],[84,20,84,22],[85,4,85,9],[85,10,85,11],[85,12,85,15],[85,16,85,19],[85,20,85,22],[87,23,87,25],[88,3,89,9],[88,10,89,11],[88,12,88,19],[88,20,89,22],[89,12,89,15],[89,16,89,19],[86,4,86,9],[86,10,86,11],[86,12,86,15],[86,16,86,19],[86,20,86,22],[87,3,87,22],[90,4,90,9],[90,10,90,11],[90,12,90,15],[90,16,90,19],[90,20,90,22],[91,4,91,9],[91,10,91,11],[91,12,91,15],[91,16,91,19],[91,20,91,22],[92,4,92,9],[92,10,92,11],[92,12,92,15],[92,16,92,19],[92,20,92,22],[93,4,93,9],[93,10,93,11],[93,12,93,15],[93,16,93,19],[93,20,93,22],[95,23,95,25],[97,3,97,22],[97,23,97,25],[98,3,98,22],[98,23,98,25],[99,3,100,3],[99,4,100,22],[99,23,100,25],[94,4,94,9],[94,10,94,11],[94,12,94,15],[94,16,94,19],[94,20,94,22],[95,3,95,22],[104,4,104,22],[104,23,104,25],[106,3,106,22],[106,23,106,25],[108,3,108,25],[109,3,109,25],[101,4,101,22],[101,23,101,25],[102,4,102,22],[102,23,102,25],[103,4,103,22],[103,23,103,25],[115,1,116,1],[115,2,116,9],[115,10,116,27],[118,2,118,27],[119,1,119,27],[110,3,110,22],[111,1,112,1],[111,2,112,9],[111,10,112,27],[113,1,114,1],[113,2,114,9],[113,10,114,27]]}
[]
[null,"Back To FORM @ TEMPLATE"]
[null,null,null,null,null,null,null,null,null,null,null,null,null,null,null,null,null,null,null,null,null,null,null,null,null,null,null,null,null,null,null,null,null,null,"√"]
[]
[null,1,"Course Name:",null,null,"Marketing Management",null,null,null,null,null,null,null,null,null,null,null,null,null,null,null,null,null,null,null,null,null,null,null,null,null,null,null,null,"Semester"]
[null,null,"Course Code:",null,null,"OBM4403",null,null,null,null,null,null,null,null,null,null,null,null,null,null,null,null,null,null,null,null,null,null,null,null,null,null,null,null,1]
[null,null,"Course Classification:",null,null,"Major (core) ",null,null,null,null,null,null,null,null,null,null,null,null,null,null,null,null,null,null,null,null,null,null,null,null,null,null,null,null,2]
[null,2,"Synopsis:",null,null,"This module emphasises the need for marketing managers to apply the relationship marketing approach in combination with the traditional/transactional marketing approach in making well-informed decision and developing marketing strategies and actions based on profitable long term buyer-supplier relationships in a dynamic and competitive marketing environment.",null,null,null,null,null,null,null,null,null,null,null,null,null,null,null,null,null,null,null,null,null,null,null,null,null,null,null,null,3]
[null,{"$f":"B8+1","v":3},"Name(s) of Academic Staff:",null,null,1,"Dr. Siti Aishah Binti Hussin"]
[null,null,null,null,null,2,null,null,null,null,null,null,null,null,null,null,null,null,null,null,null,null,null,null,null,null,null,null,null,null,null,null,null,null,"Year Offered"]
[null,null,null,null,null,3,null,null,null,null,null,null,null,null,null,null,null,null,null,null,null,null,null,null,null,null,null,null,null,null,null,null,null,null,1]
[null,{"$f":"B9+1","v":4},"Semester and Year offered:",null,null,"Year Offered",null,null,1,"Semester",null,2,"Remarks:",null,null,null,null,null,null,null,null,null,null,null,null,null,null,null,null,null,null,null,null,null,2]
[null,{"$f":"B12+1","v":5},"Credit Value:",null,null,{"$f":"IF(X107 =\"√\",INT(X99/80),INT(X99/40))","v":3},null,null,3,null,null,null,null,null,null,null,null,null,null,null,null,null,null,null,null,null,null,null,null,null,null,null,null,null,3]
[null,6,"Pre-requisite/ co-requisite (if any):",null,null,null,null,null,null,null,null,null,null,null,null,null,null,null,null,null,null,null,null,null,null,null,null,null,null,null,null,null,null,null,4]
[null,null,null,null,null,null,null,null,null,null,null,null,null,null,null,null,null,null,null,null,null,null,null,null,null,null,null,null,null,null,null,null,null,null,5]
[null,7,"Course Learning Outcomes (CLO)",null,null,"CLO1",null,"Make use of the elements of marketing strategy and planning in designing a marketing plan (C3, PLO1).",null,null,null,null,null,null,null,null,null,null,null,null,null,null,null,null,null,null,null,null,null,null,null,null,null,null,6]
[null,null,null,null,null,"CLO2",null,"Distinguish the use of appropriate marketing mix in conjunction with relationship marketing strategies to develop value offering in the marketplace (C4, PLO2).",null,null,null,null,null,null,null,null,null,null,null,null,null,null,null,null,null,null,null,null,null,null,null,null,null,null,7]
[null,null,null,null,null,"CLO3",null,"Determine solutions to sustain long term growth via integrating both traditional and contemporary marketing approaches  (C5, PLO9).",null,null,null,null,null,null,null,null,null,null,null,null,null,null,null,null,null,null,null,null,null,null,null,null,null,null,8]
[]
[null,null,null,null,null,null,null,null,null,null,null,null,null,null,null,null,null,null,null,null,null,null,null,null,null,null,null,null,null,null,null,null,null,null,"Compulsory"]
[null,null,null,null,null,null,null,null,null,null,null,null,null,null,null,null,null,null,null,null,null,null,null,null,null,null,null,null,null,null,null,null,null,null,"Major (core) "]
[null,null,null,null,null,null,null,null,null,null,null,null,null,null,null,null,null,null,null,null,null,null,null,null,null,null,null,null,null,null,null,null,null,null,"Minor"]
[null,null,null,null,null,null,null,null,null,null,null,null,null,null,null,null,null,null,null,null,null,null,null,null,null,null,null,null,null,null,null,null,null,null,"Elective (core) "]
[null,null,null,null,null,null,null,null,null,null,null,null,null,null,null,null,null,null,null,null,null,null,null,null,null,null,null,null,null,null,null,null,null,null,"Elective (open/free)"]
[null,8,"Mapping of the Course Learning Outcomes to the Programme Learning Outcomes, Teaching Methods and Assessment Methods"]
[]
[null,null,null,"Course Learning Outcomes",null,"Programme Learning Outcomes (PLO)",null,null,null,null,null,null,null,null,null,null,null,"Teaching Methods",null,null,null,null,"Assessment Methods"]
[null,null,null,null,null,"PLO 1","PLO 2","PLO 3","PLO 4","PLO 5","PLO 6","PLO 7","PLO 8","PLO 9","PLO 10","PLO 11"]
[null,null,null,{"$f":"IF(ISBLANK(F16),\"\",F16)","v":"CLO1"},null,"√",null,null,null,null,null,null,null,null,null,null,null,"Pre-recorded lectures, Tutorial, Online Forum",null,null,null,null,"Assignment 1, Final Examination"]
[null,null,null,{"$f":"IF(ISBLANK(F17),\"\",F17)","v":"CLO2"},null,null,"√",null,null,null,null,null,null,null,null,null,null,"Pre-recorded lectures, Tutorial, Online Forum",null,null,null,null,"Assignment 2 & Journal Review"]
[null,null,null,"CLO3",null,null,null,null,null,null,null,null,null,"√",null,null,null,"Pre-recorded lectures, Tutorial, Online Forum",null,null,null,null,"Assignment 3, Final Examination"]
[null,null,null,""]
[null,null,null,""]
[null,null,null,""]
[null,null,null,""]
[null,null,null,"",null,null,null,null,null,null,null,null,null,null,null,null,null,null,null,null,null,null,null,null,null,null,null,null,null,null,null,null,null,null,"Cognitive skills  "]
[null,null,null,"Mapping with MQF Cluster of Learning Outcomes",null,"C1",null,null,null,null,null,null,null,null,null,null,null,null,null,null,null,null,null,null,null,null,null,null,null,null,null,null,null,null,"Interpersonal skills"]
[null,null,null,null,null,null,"C2",null,null,null,null,null,null,null,null,null,null,null,null,null,null,null,null,null,null,null,null,null,null,null,null,null,null,null,"Communication Skills"]
[null,null,null,null,null,null,null,null,null,null,null,null,null,"C4B",null,null,null,null,null,null,null,null,null,null,null,null,null,null,null,null,null,null,null,null,"Digital Skills"]
[null,null,null,null,null,null,null,null,null,null,null,null,null,null,null,null,null,null,null,null,null,null,null,null,null,null,null,null,null,null,null,null,null,null,"Numeracy Skills"]
[null,null,null,"Indicate the primary causal link between the CLO and PLO by ticking  '√' in the appropriate box.",null,null,null,null,null,null,null,null,null,null,null,null,null,null,null,null,null,null,null,null,null,null,null,null,null,null,null,null,null,null,"Leadership, Autonomy and Responsibility"]
[null,null,null,"C1 = Knowledge & Understanding, C2 = Cognitive Skills, C3A = Practical Skills, C3B = Interpersonal Skills, C3C = Communication Skills, C3D = Digital Skills,",null,null,null,null,null,null,null,null,null,null,null,null,null,null,null,null,null,null,null,null,null,null,null,null,null,null,null,null,null,null,"Personal Skills"]
[null,null,null,"C3E = Numeracy Skills, C3F = Leadership, Autonomy & Responsibility, C4A = Personal Skills, C4B = Entrepreneurial Skills, C5 = Ethics & Professionalism",null,null,null,null,null,null,null,null,null,null,null,null,null,null,null,null,null,null,null,null,null,null,null,null,null,null,null,null,null,null,"Entrepreneurial Skills"]
[null,null,null,null,null,null,null,null,null,null,null,null,null,null,null,null,null,null,null,null,null,null,null,null,null,null,null,null,null,null,null,null,null,null,"Ethics and Professionalism"]
[null,9,"Transferable Skills (if applicable)"]
[null,null,"(Skills learned in the course of study which can be useful and utilized in other settings)",null,null,null,null,null,1,"Cognitive skills  ",null,null,null,null,null,null,null,null,null,null,null,null,null,null,null,null,null,null,null,null,null,null,null,null,"C1"]
[null,null,null,null,null,null,null,null,2,"Interpersonal skills",null,null,null,null,null,null,null,null,null,null,null,null,null,null,null,null,null,null,null,null,null,null,null,null,"C2"]
[null,null,null,null,null,null,null,null,3,"Entrepreneurial Skills",null,null,null,null,null,null,null,null,null,null,null,null,null,null,null,null,null,null,null,null,null,null,null,null,"C3A"]
[null,null,null,null,null,null,null,null,"Open-ended response (if any)",null,null,null,null,null,null,null,null,null,null,null,null,null,null,null,null,null,null,null,null,null,null,null,null,null,"C3B"]
[null,null,null,null,null,null,null,null,4,null,null,null,null,null,null,null,null,null,null,null,null,null,null,null,null,null,null,null,null,null,null,null,null,null,"C3C"]
[null,null,null,null,null,null,null,null,null,null,null,null,null,null,null,null,null,null,null,null,null,null,null,null,null,null,null,null,null,null,null,null,null,null,"C3D"]
[null,null,null,null,null,null,null,null,null,null,null,null,null,null,null,null,null,null,null,null,null,null,null,null,null,null,null,"`",null,null,null,null,null,null,"C3E"]
[null,10,"Distribution of Student Learning Time (SLT)",null,null,null,null,null,null,null,null,null,null,null,null,null,null,null,null,null,null,null,null,null,null,null,null,null,null,null,null,null,null,null,"C3F"]
[null,null,"Note: This SLT calculation is designed for home grown programme only.",null,null,null,null,null,null,null,null,null,null,null,null,null,null,null,null,null,null,null,null,null,null,null,null,null,null,null,null,null,null,null,"C4A"]
[null,null,null,null,null,null,null,null,null,null,null,null,null,null,null,null,null,null,null,null,null,null,null,null,null,null,null,null,null,null,null,null,null,null,"C4B"]
[null,null,null,"Course Content Outline and Subtopics",null,null,null,null,null,null,"CLO*",null,"Learning and Teaching Activities**",null,null,null,null,null,null,null,null,null,null,"Total SLT",null,null,null,null,null,null,null,null,null,null,"C5"]
[null,null,null,null,null,null,null,null,null,null,null,null,"Face-to-Face (F2F)",null,null,null,null,null,null,null,"NF2F\nIndependent Learning\n(Asynchronous)"]
[null,null,null,null,null,null,null,null,null,null,null,null,"Physical",null,null,null,"Online/ Technology-mediated (Synchronous)"]
[null,null,null,null,null,null,null,null,null,null,null,null,"L","T","P","O","L","T","P","O"]
[null,null,null,1,"Understanding Marketing Management\n- Marketing for the 21st Century\n- Marketing Strategies and Plans",null,null,null,null,null,"CLO1",null,null,null,null,null,null,1,null,null,5]
[null,null,null,2,"Developing Marketing Strategies and Plans (Part 1)\n- Marketing and Customer Value\n- Corporate and Division Strategic Planning",null,null,null,null,null,"CLO1, CLO2",null,null,null,null,null,null,1,null,null,5]
[null,null,null,3,"Developing Marketing Strategies and Plans (Part 2)\n- Business Unit Strategic Planning\n- The Nature and Contents of a Marketing Plan",null,null,null,null,null,"CLO1, CLO2",null,null,null,null,null,null,1,null,null,5]
[null,null,null,4,"Conducting Marketing Research\n- The Marketing Research System\n- The Marketing Research Process\n- Measuring Marketing Productivity",null,null,null,null,null,"CLO1, CLO2",null,null,null,null,null,null,1,null,null,5]
[null,null,null,5,"Analyzing Consumer Markets\n- What Influence Consumer Behavior\n- Key Psychological Processes\n- The Buying Decision Process – The Five Stage Model",null,null,null,null,null,"CLO2, CLO3",null,null,null,null,null,null,1,null,null,5]
[null,null,null,6,"Analyzing Business Markets\n- What Is Organizational Buying?\n- Participants in The Business Buying Process\n- Stages In The Business Buying Process",null,null,null,null,null,"CLO2, CLO3",null,null,null,null,null,null,1,null,null,5]
[null,null,null,7,"Market Segmentation, Targeting and Positioning\n- Bases for Segmenting Consumer Markets\n- Market Targeting",null,null,null,null,null,"CLO2, CLO3",null,null,null,null,null,null,1,null,null,5]
[null,null,null,8,"Setting Product Strategy (Part 1)\n- Product Strategy\n- Product and Services Differentiation",null,null,null,null,null,"CLO1, CLO2, CLO3",null,null,null,null,null,null,1,null,null,5]
[null,null,null,9,"Setting Product Strategy (Part 2)\n- Product and Brand Relationship",null,null,null,null,null,"CLO1, CLO2, CLO3",null,null,null,null,null,null,1,null,null,5]
[null,null,null,10,"Developing Pricing Strategies and Programs\n- Definition & Understanding Price\n- Price Setting",null,null,null,null,null,"CLO1, CLO2, CLO3",null,null,null,null,null,null,1,null,null,5]
[null,null,null,{"$f":"D69+1","v":11},"Distribution Channel Strategy (Part 1)\n- Supply Chain and Value Delivery Network\n- The Nature of Marketing Channels\n- Marketing Channel Structures",null,null,null,null,null,"CLO1, CLO2, CLO3",null,null,null,null,null,null,1,null,null,5]
[null,null,null,{"$f":"D70+1","v":12},"Distribution Channel Strategy (Part 2)\n- Marketing Channel Design Decision\n- Marketing Logistics",null,null,null,null,null,"CLO1, CLO2, CLO3",null,null,null,null,null,null,1,null,null,5]
[null,null,null,13,"Designing and Managing Integrated Marketing Communications (Part 1)\n- The Marketing Communication\n- Integrated Marketing Communications\n",null,null,null,null,null,"CLO1, CLO2, CLO3",null,null,null,null,null,null,1,null,null,5]
[null,null,null,14,"Designing and Managing Integrated Marketing Communications (Part 2)\n- The Major Modes of Communication in Marketing Mix",null,null,null,null,null,"CLO1, CLO2, CLO3",null,null,null,null,null,null,1,null,null,5]
[null,null,null,15]
[null,null,null,16]
[null,null,null,17]
[null,null,null,18]
[null,null,null,19]
[null,null,null,20]
[null,null,null,"SUB-TOTAL SLT: ",null,null,null,null,null,null,null,null,null,null,null,null,null,null,null,null,null,null,null,{"$f":"SUM(M60:P79)+SUM(Q60:T79)+SUM(U60:W79)","v":84}]
[null,null,null,"Continous Assessement",null,null,null,null,null,null,"%",null,"Face-to-Face (F2F)",null,null,null,null,null,null,null,"NF2F\nIndependent Learning for Assessment (Asynchronous)"]
[null,null,null,null,null,null,null,null,null,null,null,null,"Physical",null,null,null,"Online/ Technology-mediated (Synchronous)"]
[null,null,null,1,"Assignment 1",null,null,null,null,null,20,null,2,null,null,null,null,null,null,null,4]
[null,null,null,2,"Assignment 2",null,null,null,null,null,20,null,2,null,null,null,null,null,null,null,4]
[null,null,null,3,"Assignment 3",null,null,null,null,null,20,null,2,null,null,null,null,null,null,null,4]
[null,null,null,4,"Journal Review",null,null,null,null,null,10,null,2,null,null,null,null,null,null,null,6]
[null,null,null,5]
[null,null,null,"SUB-TOTAL SLT: ",null,null,null,null,null,null,null,null,null,null,null,null,null,null,null,null,null,null,null,{"$f":"SUM(M83:W87)","v":26}]
[null,null,null,"Final Assessement",null,null,null,null,null,null,"%",null,"Face-to-Face (F2F)",null,null,null,null,null,null,null,"NF2F\nIndependent Learning for Assessment (Asynchronous)"]
[null,null,null,null,null,null,null,null,null,null,null,null,"Physical",null,null,null,"Online/ Technology-mediated (Synchronous)"]
[null,null,null,1,"Final Examination",null,null,null,null,null,30,null,null,null,null,null,2,null,null,null,8]
[null,null,null,2]
[null,null,null,3]
[null,null,null,4]
[null,null,null,5]
[null,null,null,"SUB-TOTAL SLT: ",null,null,null,null,null,null,null,null,null,null,null,null,null,null,null,null,null,null,null,{"$f":"SUM(M91:W95)","v":10}]
[]
[null,null,null,"SLT for Assessment:",null,null,null,null,null,null,null,null,null,null,null,null,null,null,null,null,null,null,null,{"$f":"X88+X96","v":36}]
[null,null,null,"GRAND TOTAL SLT:",null,null,null,null,null,null,null,null,null,null,null,null,null,null,null,null,null,null,null,{"$f":"X98+X80","v":120}]
[null,null,null,"A","% SLT for F2F Physical Component: \n[Total F2F Physical /(Total F2F Physical + Total F2F Online + Total Independent Learning) x 100)]",null,null,null,null,null,null,null,null,null,null,null,null,null,null,null,null,null,null,{"$f":"IFERROR(((SUM(M60:P79)+SUM(M83:P87)+SUM(M91:P95))/X99)* 100,\"\")","v":6.666666666666667}]
[]
[null,null,null,"B","% SLT for Online & Independent Learning Component:\n[(Total F2F Online + Total Independent Learning) /( Total F2F Physical + Total F2F Online + Total Independent Learning) x 100]",null,null,null,null,null,null,null,null,null,null,null,null,null,null,null,null,null,null,{"$f":"IFERROR((SUM(Q60:W79)+SUM(Q83:W87) + SUM(Q91:W95))/X99 * 100,\"\")","v":93.333333333333329}]
[null,null,null,"C","% SLT for All Practical Component:\n[% F2F Physical Practical + % F2F Online Practical]",null,null,null,null,null,null,null,null,null,null,null,null,null,null,null,null,null,null,{"$f":"IFERROR(X104+X105,\"\")","v":0}]
[null,null,null,"C1","% SLT for F2F Physical Practical Component\n[Total F2F Physical Practical /( Total F2F Physical + Total F2F Online + Total Independent Learning)  x 100)]",null,null,null,null,null,null,null,null,null,null,null,null,null,null,null,null,null,null,{"$f":"IFERROR(SUM(O60:O79)/X99*100,\"\")","v":0}]
[null,null,null,"C2","% SLT for F2F Online Practical Component\n[Total F2F Online Practical / (Total F2F Physical + Total F2F Online + Total Independent Learning) x 100]",null,null,null,null,null,null,null,null,null,null,null,null,null,null,null,null,null,null,{"$f":"IFERROR(SUM(S60:S79)/X99 *100,\"\")","v":0}]
[null,null,null,null,null,null,null,null,null,null,null,null,null,null,null,null,null,null,null,null,null,null,null,null,null,{"$f":"IFERROR(X102+X104,\"\")","v":93.333333333333329}]
[null,null,null,"Please  tick (√) if this course is Industrial Training/ Clinical Placement/ Practicum using 50% of Effective Learning Time (ELT)"]
[null,null,null,"Note: "]
[null,null,null,"* Indicate the CLO based on the CLO's numbering in Item 8"]
[null,null,null,"** For ODL programme: Courses with mandatory practical requiremnets imposed by the programme standards or any related standards can be exempted from complying to the minimum 80% ODL delivery rule in the SLT."]
[]
[null,11,"Identify special requirement or resources to deliver the course (e.g., software, nursery, computer lab, simulation room etc)",null,null,null,null,null,null,null,"None"]
[]
[null,12,"References (include required and further readings, and should be the most current)",null,null,null,null,null,null,null,"Main Reading: \n1. Kotler, P. and Armstrong, G. (2018). Principles of Marketing. 17th Edition. New Jersey: Pearson/Prentice Hall. 2.Kotler, P., Keller, K. L., Ang, S. H., Leong, S. M., Tan, C. T. (2017). Marketing Management: An Asian Perspective. 7th edition. Singapore: Pearson\nAdditional Readings:\n1. Jobber, D. & Ellis-Chadwick, F. (2013) Principles and Practice of Marketing (7th Ed). Maidenhead, McGraw-Hill Higher \n2. Kotler, P. and Keller, K. (2016). Marketing Management. 15th edition. New Jersey: Pearson/Prentice Hall.\n"]
[]
[null,13,"Other additional information (if applicable)",null,null,null,null,null,null,null,"None"]
[]
[]
[null,null,"Note: Number of PLO indicated is purely for illustration purposes only and the number is subjected to the curriculum design."]

{"sheet":"OBA4408","index":13,"n_rows":119,"n_cols":35,"rows_kept":119,"cut":false,"hidden":false,"merged":[[8,1,10,1],[8,2,10,4],[8,6,8,27],[9,6,9,27],[10,6,10,27],[3,2,3,4],[3,5,3,27],[4,2,4,4],[4,5,4,27],[5,2,5,4],[5,5,5,27],[11,2,11,4],[11,5,11,7],[11,9,11,10],[11,12,11,27],[12,2,12,4],[12,5,12,7],[6,2,6,4],[6,5,6,11],[7,2,7,4],[7,5,7,27],[13,2,13,4],[13,5,13,27],[15,2,22,4],[15,5,15,6],[15,7,15,26],[16,5,16,6],[16,7,16,26],[17,5,17,6],[17,7,17,26],[18,5,18,6],[22,5,22,6],[22,7,22,26],[24,2,24,27],[26,3,27,4],[26,5,26,16],[26,17,27,21],[26,22,27,25],[18,7,18,26],[19,5,19,6],[19,7,19,26],[20,5,20,6],[20,7,20,26],[21,5,21,6],[21,7,21,26],[30,3,30,4],[30,17,30,21],[30,22,30,25],[31,3,31,4],[31,17,31,21],[31,22,31,25],[28,3,28,4],[28,17,28,21],[28,22,28,25],[29,3,29,4],[29,17,29,21],[29,22,29,25],[34,3,34,4],[34,17,34,21],[34,22,34,25],[35,3,35,4],[35,17,35,21],[35,22,35,25],[32,3,32,4],[32,17,32,21],[32,22,32,25],[33,3,33,4],[33,17,33,21],[33,22,33,25],[42,3,42,25],[44,2,44,7],[45,2,46,7],[45,9,45,25],[46,9,46,25],[47,9,47,25],[36,3,38,4],[36,17,36,21],[37,17,37,21],[38,17,38,21],[40,3,40,25],[41,3,41,25],[56,20,58,22],[57,12,57,15],[57,16,57,19],[59,4,59,9],[59,10,59,11],[59,20,59,22],[48,8,48,25],[49,8,50,8],[49,9,50,25],[52,2,52,27],[53,2,53,26],[55,3,58,9],[55,10,58,11],[55,12,55,22],[55,23,58,25],[56,12,56,19],[59,23,59,25],[60,4,60,9],[60,10,60,11],[60,20,60,22],[60,23,60,25],[61,4,61,9],[61,10,61,11],[61,20,61,22],[61,23,61,25],[64,4,64,9],[64,10,64,11],[64,20,64,22],[64,23,64,25],[65,4,65,9],[65,10,65,11],[65,20,65,22],[65,23,65,25],[62,4,62,9],[62,10,62,11],[62,20,62,22],[62,23,62,25],[63,4,63,9],[63,10,63,11],[63,20,63,22],[63,23,63,25],[68,4,68,9],[68,10,68,11],[68,20,68,22],[68,23,68,25],[69,4,69,9],[69,10,69,11],[69,20,69,22],[66,4,66,9],[66,10,66,11],[66,20,66,22],[66,23,66,25],[67,4,67,9],[67,10,67,11],[67,20,67,22],[67,23,67,25],[72,4,72,9],[72,10,72,11],[72,20,72,22],[73,4,73,9],[74,4,74,9],[74,10,74,11],[74,20,74,22],[70,4,70,9],[70,10,70,11],[70,20,70,22],[71,4,71,9],[71,10,71,11],[71,20,71,22],[74,23,74,25],[75,4,75,9],[75,10,75,11],[75,20,75,22],[75,23,75,25],[76,4,76,9],[76,10,76,11],[76,20,76,22],[76,23,76,25],[79,3,79,22],[79,23,79,25],[80,3,81,9],[80,10,81,11],[80,12,80,19],[80,20,81,22],[81,12,81,15],[81,16,81,19],[77,4,77,9],[77,10,77,11],[77,20,77,22],[77,23,77,25],[78,4,78,9],[78,10,78,11],[78,20,78,22],[78,23,78,25],[82,4,82,9],[82,10,82,11],[82,12,82,15],[82,16,82,19],[82,20,82,22],[83,4,83,9],[83,10,83,11],[83,12,83,15],[83,16,83,19],[83,20,83,22],[84,4,84,9],[84,10,84,11],[84,12,84,15],[84,16,84,19],[84,20,84,22],[85,4,85,9],[85,10,85,11],[85,12,85,15],[85,16,85,19],[85,20,85,22],[87,23,87,25],[88,3,89,9],[88,10,89,11],[88,12,88,19],[88,20,89,22],[89,12,89,15],[89,16,89,19],[86,4,86,9],[86,10,86,11],[86,12,86,15],[86,16,86,19],[86,20,86,22],[87,3,87,22],[90,4,90,9],[90,10,90,11],[90,12,90,15],[90,16,90,19],[90,20,90,22],[91,4,91,9],[91,10,91,11],[91,12,91,15],[91,16,91,19],[91,20,91,22],[92,4,92,9],[92,10,92,11],[92,12,92,15],[92,16,92,19],[92,20,92,22],[93,4,93,9],[93,10,93,11],[93,12,93,15],[93,16,93,19],[93,20,93,22],[95,23,95,25],[97,3,97,22],[97,23,97,25],[98,3,98,22],[98,23,98,25],[99,3,100,3],[99,4,100,22],[99,23,100,25],[94,4,94,9],[94,10,94,11],[94,12,94,15],[94,16,94,19],[94,20,94,22],[95,3,95,22],[104,4,104,22],[104,23,104,25],[106,3,106,22],[106,23,106,25],[108,3,108,25],[109,3,109,25],[101,4,101,22],[101,23,101,25],[102,4,102,22],[102,23,102,25],[103,4,103,22],[103,23,103,25],[115,1,116,1],[115,2,116,9],[115,10,116,27],[118,2,118,27],[119,1,119,27],[110,3,110,22],[111,1,112,1],[111,2,112,9],[111,10,112,27],[113,1,114,1],[113,2,114,9],[113,10,114,27]]}
[]
[null,"Back To FORM @ TEMPLATE"]
[null,null,null,null,null,null,null,null,null,null,null,null,null,null,null,null,null,null,null,null,null,null,null,null,null,null,null,null,null,null,null,null,null,null,"√"]
[]
[null,1,"Course Name:",null,null,"Managerial Accounting",null,null,null,null,null,null,null,null,null,null,null,null,null,null,null,null,null,null,null,null,null,null,null,null,null,null,null,null,"Semester"]
[null,null,"Course Code:",null,null,"OBA4408",null,null,null,null,null,null,null,null,null,null,null,null,null,null,null,null,null,null,null,null,null,null,null,null,null,null,null,null,1]
[null,null,"Course Classification:",null,null,"Major (core) ",null,null,null,null,null,null,null,null,null,null,null,null,null,null,null,null,null,null,null,null,null,null,null,null,null,null,null,null,2]
[null,2,"Synopsis:",null,null,"Any organization’s long-term competitive success is critically dependent on (1) its ability to appropriately organize and analyze high-quality information about its products, services, processes, organizational units, suppliers, and customers that fits its decision needs, (2) its ability to act rationally on that information, and (3) its ability to control its performance consistent with that information. The term managerial accounting refers to the set of information concepts, models and systems that provide this information and control for managers. This module is included to enable the students to master the key issues in the nature, functions, strategic context and techniques of management accounting that are currently being applied in various business industries today.",null,null,null,null,null,null,null,null,null,null,null,null,null,null,null,null,null,null,null,null,null,null,null,null,null,null,null,null,3]
[null,{"$f":"B8+1","v":3},"Name(s) of Academic Staff:",null,null,1,"Prof. Dr. Sivakumar"]
[null,null,null,null,null,2,"Pang Mary",null,null,null,null,null,null,null,null,null,null,null,null,null,null,null,null,null,null,null,null,null,null,null,null,null,null,null,"Year Offered"]
[null,null,null,null,null,3,null,null,null,null,null,null,null,null,null,null,null,null,null,null,null,null,null,null,null,null,null,null,null,null,null,null,null,null,1]
[null,{"$f":"B9+1","v":4},"Semester and Year offered:",null,null,"Year Offered",null,null,1,"Semester",null,2,"Remarks:",null,null,null,null,null,null,null,null,null,null,null,null,null,null,null,null,null,null,null,null,null,2]
[null,{"$f":"B12+1","v":5},"Credit Value:",null,null,{"$f":"IF(X107 =\"√\",INT(X99/80),INT(X99/40))","v":3},null,null,3,null,null,null,null,null,null,null,null,null,null,null,null,null,null,null,null,null,null,null,null,null,null,null,null,null,3]
[null,6,"Pre-requisite/ co-requisite (if any):",null,null,"None",null,null,null,null,null,null,null,null,null,null,null,null,null,null,null,null,null,null,null,null,null,null,null,null,null,null,null,null,4]
[null,null,null,null,null,null,null,null,null,null,null,null,null,null,null,null,null,null,null,null,null,null,null,null,null,null,null,null,null,null,null,null,null,null,5]
[null,7,"Course Learning Outcomes (CLO)",null,null,"CLO1",null,"Make use of management accounting data to apply control and evaluation techniques (C2, PLO2)",null,null,null,null,null,null,null,null,null,null,null,null,null,null,null,null,null,null,null,null,null,null,null,null,null,null,6]
[null,null,null,null,null,"CLO2",null,"Analyze performance measurement systems (C4, PLO6)",null,null,null,null,null,null,null,null,null,null,null,null,null,null,null,null,null,null,null,null,null,null,null,null,null,null,7]
[null,null,null,null,null,"CLO3",null,"Evaluate different budget setting techniques and pricing decisions (C5, PLO6)",null,null,null,null,null,null,null,null,null,null,null,null,null,null,null,null,null,null,null,null,null,null,null,null,null,null,8]
[]
[null,null,null,null,null,null,null,null,null,null,null,null,null,null,null,null,null,null,null,null,null,null,null,null,null,null,null,null,null,null,null,null,null,null,"Compulsory"]
[null,null,null,null,null,null,null,null,null,null,null,null,null,null,null,null,null,null,null,null,null,null,null,null,null,null,null,null,null,null,null,null,null,null,"Major (core) "]
[null,null,null,null,null,null,null,null,null,null,null,null,null,null,null,null,null,null,null,null,null,null,null,null,null,null,null,null,null,null,null,null,null,null,"Minor"]
[null,null,null,null,null,null,null,null,null,null,null,null,null,null,null,null,null,null,null,null,null,null,null,null,null,null,null,null,null,null,null,null,null,null,"Elective (core) "]
[null,null,null,null,null,null,null,null,null,null,null,null,null,null,null,null,null,null,null,null,null,null,null,null,null,null,null,null,null,null,null,null,null,null,"Elective (open/free)"]
[null,8,"Mapping of the Course Learning Outcomes to the Programme Learning Outcomes, Teaching Methods and Assessment Methods"]
[]
[null,null,null,"Course Learning Outcomes",null,"Programme Learning Outcomes (PLO)",null,null,null,null,null,null,null,null,null,null,null,"Teaching Methods",null,null,null,null,"Assessment Methods"]
[null,null,null,null,null,"PLO 1","PLO 2","PLO 3","PLO 4","PLO 5","PLO 6","PLO 7","PLO 8","PLO 9","PLO 10","PLO 11"]
[null,null,null,{"$f":"IF(ISBLANK(F16),\"\",F16)","v":"CLO1"},null,null,"√",null,null,null,null,null,null,null,null,null,null,"Lecture and Tutorial",null,null,null,null,"Assignment"]
[null,null,null,{"$f":"IF(ISBLANK(F17),\"\",F17)","v":"CLO2"},null,null,null,null,null,null,"√",null,null,null,null,null,null,"Lecture and Tutorial",null,null,null,null,"Assignment"]
[null,null,null,"CLO3",null,null,null,null,null,null,"√",null,null,null,null,null,null,"Lecture and Tutorial",null,null,null,null,"Assignment"]
[null,null,null,""]
[null,null,null,""]
[null,null,null,""]
[null,null,null,""]
[null,null,null,"",null,null,null,null,null,null,null,null,null,null,null,null,null,null,null,null,null,null,null,null,null,null,null,null,null,null,null,null,null,null,"Cognitive skills  "]
[null,null,null,"Mapping with MQF Cluster of Learning Outcomes",null,null,"C2",null,null,null,null,null,null,null,null,null,null,null,null,null,null,null,null,null,null,null,null,null,null,null,null,null,null,null,"Interpersonal skills"]
[null,null,null,null,null,null,null,null,null,null,"C3E",null,null,null,null,null,null,null,null,null,null,null,null,null,null,null,null,null,null,null,null,null,null,null,"Communication Skills"]
[null,null,null,null,null,null,null,null,null,null,"C3E",null,null,null,null,null,null,null,null,null,null,null,null,null,null,null,null,null,null,null,null,null,null,null,"Digital Skills"]
[null,null,null,null,null,null,null,null,null,null,null,null,null,null,null,null,null,null,null,null,null,null,null,null,null,null,null,null,null,null,null,null,null,null,"Numeracy Skills"]
[null,null,null,"Indicate the primary causal link between the CLO and PLO by ticking  '√' in the appropriate box.",null,null,null,null,null,null,null,null,null,null,null,null,null,null,null,null,null,null,null,null,null,null,null,null,null,null,null,null,null,null,"Leadership, Autonomy and Responsibility"]
[null,null,null,"C1 = Knowledge & Understanding, C2 = Cognitive Skills, C3A = Practical Skills, C3B = Interpersonal Skills, C3C = Communication Skills, C3D = Digital Skills,",null,null,null,null,null,null,null,null,null,null,null,null,null,null,null,null,null,null,null,null,null,null,null,null,null,null,null,null,null,null,"Personal Skills"]
[null,null,null,"C3E = Numeracy Skills, C3F = Leadership, Autonomy & Responsibility, C4A = Personal Skills, C4B = Entrepreneurial Skills, C5 = Ethics & Professionalism",null,null,null,null,null,null,null,null,null,null,null,null,null,null,null,null,null,null,null,null,null,null,null,null,null,null,null,null,null,null,"Entrepreneurial Skills"]
[null,null,null,null,null,null,null,null,null,null,null,null,null,null,null,null,null,null,null,null,null,null,null,null,null,null,null,null,null,null,null,null,null,null,"Ethics and Professionalism"]
[null,9,"Transferable Skills (if applicable)"]
[null,null,"(Skills learned in the course of study which can be useful and utilized in other settings)",null,null,null,null,null,1,"Communication Skills",null,null,null,null,null,null,null,null,null,null,null,null,null,null,null,null,null,null,null,null,null,null,null,null,"C1"]
[null,null,null,null,null,null,null,null,2,"Entrepreneurial Skills",null,null,null,null,null,null,null,null,null,null,null,null,null,null,null,null,null,null,null,null,null,null,null,null,"C2"]
[null,null,null,null,null,null,null,null,3,"Personal Skills",null,null,null,null,null,null,null,null,null,null,null,null,null,null,null,null,null,null,null,null,null,null,null,null,"C3A"]
[null,null,null,null,null,null,null,null,"Open-ended response (if any)",null,null,null,null,null,null,null,null,null,null,null,null,null,null,null,null,null,null,null,null,null,null,null,null,null,"C3B"]
[null,null,null,null,null,null,null,null,4,null,null,null,null,null,null,null,null,null,null,null,null,null,null,null,null,null,null,null,null,null,null,null,null,null,"C3C"]
[null,null,null,null,null,null,null,null,null,null,null,null,null,null,null,null,null,null,null,null,null,null,null,null,null,null,null,null,null,null,null,null,null,null,"C3D"]
[null,null,null,null,null,null,null,null,null,null,null,null,null,null,null,null,null,null,null,null,null,null,null,null,null,null,null,"`",null,null,null,null,null,null,"C3E"]
[null,10,"Distribution of Student Learning Time (SLT)",null,null,null,null,null,null,null,null,null,null,null,null,null,null,null,null,null,null,null,null,null,null,null,null,null,null,null,null,null,null,null,"C3F"]
[null,null,"Note: This SLT calculation is designed for home grown programme only.",null,null,null,null,null,null,null,null,null,null,null,null,null,null,null,null,null,null,null,null,null,null,null,null,null,null,null,null,null,null,null,"C4A"]
[null,null,null,null,null,null,null,null,null,null,null,null,null,null,null,null,null,null,null,null,null,null,null,null,null,null,null,null,null,null,null,null,null,null,"C4B"]
[null,null,null,"Course Content Outline and Subtopics",null,null,null,null,null,null,"CLO*",null,"Learning and Teaching Activities**",null,null,null,null,null,null,null,null,null,null,"Total SLT",null,null,null,null,null,null,null,null,null,null,"C5"]
[null,null,null,null,null,null,null,null,null,null,null,null,"Face-to-Face (F2F)",null,null,null,null,null,null,null,"NF2F\nIndependent Learning\n(Asynchronous)"]
[null,null,null,null,null,null,null,null,null,null,null,null,"Physical",null,null,null,"Online/ Technology-mediated (Synchronous)"]
[null,null,null,null,null,null,null,null,null,null,null,null,"L","T","P","O","L","T","P","O"]
[null,null,null,1,"Significance of management accounting information for planning, decision making and performance management",null,null,null,null,null,"CLO1","CLO1",null,null,null,null,null,1,null,null,5]
[null,null,null,2,"Cost Accounting - Relationship with Financial Accounting - Elements of Cost - Preparation of Cost Sheet",null,null,null,null,null,"CLO1","CLO1",null,null,null,null,null,1,null,null,5]
[null,null,null,3,"Materials Cost - Materials purchasing, receiving, storing, issuing including pricing of issues",null,null,null,null,null,"CLO2","CLO2",null,null,null,null,null,1,null,null,5]
[null,null,null,4,"Labour Cost - Time Keeping and Time Booking - Idle Time - Labour Turnover",null,null,null,null,null,"CLO2","CLO2",null,null,null,null,null,1,null,null,5]
[null,null,null,5,"Overheads - Identifying the overheads with the cost centre - Allocation, Apportionment and Absorption - Under Absorption and Over Absorption of Overheads",null,null,null,null,null,"CLO3","CLO3",null,null,null,null,null,1,null,null,5]
[null,null,null,6,"Marginal Costing",null,null,null,null,null,"CLO3","CLO3",null,null,null,null,null,1,null,null,5]
[null,null,null,7,"Budgetary Control - Functional Budgets - Flexible Budgets",null,null,null,null,null,"CLO3","CLO3",null,null,null,null,null,1,null,null,5]
[null,null,null,8,"Standard Costing - Materials Cost and Labour Cost Variances (Part 1)",null,null,null,null,null,"CLO2","CLO2",null,null,null,null,null,1,null,null,5]
[null,null,null,9,"Standard Costing - Materials Cost and Labour Cost Variances (Part 2)",null,null,null,null,null,"CLO2","CLO2",null,null,null,null,null,1,null,null,5]
[null,null,null,10,"Standard Costing - Materials Cost and Labour Cost Variances (Part 3)",null,null,null,null,null,"CLO2","CLO2",null,null,null,null,null,1,null,null,5]
[null,null,null,{"$f":"D69+1","v":11},"Pricing decision and profitability analysis",null,null,null,null,null,"CLO2","CLO2",null,null,null,null,null,1,null,null,5]
[null,null,null,{"$f":"D70+1","v":12},"The role of costing information in pricing decisions",null,null,null,null,null,"CLO3","CLO3",null,null,null,null,null,1,null,null,5]
[null,null,null,13,"Revision ",null,null,null,null,null,"CLO1,2,3",null,null,null,null,null,null,1,null,null,5]
[null,null,null,14,"Revision ",null,null,null,null,null,"CLO1,2,3",null,null,null,null,null,null,1,null,null,5]
[null,null,null,15]
[null,null,null,16]
[null,null,null,17]
[null,null,null,18]
[null,null,null,19]
[null,null,null,20]
[null,null,null,"SUB-TOTAL SLT: ",null,null,null,null,null,null,null,null,null,null,null,null,null,null,null,null,null,null,null,{"$f":"SUM(M60:P79)+SUM(Q60:T79)+SUM(U60:W79)","v":84}]
[null,null,null,"Continous Assessement",null,null,null,null,null,null,"%",null,"Face-to-Face (F2F)",null,null,null,null,null,null,null,"NF2F\nIndependent Learning for Assessment (Asynchronous)"]
[null,null,null,null,null,null,null,null,null,null,null,null,"Physical",null,null,null,"Online/ Technology-mediated (Synchronous)"]
[null,null,null,1,"Assignment 1",null,null,null,null,null,25,null,null,null,null,null,null,null,null,null,6]
[null,null,null,2,"Assignment 2",null,null,null,null,null,25,null,null,null,null,null,null,null,null,null,6]
[null,null,null,3,"Group Assignment ",null,null,null,null,null,50,null,null,null,null,null,null,null,null,null,14]
[null,null,null,4]
[null,null,null,5]
[null,null,null,"SUB-TOTAL SLT: ",null,null,null,null,null,null,null,null,null,null,null,null,null,null,null,null,null,null,null,{"$f":"SUM(M83:W87)","v":26}]
[null,null,null,"Final Assessement",null,null,null,null,null,null,"%",null,"Face-to-Face (F2F)",null,null,null,null,null,null,null,"NF2F\nIndependent Learning for Assessment (Asynchronous)"]
[null,null,null,null,null,null,null,null,null,null,null,null,"Physical",null,null,null,"Online/ Technology-mediated (Synchronous)"]
[null,null,null,1,"Final Exam",null,null,null,null,null,30,null,null,null,null,null,2,null,null,null,8]
[null,null,null,2]
[null,null,null,3]
[null,null,null,4]
[null,null,null,5]
[null,null,null,"SUB-TOTAL SLT: ",null,null,null,null,null,null,null,null,null,null,null,null,null,null,null,null,null,null,null,{"$f":"SUM(M91:W95)","v":10}]
[]
[null,null,null,"SLT for Assessment:",null,null,null,null,null,null,null,null,null,null,null,null,null,null,null,null,null,null,null,{"$f":"X88+X96","v":36}]
[null,null,null,"GRAND TOTAL SLT:",null,null,null,null,null,null,null,null,null,null,null,null,null,null,null,null,null,null,null,{"$f":"X98+X80","v":120}]
[null,null,null,"A","% SLT for F2F Physical Component: \n[Total F2F Physical /(Total F2F Physical + Total F2F Online + Total Independent Learning) x 100)]",null,null,null,null,null,null,null,null,null,null,null,null,null,null,null,null,null,null,{"$f":"IFERROR(((SUM(M60:P79)+SUM(M83:P87)+SUM(M91:P95))/X99)* 100,\"\")","v":0}]
[]
[null,null,null,"B","% SLT for Online & Independent Learning Component:\n[(Total F2F Online + Total Independent Learning) /( Total F2F Physical + Total F2F Online + Total Independent Learning) x 100]",null,null,null,null,null,null,null,null,null,null,null,null,null,null,null,null,null,null,{"$f":"IFERROR((SUM(Q60:W79)+SUM(Q83:W87) + SUM(Q91:W95))/X99 * 100,\"\")","v":100}]
[null,null,null,"C","% SLT for All Practical Component:\n[% F2F Physical Practical + % F2F Online Practical]",null,null,null,null,null,null,null,null,null,null,null,null,null,null,null,null,null,null,{"$f":"IFERROR(X104+X105,\"\")","v":0}]
[null,null,null,"C1","% SLT for F2F Physical Practical Component\n[Total F2F Physical Practical /( Total F2F Physical + Total F2F Online + Total Independent Learning)  x 100)]",null,null,null,null,null,null,null,null,null,null,null,null,null,null,null,null,null,null,{"$f":"IFERROR(SUM(O60:O79)/X99*100,\"\")","v":0}]
[null,null,null,"C2","% SLT for F2F Online Practical Component\n[Total F2F Online Practical / (Total F2F Physical + Total F2F Online + Total Independent Learning) x 100]",null,null,null,null,null,null,null,null,null,null,null,null,null,null,null,null,null,null,{"$f":"IFERROR(SUM(S60:S79)/X99 *100,\"\")","v":0}]
[null,null,null,null,null,null,null,null,null,null,null,null,null,null,null,null,null,null,null,null,null,null,null,null,null,{"$f":"IFERROR(X102+X104,\"\")","v":100}]
[null,null,null,"Please  tick (√) if this course is Industrial Training/ Clinical Placement/ Practicum using 50% of Effective Learning Time (ELT)"]
[null,null,null,"Note: "]
[null,null,null,"* Indicate the CLO based on the CLO's numbering in Item 8"]
[null,null,null,"** For ODL programme: Courses with mandatory practical requiremnets imposed by the programme standards or any related standards can be exempted from complying to the minimum 80% ODL delivery rule in the SLT."]
[]
[null,11,"Identify special requirement or resources to deliver the course (e.g., software, nursery, computer lab, simulation room etc)"]
[]
[null,12,"References (include required and further readings, and should be the most current)",null,null,null,null,null,null,null,"Drury, C. (2019). Management accounting for business, 7th edition, Cengage Learning EMEA. [Main Text]\n\n\n"]
[]
[null,13,"Other additional information (if applicable)",null,null,null,null,null,null,null,"Seal, W., Rohde, C., Garrison, R, and Noreen, E (2019). Management Accounting, 6th Edition, McGraw-Hill\n\nAtrill, P. & McLaney, E. (2021). Management Accounting for Decision Makers, 10th Edition. Pearson."]
[]
[]
[null,null,"Note: Number of PLO indicated is purely for illustration purposes only and the number is subjected to the curriculum design."]

{"sheet":"OBM4405","index":14,"n_rows":119,"n_cols":35,"rows_kept":119,"cut":false,"hidden":false,"merged":[[8,1,10,1],[8,2,10,4],[8,6,8,27],[9,6,9,27],[10,6,10,27],[3,2,3,4],[3,5,3,27],[4,2,4,4],[4,5,4,27],[5,2,5,4],[5,5,5,27],[11,2,11,4],[11,5,11,7],[11,9,11,10],[11,12,11,27],[12,2,12,4],[12,5,12,7],[6,2,6,4],[6,5,6,11],[7,2,7,4],[7,5,7,27],[13,2,13,4],[13,5,13,27],[15,2,22,4],[15,5,15,6],[15,7,15,26],[16,5,16,6],[16,7,16,26],[17,5,17,6],[17,7,17,26],[18,5,18,6],[22,5,22,6],[22,7,22,26],[24,2,24,27],[26,3,27,4],[26,5,26,16],[26,17,27,21],[26,22,27,25],[18,7,18,26],[19,5,19,6],[19,7,19,26],[20,5,20,6],[20,7,20,26],[21,5,21,6],[21,7,21,26],[30,3,30,4],[30,17,30,21],[30,22,30,25],[31,3,31,4],[31,17,31,21],[31,22,31,25],[28,3,28,4],[28,17,28,21],[28,22,28,25],[29,3,29,4],[29,17,29,21],[29,22,29,25],[34,3,34,4],[34,17,34,21],[34,22,34,25],[35,3,35,4],[35,17,35,21],[35,22,35,25],[32,3,32,4],[32,17,32,21],[32,22,32,25],[33,3,33,4],[33,17,33,21],[33,22,33,25],[42,3,42,25],[44,2,44,7],[45,2,46,7],[45,9,45,25],[46,9,46,25],[47,9,47,25],[36,3,38,4],[36,17,36,21],[37,17,37,21],[38,17,38,21],[40,3,40,25],[41,3,41,25],[56,20,58,22],[57,12,57,15],[57,16,57,19],[59,4,59,9],[59,10,59,11],[59,20,59,22],[48,8,48,25],[49,8,50,8],[49,9,50,25],[52,2,52,27],[53,2,53,26],[55,3,58,9],[55,10,58,11],[55,12,55,22],[55,23,58,25],[56,12,56,19],[59,23,59,25],[60,4,60,9],[60,10,60,11],[60,20,60,22],[60,23,60,25],[61,4,61,9],[61,10,61,11],[61,20,61,22],[61,23,61,25],[64,4,64,9],[64,10,64,11],[64,20,64,22],[64,23,64,25],[65,4,65,9],[65,10,65,11],[65,20,65,22],[65,23,65,25],[62,4,62,9],[62,10,62,11],[62,20,62,22],[62,23,62,25],[63,4,63,9],[63,10,63,11],[63,20,63,22],[63,23,63,25],[68,4,68,9],[68,10,68,11],[68,20,68,22],[68,23,68,25],[69,4,69,9],[69,10,69,11],[69,20,69,22],[66,4,66,9],[66,10,66,11],[66,20,66,22],[66,23,66,25],[67,4,67,9],[67,10,67,11],[67,20,67,22],[67,23,67,25],[72,4,72,9],[72,10,72,11],[73,4,73,9],[74,4,74,9],[74,10,74,11],[74,20,74,22],[70,4,70,9],[70,10,70,11],[70,20,70,22],[71,4,71,9],[71,10,71,11],[71,20,71,22],[74,23,74,25],[75,4,75,9],[75,10,75,11],[75,20,75,22],[75,23,75,25],[76,4,76,9],[76,10,76,11],[76,20,76,22],[76,23,76,25],[79,3,79,22],[79,23,79,25],[80,3,81,9],[80,10,81,11],[80,12,80,19],[80,20,81,22],[81,12,81,15],[81,16,81,19],[77,4,77,9],[77,10,77,11],[77,20,77,22],[77,23,77,25],[78,4,78,9],[78,10,78,11],[78,20,78,22],[78,23,78,25],[82,4,82,9],[82,10,82,11],[82,12,82,15],[82,16,82,19],[82,20,82,22],[83,4,83,9],[83,10,83,11],[83,12,83,15],[83,16,83,19],[83,20,83,22],[84,4,84,9],[84,10,84,11],[84,12,84,15],[84,16,84,19],[84,20,84,22],[85,4,85,9],[85,10,85,11],[85,12,85,15],[85,16,85,19],[85,20,85,22],[87,23,87,25],[88,3,89,9],[88,10,89,11],[88,12,88,19],[88,20,89,22],[89,12,89,15],[89,16,89,19],[86,4,86,9],[86,10,86,11],[86,12,86,15],[86,16,86,19],[86,20,86,22],[87,3,87,22],[90,4,90,9],[90,10,90,11],[90,12,90,15],[90,16,90,19],[90,20,90,22],[91,4,91,9],[91,10,91,11],[91,12,91,15],[91,16,91,19],[91,20,91,22],[92,4,92,9],[92,10,92,11],[92,12,92,15],[92,16,92,19],[92,20,92,22],[93,4,93,9],[93,10,93,11],[93,12,93,15],[93,16,93,19],[93,20,93,22],[95,23,95,25],[97,3,97,22],[97,23,97,25],[98,3,98,22],[98,23,98,25],[99,3,100,3],[99,4,100,22],[99,23,100,25],[94,4,94,9],[94,10,94,11],[94,12,94,15],[94,16,94,19],[94,20,94,22],[95,3,95,22],[104,4,104,22],[104,23,104,25],[106,3,106,22],[106,23,106,25],[108,3,108,25],[109,3,109,25],[101,4,101,22],[101,23,101,25],[102,4,102,22],[102,23,102,25],[103,4,103,22],[103,23,103,25],[115,1,116,1],[115,2,116,9],[115,10,116,27],[118,2,118,27],[119,1,119,27],[110,3,110,22],[111,1,112,1],[111,2,112,9],[111,10,112,27],[113,1,114,1],[113,2,114,9],[113,10,114,27]]}
[]
[null,"Back To FORM @ TEMPLATE"]
[null,null,null,null,null,null,null,null,null,null,null,null,null,null,null,null,null,null,null,null,null,null,null,null,null,null,null,null,null,null,null,null,null,null,"√"]
[]
[null,1,"Course Name:",null,null,"Ethics and Business Law",null,null,null,null,null,null,null,null,null,null,null,null,null,null,null,null,null,null,null,null,null,null,null,null,null,null,null,null,"Semester"]
[null,null,"Course Code:",null,null,"OBM4405",null,null,null,null,null,null,null,null,null,null,null,null,null,null,null,null,null,null,null,null,null,null,null,null,null,null,null,null,1]
[null,null,"Course Classification:",null,null,"Compulsory",null,null,null,null,null,null,null,null,null,null,null,null,null,null,null,null,null,null,null,null,null,null,null,null,null,null,null,null,2]
[null,2,"Synopsis:",null,null,"This module evaluate the framework of professional values, ethics and attitudes for exercising professional judgement and acting in an ethical manner, that is in the best interests of society and the profession. This module provides the student with the knowledge of specific areas of law essential to people who are engaging in business activities.",null,null,null,null,null,null,null,null,null,null,null,null,null,null,null,null,null,null,null,null,null,null,null,null,null,null,null,null,3]
[null,{"$f":"B8+1","v":3},"Name(s) of Academic Staff:",null,null,1,"Mr. Pramanathan A/L Vasuthevan"]
[null,null,null,null,null,2,null,null,null,null,null,null,null,null,null,null,null,null,null,null,null,null,null,null,null,null,null,null,null,null,null,null,null,null,"Year Offered"]
[null,null,null,null,null,3,null,null,null,null,null,null,null,null,null,null,null,null,null,null,null,null,null,null,null,null,null,null,null,null,null,null,null,null,1]
[null,{"$f":"B9+1","v":4},"Semester and Year offered:",null,null,"Year Offered",null,null,1,"Semester",null,2,"Remarks:",null,null,null,null,null,null,null,null,null,null,null,null,null,null,null,null,null,null,null,null,null,2]
[null,{"$f":"B12+1","v":5},"Credit Value:",null,null,{"$f":"IF(X107 =\"√\",INT(X99/80),INT(X99/40))","v":3},null,null,3,null,null,null,null,null,null,null,null,null,null,null,null,null,null,null,null,null,null,null,null,null,null,null,null,null,3]
[null,6,"Pre-requisite/ co-requisite (if any):",null,null,"None",null,null,null,null,null,null,null,null,null,null,null,null,null,null,null,null,null,null,null,null,null,null,null,null,null,null,null,null,4]
[null,null,null,null,null,null,null,null,null,null,null,null,null,null,null,null,null,null,null,null,null,null,null,null,null,null,null,null,null,null,null,null,null,null,5]
[null,7,"Course Learning Outcomes (CLO)",null,null,"CLO1",null,"Apply the values and attitudes that provide individuals with a commitment to act in the public interest and with social responsibilities.(C1,PLO1)",null,null,null,null,null,null,null,null,null,null,null,null,null,null,null,null,null,null,null,null,null,null,null,null,null,null,6]
[null,null,null,null,null,"CLO2",null,"Analyze the need for a framework of laws, regulations and standard in business and their applications.(C2,PLO2)",null,null,null,null,null,null,null,null,null,null,null,null,null,null,null,null,null,null,null,null,null,null,null,null,null,null,7]
[null,null,null,null,null,"CLO3",null,"Evaluate the defference between details rules-based and framework approches to ethics.((C3A,PLO5)",null,null,null,null,null,null,null,null,null,null,null,null,null,null,null,null,null,null,null,null,null,null,null,null,null,null,8]
[]
[null,null,null,null,null,null,null,null,null,null,null,null,null,null,null,null,null,null,null,null,null,null,null,null,null,null,null,null,null,null,null,null,null,null,"Compulsory"]
[null,null,null,null,null,null,null,null,null,null,null,null,null,null,null,null,null,null,null,null,null,null,null,null,null,null,null,null,null,null,null,null,null,null,"Major (core) "]
[null,null,null,null,null,null,null,null,null,null,null,null,null,null,null,null,null,null,null,null,null,null,null,null,null,null,null,null,null,null,null,null,null,null,"Minor"]
[null,null,null,null,null,null,null,null,null,null,null,null,null,null,null,null,null,null,null,null,null,null,null,null,null,null,null,null,null,null,null,null,null,null,"Elective (core) "]
[null,null,null,null,null,null,null,null,null,null,null,null,null,null,null,null,null,null,null,null,null,null,null,null,null,null,null,null,null,null,null,null,null,null,"Elective (open/free)"]
[null,8,"Mapping of the Course Learning Outcomes to the Programme Learning Outcomes, Teaching Methods and Assessment Methods"]
[]
[null,null,null,"Course Learning Outcomes",null,"Programme Learning Outcomes (PLO)",null,null,null,null,null,null,null,null,null,null,null,"Teaching Methods",null,null,null,null,"Assessment Methods"]
[null,null,null,null,null,"PLO 1","PLO 2","PLO 3","PLO 4","PLO 5","PLO 6","PLO 7","PLO 8","PLO 9","PLO 10","PLO 11"]
[null,null,null,{"$f":"IF(ISBLANK(F16),\"\",F16)","v":"CLO1"},null,"√",null,null,null,null,null,null,null,null,null,null,null,"Lecture and Tutorial",null,null,null,null,"Group Assignment 1"]
[null,null,null,{"$f":"IF(ISBLANK(F17),\"\",F17)","v":"CLO2"},null,null,null,null,"√",null,null,null,null,null,null,null,null,"Lecture and Tutorial",null,null,null,null,"Group Assignment 2"]
[null,null,null,"CLO3",null,null,null,null,null,"√",null,null,null,null,null,null,null,"Lecture and Tutorial",null,null,null,null,"Final Examination"]
[null,null,null,""]
[null,null,null,""]
[null,null,null,""]
[null,null,null,""]
[null,null,null,"",null,null,null,null,null,null,null,null,null,null,null,null,null,null,null,null,null,null,null,null,null,null,null,null,null,null,null,null,null,null,"Cognitive skills  "]
[null,null,null,"Mapping with MQF Cluster of Learning Outcomes",null,"C1",null,null,null,null,null,null,null,null,null,null,null,null,null,null,null,null,null,null,null,null,null,null,null,null,null,null,null,null,"Interpersonal skills"]
[null,null,null,null,null,null,null,null,"C2",null,null,null,null,null,null,null,null,null,null,null,null,null,null,null,null,null,null,null,null,null,null,null,null,null,"Communication Skills"]
[null,null,null,null,null,null,null,null,null,"C3A",null,null,null,null,null,null,null,null,null,null,null,null,null,null,null,null,null,null,null,null,null,null,null,null,"Digital Skills"]
[null,null,null,null,null,null,null,null,null,null,null,null,null,null,null,null,null,null,null,null,null,null,null,null,null,null,null,null,null,null,null,null,null,null,"Numeracy Skills"]
[null,null,null,"Indicate the primary causal link between the CLO and PLO by ticking  '√' in the appropriate box.",null,null,null,null,null,null,null,null,null,null,null,null,null,null,null,null,null,null,null,null,null,null,null,null,null,null,null,null,null,null,"Leadership, Autonomy and Responsibility"]
[null,null,null,"C1 = Knowledge & Understanding, C2 = Cognitive Skills, C3A = Practical Skills, C3B = Interpersonal Skills, C3C = Communication Skills, C3D = Digital Skills,",null,null,null,null,null,null,null,null,null,null,null,null,null,null,null,null,null,null,null,null,null,null,null,null,null,null,null,null,null,null,"Personal Skills"]
[null,null,null,"C3E = Numeracy Skills, C3F = Leadership, Autonomy & Responsibility, C4A = Personal Skills, C4B = Entrepreneurial Skills, C5 = Ethics & Professionalism",null,null,null,null,null,null,null,null,null,null,null,null,null,null,null,null,null,null,null,null,null,null,null,null,null,null,null,null,null,null,"Entrepreneurial Skills"]
[null,null,null,null,null,null,null,null,null,null,null,null,null,null,null,null,null,null,null,null,null,null,null,null,null,null,null,null,null,null,null,null,null,null,"Ethics and Professionalism"]
[null,9,"Transferable Skills (if applicable)"]
[null,null,"(Skills learned in the course of study which can be useful and utilized in other settings)",null,null,null,null,null,1,"Communication Skills",null,null,null,null,null,null,null,null,null,null,null,null,null,null,null,null,null,null,null,null,null,null,null,null,"C1"]
[null,null,null,null,null,null,null,null,2,"Leadership, Autonomy and Responsibility",null,null,null,null,null,null,null,null,null,null,null,null,null,null,null,null,null,null,null,null,null,null,null,null,"C2"]
[null,null,null,null,null,null,null,null,3,"Ethics and Professionalism",null,null,null,null,null,null,null,null,null,null,null,null,null,null,null,null,null,null,null,null,null,null,null,null,"C3A"]
[null,null,null,null,null,null,null,null,"Open-ended response (if any)",null,null,null,null,null,null,null,null,null,null,null,null,null,null,null,null,null,null,null,null,null,null,null,null,null,"C3B"]
[null,null,null,null,null,null,null,null,4,null,null,null,null,null,null,null,null,null,null,null,null,null,null,null,null,null,null,null,null,null,null,null,null,null,"C3C"]
[null,null,null,null,null,null,null,null,null,null,null,null,null,null,null,null,null,null,null,null,null,null,null,null,null,null,null,null,null,null,null,null,null,null,"C3D"]
[null,null,null,null,null,null,null,null,null,null,null,null,null,null,null,null,null,null,null,null,null,null,null,null,null,null,null,"`",null,null,null,null,null,null,"C3E"]
[null,10,"Distribution of Student Learning Time (SLT)",null,null,null,null,null,null,null,null,null,null,null,null,null,null,null,null,null,null,null,null,null,null,null,null,null,null,null,null,null,null,null,"C3F"]
[null,null,"Note: This SLT calculation is designed for home grown programme only.",null,null,null,null,null,null,null,null,null,null,null,null,null,null,null,null,null,null,null,null,null,null,null,null,null,null,null,null,null,null,null,"C4A"]
[null,null,null,null,null,null,null,null,null,null,null,null,null,null,null,null,null,null,null,null,null,null,null,null,null,null,null,null,null,null,null,null,null,null,"C4B"]
[null,null,null,"Course Content Outline and Subtopics",null,null,null,null,null,null,"CLO*",null,"Learning and Teaching Activities**",null,null,null,null,null,null,null,null,null,null,"Total SLT",null,null,null,null,null,null,null,null,null,null,"C5"]
[null,null,null,null,null,null,null,null,null,null,null,null,"Face-to-Face (F2F)",null,null,null,null,null,null,null,"NF2F\nIndependent Learning\n(Asynchronous)"]
[null,null,null,null,null,null,null,null,null,null,null,null,"Physical",null,null,null,"Online/ Technology-mediated (Synchronous)"]
[null,null,null,null,null,null,null,null,null,null,null,null,"L","T","P","O","L","T","P","O"]
[null,null,null,1,"Nature of ethics and its relevance to business",null,null,null,null,null,"CLO2",null,null,null,null,null,null,1,null,null,5]
[null,null,null,2,"Rules- based and framework approaches to ethics",null,null,null,null,null,"CLO1",null,null,null,null,null,null,1,null,null,6]
[null,null,null,3,"Ethical dilemmas and conflicts of interest",null,null,null,null,null,"CLO1",null,null,null,null,null,null,1,null,null,6]
[null,null,null,4,"Relationship between ethics,governance in relations to ethics and the law",null,null,null,null,null,"CLO3",null,null,null,null,null,null,1,null,null,6]
[null,null,null,5,"An introduction to concept of law in Malaysia",null,null,null,null,null,"CLO3",null,null,null,null,null,null,1,null,null,6]
[null,null,null,6,"Sources of Malaysian Law",null,null,null,null,null,"CLO3",null,null,null,null,null,null,1,null,null,6]
[null,null,null,7,"The Judicial System in Malaysia",null,null,null,null,null,"CLO3",null,null,null,null,null,null,1,null,null,5]
[null,null,null,8,"Criminal Law in Business Contexts",null,null,null,null,null,"CLO3",null,null,null,null,null,null,1,null,null,5]
[null,null,null,9,"Legal frameworks,regulations and standards for business",null,null,null,null,null,"CLO3",null,null,null,null,null,null,1,null,null,6]
[null,null,null,10,"The law of contract",null,null,null,null,null,"CLO3",null,null,null,null,null,null,1,null,null,6]
[null,null,null,{"$f":"D69+1","v":11},"The Law of Employment",null,null,null,null,null,"CLO3",null,null,null,null,null,null,1,null,null,6]
[null,null,null,{"$f":"D70+1","v":12},"The work environment and the employment relationship",null,null,null,null,null,"CLO3",null,null,null,null,null,null,1,null,null,6]
[null,null,null,13,"Case Study 1",null,null,null,null,null,"CLO3",null,null,null,null,null,null,1,null,null,6]
[null,null,null,14,"Case Study 2",null,null,null,null,null,"CLO3",null,null,null,null,null,null,1,null,null,null,7]
[null,null,null,15]
[null,null,null,16]
[null,null,null,17]
[null,null,null,18]
[null,null,null,19]
[null,null,null,20]
[null,null,null,"SUB-TOTAL SLT: ",null,null,null,null,null,null,null,null,null,null,null,null,null,null,null,null,null,null,null,{"$f":"SUM(M60:P79)+SUM(Q60:T79)+SUM(U60:W79)","v":96}]
[null,null,null,"Continous Assessement",null,null,null,null,null,null,"%",null,"Face-to-Face (F2F)",null,null,null,null,null,null,null,"NF2F\nIndependent Learning for Assessment (Asynchronous)"]
[null,null,null,null,null,null,null,null,null,null,null,null,"Physical",null,null,null,"Online/ Technology-mediated (Synchronous)"]
[null,null,null,1," Group Assignment 1",null,null,null,null,null,30,null,1,null,null,null,null,null,null,null,4]
[null,null,null,2,"Group Assignment 2",null,null,null,null,null,30,null,1,null,null,null,null,null,null,null,7]
[null,null,null,3,"Presentation of Group Assignment 2",null,null,null,null,null,10,null,1,null,null,null,null,null,null,null,1]
[null,null,null,4]
[null,null,null,5]
[null,null,null,"SUB-TOTAL SLT: ",null,null,null,null,null,null,null,null,null,null,null,null,null,null,null,null,null,null,null,{"$f":"SUM(M83:W87)","v":15}]
[null,null,null,"Final Assessement",null,null,null,null,null,null,"%",null,"Face-to-Face (F2F)",null,null,null,null,null,null,null,"NF2F\nIndependent Learning for Assessment (Asynchronous)"]
[null,null,null,null,null,null,null,null,null,null,null,null,"Physical",null,null,null,"Online/ Technology-mediated (Synchronous)"]
[null,null,null,1,"Final Examination",null,null,null,null,null,30,null,null,null,null,null,null,null,null,null,9]
[null,null,null,2]
[null,null,null,3]
[null,null,null,4]
[null,null,null,5]
[null,null,null,"SUB-TOTAL SLT: ",null,null,null,null,null,null,null,null,null,null,null,null,null,null,null,null,null,null,null,{"$f":"SUM(M91:W95)","v":9}]
[]
[null,null,null,"SLT for Assessment:",null,null,null,null,null,null,null,null,null,null,null,null,null,null,null,null,null,null,null,{"$f":"X88+X96","v":24}]
[null,null,null,"GRAND TOTAL SLT:",null,null,null,null,null,null,null,null,null,null,null,null,null,null,null,null,null,null,null,{"$f":"X98+X80","v":120}]
[null,null,null,"A","% SLT for F2F Physical Component: \n[Total F2F Physical /(Total F2F Physical + Total F2F Online + Total Independent Learning) x 100)]",null,null,null,null,null,null,null,null,null,null,null,null,null,null,null,null,null,null,{"$f":"IFERROR(((SUM(M60:P79)+SUM(M83:P87)+SUM(M91:P95))/X99)* 100,\"\")","v":2.5}]
[]
[null,null,null,"B","% SLT for Online & Independent Learning Component:\n[(Total F2F Online + Total Independent Learning) /( Total F2F Physical + Total F2F Online + Total Independent Learning) x 100]",null,null,null,null,null,null,null,null,null,null,null,null,null,null,null,null,null,null,{"$f":"IFERROR((SUM(Q60:W79)+SUM(Q83:W87) + SUM(Q91:W95))/X99 * 100,\"\")","v":97.5}]
[null,null,null,"C","% SLT for All Practical Component:\n[% F2F Physical Practical + % F2F Online Practical]",null,null,null,null,null,null,null,null,null,null,null,null,null,null,null,null,null,null,{"$f":"IFERROR(X104+X105,\"\")","v":0}]
[null,null,null,"C1","% SLT for F2F Physical Practical Component\n[Total F2F Physical Practical /( Total F2F Physical + Total F2F Online + Total Independent Learning)  x 100)]",null,null,null,null,null,null,null,null,null,null,null,null,null,null,null,null,null,null,{"$f":"IFERROR(SUM(O60:O79)/X99*100,\"\")","v":0}]
[null,null,null,"C2","% SLT for F2F Online Practical Component\n[Total F2F Online Practical / (Total F2F Physical + Total F2F Online + Total Independent Learning) x 100]",null,null,null,null,null,null,null,null,null,null,null,null,null,null,null,null,null,null,{"$f":"IFERROR(SUM(S60:S79)/X99 *100,\"\")","v":0}]
[null,null,null,null,null,null,null,null,null,null,null,null,null,null,null,null,null,null,null,null,null,null,null,null,null,{"$f":"IFERROR(X102+X104,\"\")","v":97.5}]
[null,null,null,"Please  tick (√) if this course is Industrial Training/ Clinical Placement/ Practicum using 50% of Effective Learning Time (ELT)"]
[null,null,null,"Note: "]
[null,null,null,"* Indicate the CLO based on the CLO's numbering in Item 8"]
[null,null,null,"** For ODL programme: Courses with mandatory practical requiremnets imposed by the programme standards or any related standards can be exempted from complying to the minimum 80% ODL delivery rule in the SLT."]
[]
[null,11,"Identify special requirement or resources to deliver the course (e.g., software, nursery, computer lab, simulation room etc)",null,null,null,null,null,null,null,"None"]
[]
[null,12,"References (include required and further readings, and should be the most current)",null,null,null,null,null,null,null,"\n\nBusiness Law Lee Mei Peng, Ivan Jeron Detta, Oxford University Press, 2018.\n\nBusiness Law James Marson,, Oxford University Press, 2012.\n\nShaw & Barry (2013) Moral issues in Business. (12th ed.).Cengage Learning.\n\nVincent Ryan Ruggiero, (2008) Thinking Critically About Ethical Issues (7th ed.). McGraw Hills.\n\nDenis Keenan, (2007). Smith and Keenan’s English Law (15th ed.). London: Pearson Publishing."]
[]
[null,13,"Other additional information (if applicable)",null,null,null,null,null,null,null,"None"]
[]
[]
[null,null,"Note: Number of PLO indicated is purely for illustration purposes only and the number is subjected to the curriculum design."]

{"sheet":"OBA4403","index":15,"n_rows":119,"n_cols":35,"rows_kept":119,"cut":false,"hidden":false,"merged":[[8,1,10,1],[8,2,10,4],[8,6,8,27],[9,6,9,27],[10,6,10,27],[3,2,3,4],[3,5,3,27],[4,2,4,4],[4,5,4,27],[5,2,5,4],[5,5,5,27],[11,2,11,4],[11,5,11,7],[11,9,11,10],[11,12,11,27],[12,2,12,4],[12,5,12,7],[6,2,6,4],[6,5,6,11],[7,2,7,4],[7,5,7,27],[13,2,13,4],[13,5,13,27],[15,2,22,4],[15,5,15,6],[15,7,15,26],[16,5,16,6],[16,7,16,26],[17,5,17,6],[17,7,17,26],[18,5,18,6],[22,5,22,6],[22,7,22,26],[24,2,24,27],[26,3,27,4],[26,5,26,16],[26,17,27,21],[26,22,27,25],[18,7,18,26],[19,5,19,6],[19,7,19,26],[20,5,20,6],[20,7,20,26],[21,5,21,6],[21,7,21,26],[30,3,30,4],[30,17,30,21],[30,22,30,25],[31,3,31,4],[31,17,31,21],[31,22,31,25],[28,3,28,4],[28,17,28,21],[28,22,28,25],[29,3,29,4],[29,17,29,21],[29,22,29,25],[34,3,34,4],[34,17,34,21],[34,22,34,25],[35,3,35,4],[35,17,35,21],[35,22,35,25],[32,3,32,4],[32,17,32,21],[32,22,32,25],[33,3,33,4],[33,17,33,21],[33,22,33,25],[42,3,42,25],[44,2,44,7],[45,2,46,7],[45,9,45,25],[46,9,46,25],[47,9,47,25],[36,3,38,4],[36,17,36,21],[37,17,37,21],[38,17,38,21],[40,3,40,25],[41,3,41,25],[56,20,58,22],[57,12,57,15],[57,16,57,19],[59,4,59,9],[59,10,59,11],[59,20,59,22],[48,8,48,25],[49,8,50,8],[49,9,50,25],[52,2,52,27],[53,2,53,26],[55,3,58,9],[55,10,58,11],[55,12,55,22],[55,23,58,25],[56,12,56,19],[59,23,59,25],[60,4,60,9],[60,10,60,11],[60,20,60,22],[60,23,60,25],[61,4,61,9],[61,10,61,11],[61,20,61,22],[61,23,61,25],[64,4,64,9],[64,10,64,11],[64,20,64,22],[64,23,64,25],[65,4,65,9],[65,10,65,11],[65,20,65,22],[65,23,65,25],[62,4,62,9],[62,10,62,11],[62,20,62,22],[62,23,62,25],[63,4,63,9],[63,10,63,11],[63,20,63,22],[63,23,63,25],[68,4,68,9],[68,10,68,11],[68,20,68,22],[68,23,68,25],[69,4,69,9],[69,10,69,11],[69,20,69,22],[66,4,66,9],[66,10,66,11],[66,20,66,22],[66,23,66,25],[67,4,67,9],[67,10,67,11],[67,20,67,22],[67,23,67,25],[72,4,72,9],[72,10,72,11],[73,4,73,9],[74,4,74,9],[74,10,74,11],[74,20,74,22],[70,4,70,9],[70,10,70,11],[70,20,70,22],[71,4,71,9],[71,10,71,11],[71,20,71,22],[74,23,74,25],[75,4,75,9],[75,10,75,11],[75,20,75,22],[75,23,75,25],[76,4,76,9],[76,10,76,11],[76,20,76,22],[76,23,76,25],[79,3,79,22],[79,23,79,25],[80,3,81,9],[80,10,81,11],[80,12,80,19],[80,20,81,22],[81,12,81,15],[81,16,81,19],[77,4,77,9],[77,10,77,11],[77,20,77,22],[77,23,77,25],[78,4,78,9],[78,10,78,11],[78,20,78,22],[78,23,78,25],[82,4,82,9],[82,10,82,11],[82,12,82,15],[82,16,82,19],[82,20,82,22],[83,4,83,9],[83,10,83,11],[83,12,83,15],[83,16,83,19],[83,20,83,22],[84,4,84,9],[84,10,84,11],[84,12,84,15],[84,16,84,19],[84,20,84,22],[85,4,85,9],[85,10,85,11],[85,12,85,15],[85,16,85,19],[85,20,85,22],[87,23,87,25],[88,3,89,9],[88,10,89,11],[88,12,88,19],[88,20,89,22],[89,12,89,15],[89,16,89,19],[86,4,86,9],[86,10,86,11],[86,12,86,15],[86,16,86,19],[86,20,86,22],[87,3,87,22],[90,4,90,9],[90,10,90,11],[90,12,90,15],[90,16,90,19],[90,20,90,22],[91,4,91,9],[91,10,91,11],[91,12,91,15],[91,16,91,19],[91,20,91,22],[92,4,92,9],[92,10,92,11],[92,12,92,15],[92,16,92,19],[92,20,92,22],[93,4,93,9],[93,10,93,11],[93,12,93,15],[93,16,93,19],[93,20,93,22],[95,23,95,25],[97,3,97,22],[97,23,97,25],[98,3,98,22],[98,23,98,25],[99,3,100,3],[99,4,100,22],[99,23,100,25],[94,4,94,9],[94,10,94,11],[94,12,94,15],[94,16,94,19],[94,20,94,22],[95,3,95,22],[104,4,104,22],[104,23,104,25],[106,3,106,22],[106,23,106,25],[108,3,108,25],[109,3,109,25],[101,4,101,22],[101,23,101,25],[102,4,102,22],[102,23,102,25],[103,4,103,22],[103,23,103,25],[115,1,116,1],[115,2,116,9],[115,10,116,27],[118,2,118,27],[119,1,119,27],[110,3,110,22],[111,1,112,1],[111,2,112,9],[111,10,112,27],[113,1,114,1],[113,2,114,9],[113,10,114,27]]}
[]
[null,"Back To FORM @ TEMPLATE"]
[null,null,null,null,null,null,null,null,null,null,null,null,null,null,null,null,null,null,null,null,null,null,null,null,null,null,null,null,null,null,null,null,null,null,"√"]
[]
[null,1,"Course Name:",null,null,"Investments",null,null,null,null,null,null,null,null,null,null,null,null,null,null,null,null,null,null,null,null,null,null,null,null,null,null,null,null,"Semester"]
[null,null,"Course Code:",null,null,"OBA4403",null,null,null,null,null,null,null,null,null,null,null,null,null,null,null,null,null,null,null,null,null,null,null,null,null,null,null,null,1]
[null,null,"Course Classification:",null,null,"Elective (core) ",null,null,null,null,null,null,null,null,null,null,null,null,null,null,null,null,null,null,null,null,null,null,null,null,null,null,null,null,2]
[null,2,"Synopsis:",null,null,"It provides a comprehensive coverage of basic concepts, theories, applications and decision-making rules in financial investments. In particular, the course will focus on the analysis of stocks, bonds, options and other derivative securities. ",null,null,null,null,null,null,null,null,null,null,null,null,null,null,null,null,null,null,null,null,null,null,null,null,null,null,null,null,3]
[null,{"$f":"B8+1","v":3},"Name(s) of Academic Staff:",null,null,1,"Lim Chan Chee"]
[null,null,null,null,null,2,"Mimi Suriaty Abdul",null,null,null,null,null,null,null,null,null,null,null,null,null,null,null,null,null,null,null,null,null,null,null,null,null,null,null,"Year Offered"]
[null,null,null,null,null,3,"Dr Wan Masliza",null,null,null,null,null,null,null,null,null,null,null,null,null,null,null,null,null,null,null,null,null,null,null,null,null,null,null,1]
[null,{"$f":"B9+1","v":4},"Semester and Year offered:",null,null,"Year Offered",null,null,1,"Semester",null,2,"Remarks:",null,null,null,null,null,null,null,null,null,null,null,null,null,null,null,null,null,null,null,null,null,2]
[null,{"$f":"B12+1","v":5},"Credit Value:",null,null,{"$f":"IF(X107 =\"√\",INT(X99/80),INT(X99/40))","v":3},null,null,3,null,null,null,null,null,null,null,null,null,null,null,null,null,null,null,null,null,null,null,null,null,null,null,null,null,3]
[null,6,"Pre-requisite/ co-requisite (if any):",null,null,null,null,null,null,null,null,null,null,null,null,null,null,null,null,null,null,null,null,null,null,null,null,null,null,null,null,null,null,null,4]
[null,null,null,null,null,null,null,null,null,null,null,null,null,null,null,null,null,null,null,null,null,null,null,null,null,null,null,null,null,null,null,null,null,null,5]
[null,7,"Course Learning Outcomes (CLO)",null,null,"CLO1",null,"Explain the methods of measuring risks, understand the relationships between them and their relevance for particular investments (C5, PLO1)",null,null,null,null,null,null,null,null,null,null,null,null,null,null,null,null,null,null,null,null,null,null,null,null,null,null,6]
[null,null,null,null,null,"CLO2",null,"Apply the concept of diversification to design and management of a portfolio of investments (C3, PLO6)",null,null,null,null,null,null,null,null,null,null,null,null,null,null,null,null,null,null,null,null,null,null,null,null,null,null,7]
[null,null,null,null,null,"CLO3",null,"Design a portfolio of financial instruments to meet the needs of managers concerned with risk management (C6, PLO9)",null,null,null,null,null,null,null,null,null,null,null,null,null,null,null,null,null,null,null,null,null,null,null,null,null,null,8]
[]
[null,null,null,null,null,null,null,null,null,null,null,null,null,null,null,null,null,null,null,null,null,null,null,null,null,null,null,null,null,null,null,null,null,null,"Compulsory"]
[null,null,null,null,null,null,null,null,null,null,null,null,null,null,null,null,null,null,null,null,null,null,null,null,null,null,null,null,null,null,null,null,null,null,"Major (core) "]
[null,null,null,null,null,null,null,null,null,null,null,null,null,null,null,null,null,null,null,null,null,null,null,null,null,null,null,null,null,null,null,null,null,null,"Minor"]
[null,null,null,null,null,null,null,null,null,null,null,null,null,null,null,null,null,null,null,null,null,null,null,null,null,null,null,null,null,null,null,null,null,null,"Elective (core) "]
[null,null,null,null,null,null,null,null,null,null,null,null,null,null,null,null,null,null,null,null,null,null,null,null,null,null,null,null,null,null,null,null,null,null,"Elective (open/free)"]
[null,8,"Mapping of the Course Learning Outcomes to the Programme Learning Outcomes, Teaching Methods and Assessment Methods"]
[]
[null,null,null,"Course Learning Outcomes",null,"Programme Learning Outcomes (PLO)",null,null,null,null,null,null,null,null,null,null,null,"Teaching Methods",null,null,null,null,"Assessment Methods"]
[null,null,null,null,null,"PLO 1","PLO 2","PLO 3","PLO 4","PLO 5","PLO 6","PLO 7","PLO 8","PLO 9","PLO 10","PLO 11"]
[null,null,null,{"$f":"IF(ISBLANK(F16),\"\",F16)","v":"CLO1"},null,"√",null,null,null,null,null,null,null,null,null,null,null,"Online Technology Mediated\nVideo Based Learning\nTutorial",null,null,null,null,"Individual assignment"]
[null,null,null,{"$f":"IF(ISBLANK(F17),\"\",F17)","v":"CLO2"},null,null,null,null,null,null,"√",null,null,null,null,null,null,"Online Technology Mediated\nVideo Based Learning\nTutorial",null,null,null,null,"Final examination, Individual assignment, Group assignment and presentation"]
[null,null,null,"CLO3",null,null,null,null,null,null,null,null,null,"√",null,null,null,"Online Technology Mediated\nVideo Based Learning\nTutorial",null,null,null,null,"Final examination, Group assignment and presentation"]
[null,null,null,""]
[null,null,null,""]
[null,null,null,""]
[null,null,null,""]
[null,null,null,"",null,null,null,null,null,null,null,null,null,null,null,null,null,null,null,null,null,null,null,null,null,null,null,null,null,null,null,null,null,null,"Cognitive skills  "]
[null,null,null,"Mapping with MQF Cluster of Learning Outcomes",null,"C1",null,null,null,null,null,null,null,null,null,null,null,null,null,null,null,null,null,null,null,null,null,null,null,null,null,null,null,null,"Interpersonal skills"]
[null,null,null,null,null,null,null,null,null,null,"C3E",null,null,null,null,null,null,null,null,null,null,null,null,null,null,null,null,null,null,null,null,null,null,null,"Communication Skills"]
[null,null,null,null,null,null,null,null,null,null,null,null,null,"C4B",null,null,null,null,null,null,null,null,null,null,null,null,null,null,null,null,null,null,null,null,"Digital Skills"]
[null,null,null,null,null,null,null,null,null,null,null,null,null,null,null,null,null,null,null,null,null,null,null,null,null,null,null,null,null,null,null,null,null,null,"Numeracy Skills"]
[null,null,null,"Indicate the primary causal link between the CLO and PLO by ticking  '√' in the appropriate box.",null,null,null,null,null,null,null,null,null,null,null,null,null,null,null,null,null,null,null,null,null,null,null,null,null,null,null,null,null,null,"Leadership, Autonomy and Responsibility"]
[null,null,null,"C1 = Knowledge & Understanding, C2 = Cognitive Skills, C3A = Practical Skills, C3B = Interpersonal Skills, C3C = Communication Skills, C3D = Digital Skills,",null,null,null,null,null,null,null,null,null,null,null,null,null,null,null,null,null,null,null,null,null,null,null,null,null,null,null,null,null,null,"Personal Skills"]
[null,null,null,"C3E = Numeracy Skills, C3F = Leadership, Autonomy & Responsibility, C4A = Personal Skills, C4B = Entrepreneurial Skills, C5 = Ethics & Professionalism",null,null,null,null,null,null,null,null,null,null,null,null,null,null,null,null,null,null,null,null,null,null,null,null,null,null,null,null,null,null,"Entrepreneurial Skills"]
[null,null,null,null,null,null,null,null,null,null,null,null,null,null,null,null,null,null,null,null,null,null,null,null,null,null,null,null,null,null,null,null,null,null,"Ethics and Professionalism"]
[null,9,"Transferable Skills (if applicable)"]
[null,null,"(Skills learned in the course of study which can be useful and utilized in other settings)",null,null,null,null,null,1,"Cognitive skills  ",null,null,null,null,null,null,null,null,null,null,null,null,null,null,null,null,null,null,null,null,null,null,null,null,"C1"]
[null,null,null,null,null,null,null,null,2,"Numeracy Skills",null,null,null,null,null,null,null,null,null,null,null,null,null,null,null,null,null,null,null,null,null,null,null,null,"C2"]
[null,null,null,null,null,null,null,null,3,"Entrepreneurial Skills",null,null,null,null,null,null,null,null,null,null,null,null,null,null,null,null,null,null,null,null,null,null,null,null,"C3A"]
[null,null,null,null,null,null,null,null,"Open-ended response (if any)",null,null,null,null,null,null,null,null,null,null,null,null,null,null,null,null,null,null,null,null,null,null,null,null,null,"C3B"]
[null,null,null,null,null,null,null,null,4,null,null,null,null,null,null,null,null,null,null,null,null,null,null,null,null,null,null,null,null,null,null,null,null,null,"C3C"]
[null,null,null,null,null,null,null,null,null,null,null,null,null,null,null,null,null,null,null,null,null,null,null,null,null,null,null,null,null,null,null,null,null,null,"C3D"]
[null,null,null,null,null,null,null,null,null,null,null,null,null,null,null,null,null,null,null,null,null,null,null,null,null,null,null,"`",null,null,null,null,null,null,"C3E"]
[null,10,"Distribution of Student Learning Time (SLT)",null,null,null,null,null,null,null,null,null,null,null,null,null,null,null,null,null,null,null,null,null,null,null,null,null,null,null,null,null,null,null,"C3F"]
[null,null,"Note: This SLT calculation is designed for home grown programme only.",null,null,null,null,null,null,null,null,null,null,null,null,null,null,null,null,null,null,null,null,null,null,null,null,null,null,null,null,null,null,null,"C4A"]
[null,null,null,null,null,null,null,null,null,null,null,null,null,null,null,null,null,null,null,null,null,null,null,null,null,null,null,null,null,null,null,null,null,null,"C4B"]
[null,null,null,"Course Content Outline and Subtopics",null,null,null,null,null,null,"CLO*",null,"Learning and Teaching Activities**",null,null,null,null,null,null,null,null,null,null,"Total SLT",null,null,null,null,null,null,null,null,null,null,"C5"]
[null,null,null,null,null,null,null,null,null,null,null,null,"Face-to-Face (F2F)",null,null,null,null,null,null,null,"NF2F\nIndependent Learning\n(Asynchronous)"]
[null,null,null,null,null,null,null,null,null,null,null,null,"Physical",null,null,null,"Online/ Technology-mediated (Synchronous)"]
[null,null,null,null,null,null,null,null,null,null,null,null,"L","T","P","O","L","T","P","O"]
[null,null,null,1,"Financial Instruments and Markets",null,null,null,null,null,"CLO1",null,null,null,null,null,null,1,null,null,4]
[null,null,null,2,"Bond basics ",null,null,null,null,null,"CLO2",null,null,null,null,null,null,2,null,null,10]
[null,null,null,3,"Managing Fixed Income",null,null,null,null,null,"CLO2",null,null,null,null,null,null,2,null,null,10]
[null,null,null,4,"Technical Analysis",null,null,null,null,null,"CLO2",null,null,null,null,null,null,2,null,null,10]
[null,null,null,5,"Portfolio Theory",null,null,null,null,null,"CLO3",null,null,null,null,null,null,2,null,null,10]
[null,null,null,6,"EMH vs Behavioural Finance",null,null,null,null,null,"CLO2",null,null,null,null,null,null,2,null,null,10]
[null,null,null,7,"Trades and Orders",null,null,null,null,null,"CLO2",null,null,null,null,null,null,2,null,null,10]
[null,null,null,8,"Derivatives",null,null,null,null,null,"CLO3",null,null,null,null,null,null,1,null,null,6]
[null,null,null,9]
[null,null,null,10]
[null,null,null,{"$f":"D69+1","v":11}]
[null,null,null,{"$f":"D70+1","v":12}]
[null,null,null,13]
[null,null,null,14]
[null,null,null,15]
[null,null,null,16]
[null,null,null,17]
[null,null,null,18]
[null,null,null,19]
[null,null,null,20]
[null,null,null,"SUB-TOTAL SLT: ",null,null,null,null,null,null,null,null,null,null,null,null,null,null,null,null,null,null,null,{"$f":"SUM(M60:P79)+SUM(Q60:T79)+SUM(U60:W79)","v":84}]
[null,null,null,"Continous Assessement",null,null,null,null,null,null,"%",null,"Face-to-Face (F2F)",null,null,null,null,null,null,null,"NF2F\nIndependent Learning for Assessment (Asynchronous)"]
[null,null,null,null,null,null,null,null,null,null,null,null,"Physical",null,null,null,"Online/ Technology-mediated (Synchronous)"]
[null,null,null,1,"Individual assignment",null,null,null,null,null,30,null,null,null,null,null,7,null,null,null,6]
[null,null,null,2,"Group assignment and presentation",null,null,null,null,null,40,null,null,null,null,null,7,null,null,null,6]
[null,null,null,3]
[null,null,null,4]
[null,null,null,5]
[null,null,null,"SUB-TOTAL SLT: ",null,null,null,null,null,null,null,null,null,null,null,null,null,null,null,null,null,null,null,{"$f":"SUM(M83:W87)","v":26}]
[null,null,null,"Final Assessement",null,null,null,null,null,null,"%",null,"Face-to-Face (F2F)",null,null,null,null,null,null,null,"NF2F\nIndependent Learning for Assessment (Asynchronous)"]
[null,null,null,null,null,null,null,null,null,null,null,null,"Physical",null,null,null,"Online/ Technology-mediated (Synchronous)"]
[null,null,null,1,"Final examination",null,null,null,null,null,30,null,null,null,null,null,3,null,null,null,7]
[null,null,null,2]
[null,null,null,3]
[null,null,null,4]
[null,null,null,5]
[null,null,null,"SUB-TOTAL SLT: ",null,null,null,null,null,null,null,null,null,null,null,null,null,null,null,null,null,null,null,{"$f":"SUM(M91:W95)","v":10}]
[]
[null,null,null,"SLT for Assessment:",null,null,null,null,null,null,null,null,null,null,null,null,null,null,null,null,null,null,null,{"$f":"X88+X96","v":36}]
[null,null,null,"GRAND TOTAL SLT:",null,null,null,null,null,null,null,null,null,null,null,null,null,null,null,null,null,null,null,{"$f":"X98+X80","v":120}]
[null,null,null,"A","% SLT for F2F Physical Component: \n[Total F2F Physical /(Total F2F Physical + Total F2F Online + Total Independent Learning) x 100)]",null,null,null,null,null,null,null,null,null,null,null,null,null,null,null,null,null,null,{"$f":"IFERROR(((SUM(M60:P79)+SUM(M83:P87)+SUM(M91:P95))/X99)* 100,\"\")","v":0}]
[]
[null,null,null,"B","% SLT for Online & Independent Learning Component:\n[(Total F2F Online + Total Independent Learning) /( Total F2F Physical + Total F2F Online + Total Independent Learning) x 100]",null,null,null,null,null,null,null,null,null,null,null,null,null,null,null,null,null,null,{"$f":"IFERROR((SUM(Q60:W79)+SUM(Q83:W87) + SUM(Q91:W95))/X99 * 100,\"\")","v":100}]
[null,null,null,"C","% SLT for All Practical Component:\n[% F2F Physical Practical + % F2F Online Practical]",null,null,null,null,null,null,null,null,null,null,null,null,null,null,null,null,null,null,{"$f":"IFERROR(X104+X105,\"\")","v":0}]
[null,null,null,"C1","% SLT for F2F Physical Practical Component\n[Total F2F Physical Practical /( Total F2F Physical + Total F2F Online + Total Independent Learning)  x 100)]",null,null,null,null,null,null,null,null,null,null,null,null,null,null,null,null,null,null,{"$f":"IFERROR(SUM(O60:O79)/X99*100,\"\")","v":0}]
[null,null,null,"C2","% SLT for F2F Online Practical Component\n[Total F2F Online Practical / (Total F2F Physical + Total F2F Online + Total Independent Learning) x 100]",null,null,null,null,null,null,null,null,null,null,null,null,null,null,null,null,null,null,{"$f":"IFERROR(SUM(S60:S79)/X99 *100,\"\")","v":0}]
[null,null,null,null,null,null,null,null,null,null,null,null,null,null,null,null,null,null,null,null,null,null,null,null,null,{"$f":"IFERROR(X102+X104,\"\")","v":100}]
[null,null,null,"Please  tick (√) if this course is Industrial Training/ Clinical Placement/ Practicum using 50% of Effective Learning Time (ELT)"]
[null,null,null,"Note: "]
[null,null,null,"* Indicate the CLO based on the CLO's numbering in Item 8"]
[null,null,null,"** For ODL programme: Courses with mandatory practical requiremnets imposed by the programme standards or any related standards can be exempted from complying to the minimum 80% ODL delivery rule in the SLT."]
[]
[null,11,"Identify special requirement or resources to deliver the course (e.g., software, nursery, computer lab, simulation room etc)",null,null,null,null,null,null,null,"None"]
[]
[null,12,"References (include required and further readings, and should be the most current)",null,null,null,null,null,null,null,"Bodie, Kane & Marcus (2021) Investments, 12th edition, McGraw Hill.\n\nHaniff and Madun (2018) Investment Management, 2nd edition, Oxford Fajar. \n\nBodie, Kane & Marcus (2019) Essentials of Investments, 11th edition, McGraw Hill.\n\nReilly, Brown & Leeds (2019) Investment Analysis and Portfolio Management, 11th edition, Cengage.\n\n"]
[]
[null,13,"Other additional information (if applicable)",null,null,null,null,null,null,null,"None"]
[]
[]
[null,null,"Note: Number of PLO indicated is purely for illustration purposes only and the number is subjected to the curriculum design."]

{"sheet":"OBM4420","index":16,"n_rows":119,"n_cols":35,"rows_kept":119,"cut":false,"hidden":false,"merged":[[8,1,10,1],[8,2,10,4],[8,6,8,27],[9,6,9,27],[10,6,10,27],[3,2,3,4],[3,5,3,27],[4,2,4,4],[4,5,4,27],[5,2,5,4],[5,5,5,27],[11,2,11,4],[11,5,11,7],[11,9,11,10],[11,12,11,27],[12,2,12,4],[12,5,12,7],[6,2,6,4],[6,5,6,11],[7,2,7,4],[7,5,7,27],[13,2,13,4],[13,5,13,27],[15,2,22,4],[15,5,15,6],[15,7,15,26],[16,5,16,6],[16,7,16,26],[17,5,17,6],[17,7,17,26],[18,5,18,6],[22,5,22,6],[22,7,22,26],[24,2,24,27],[26,3,27,4],[26,5,26,16],[26,17,27,21],[26,22,27,25],[18,7,18,26],[19,5,19,6],[19,7,19,26],[20,5,20,6],[20,7,20,26],[21,5,21,6],[21,7,21,26],[30,3,30,4],[30,17,30,21],[30,22,30,25],[31,3,31,4],[31,17,31,21],[31,22,31,25],[28,3,28,4],[28,17,28,21],[28,22,28,25],[29,3,29,4],[29,17,29,21],[29,22,29,25],[34,3,34,4],[34,17,34,21],[34,22,34,25],[35,3,35,4],[35,17,35,21],[35,22,35,25],[32,3,32,4],[32,17,32,21],[32,22,32,25],[33,3,33,4],[33,17,33,21],[33,22,33,25],[42,3,42,25],[44,2,44,7],[45,2,46,7],[45,9,45,25],[46,9,46,25],[47,9,47,25],[36,3,38,4],[36,17,36,21],[37,17,37,21],[38,17,38,21],[40,3,40,25],[41,3,41,25],[56,20,58,22],[57,12,57,15],[57,16,57,19],[59,4,59,9],[59,10,59,11],[59,20,59,22],[48,8,48,25],[49,8,50,8],[49,9,50,25],[52,2,52,27],[53,2,53,26],[55,3,58,9],[55,10,58,11],[55,12,55,22],[55,23,58,25],[56,12,56,19],[59,23,59,25],[60,4,60,9],[60,10,60,11],[60,20,60,22],[60,23,60,25],[61,4,61,9],[61,10,61,11],[61,20,61,22],[61,23,61,25],[64,4,64,9],[64,10,64,11],[64,20,64,22],[64,23,64,25],[65,4,65,9],[65,10,65,11],[65,20,65,22],[65,23,65,25],[62,4,62,9],[62,10,62,11],[62,20,62,22],[62,23,62,25],[63,4,63,9],[63,10,63,11],[63,20,63,22],[63,23,63,25],[68,4,68,9],[68,10,68,11],[68,20,68,22],[68,23,68,25],[69,4,69,9],[69,10,69,11],[69,20,69,22],[66,4,66,9],[66,10,66,11],[66,20,66,22],[66,23,66,25],[67,4,67,9],[67,10,67,11],[67,20,67,22],[67,23,67,25],[72,4,72,9],[72,10,72,11],[73,4,73,9],[74,4,74,9],[74,10,74,11],[74,20,74,22],[70,4,70,9],[70,10,70,11],[70,20,70,22],[71,4,71,9],[71,10,71,11],[71,20,71,22],[74,23,74,25],[75,4,75,9],[75,10,75,11],[75,20,75,22],[75,23,75,25],[76,4,76,9],[76,10,76,11],[76,20,76,22],[76,23,76,25],[79,3,79,22],[79,23,79,25],[80,3,81,9],[80,10,81,11],[80,12,80,19],[80,20,81,22],[81,12,81,15],[81,16,81,19],[77,4,77,9],[77,10,77,11],[77,20,77,22],[77,23,77,25],[78,4,78,9],[78,10,78,11],[78,20,78,22],[78,23,78,25],[82,4,82,9],[82,10,82,11],[82,12,82,15],[82,16,82,19],[82,20,82,22],[83,4,83,9],[83,10,83,11],[83,12,83,15],[83,16,83,19],[83,20,83,22],[84,4,84,9],[84,10,84,11],[84,12,84,15],[84,16,84,19],[84,20,84,22],[85,4,85,9],[85,10,85,11],[85,12,85,15],[85,16,85,19],[85,20,85,22],[87,23,87,25],[88,3,89,9],[88,10,89,11],[88,12,88,19],[88,20,89,22],[89,12,89,15],[89,16,89,19],[86,4,86,9],[86,10,86,11],[86,12,86,15],[86,16,86,19],[86,20,86,22],[87,3,87,22],[90,4,90,9],[90,10,90,11],[90,12,90,15],[90,16,90,19],[90,20,90,22],[91,4,91,9],[91,10,91,11],[91,12,91,15],[91,16,91,19],[91,20,91,22],[92,4,92,9],[92,10,92,11],[92,12,92,15],[92,16,92,19],[92,20,92,22],[93,4,93,9],[93,10,93,11],[93,12,93,15],[93,16,93,19],[93,20,93,22],[95,23,95,25],[97,3,97,22],[97,23,97,25],[98,3,98,22],[98,23,98,25],[99,3,100,3],[99,4,100,22],[99,23,100,25],[94,4,94,9],[94,10,94,11],[94,12,94,15],[94,16,94,19],[94,20,94,22],[95,3,95,22],[104,4,104,22],[104,23,104,25],[106,3,106,22],[106,23,106,25],[108,3,108,25],[109,3,109,25],[101,4,101,22],[101,23,101,25],[102,4,102,22],[102,23,102,25],[103,4,103,22],[103,23,103,25],[115,1,116,1],[115,2,116,9],[115,10,116,27],[118,2,118,27],[119,1,119,27],[110,3,110,22],[111,1,112,1],[111,2,112,9],[111,10,112,27],[113,1,114,1],[113,2,114,9],[113,10,114,27]]}
[]
[null,"Back To FORM @ TEMPLATE"]
[null,null,null,null,null,null,null,null,null,null,null,null,null,null,null,null,null,null,null,null,null,null,null,null,null,null,null,null,null,null,null,null,null,null,"√"]
[]
[null,1,"Course Name:",null,null,"Human Resource Development",null,null,null,null,null,null,null,null,null,null,null,null,null,null,null,null,null,null,null,null,null,null,null,null,null,null,null,null,"Semester"]
[null,null,"Course Code:",null,null,"OBM4420",null,null,null,null,null,null,null,null,null,null,null,null,null,null,null,null,null,null,null,null,null,null,null,null,null,null,null,null,1]
[null,null,"Course Classification:",null,null,"Major (core) ",null,null,null,null,null,null,null,null,null,null,null,null,null,null,null,null,null,null,null,null,null,null,null,null,null,null,null,null,2]
[null,2,"Synopsis:",null,null,"The module helps students understand the varieties of training programs and methods used to improve employee effectiveness and satisfaction; to help students understand the major techniques used to develop employees and their advantages and disadvantages. ",null,null,null,null,null,null,null,null,null,null,null,null,null,null,null,null,null,null,null,null,null,null,null,null,null,null,null,null,3]
[null,{"$f":"B8+1","v":3},"Name(s) of Academic Staff:",null,null,1,"A.Tanusia"]
[null,null,null,null,null,2,null,null,null,null,null,null,null,null,null,null,null,null,null,null,null,null,null,null,null,null,null,null,null,null,null,null,null,null,"Year Offered"]
[null,null,null,null,null,3,null,null,null,null,null,null,null,null,null,null,null,null,null,null,null,null,null,null,null,null,null,null,null,null,null,null,null,null,1]
[null,{"$f":"B9+1","v":4},"Semester and Year offered:",null,null,"Year Offered",null,null,1,"Semester",null,2,"Remarks:",null,null,null,null,null,null,null,null,null,null,null,null,null,null,null,null,null,null,null,null,null,2]
[null,{"$f":"B12+1","v":5},"Credit Value:",null,null,{"$f":"IF(X107 =\"√\",INT(X99/80),INT(X99/40))","v":3},null,null,3,null,null,null,null,null,null,null,null,null,null,null,null,null,null,null,null,null,null,null,null,null,null,null,null,null,3]
[null,6,"Pre-requisite/ co-requisite (if any):",null,null,"None",null,null,null,null,null,null,null,null,null,null,null,null,null,null,null,null,null,null,null,null,null,null,null,null,null,null,null,null,4]
[null,null,null,null,null,null,null,null,null,null,null,null,null,null,null,null,null,null,null,null,null,null,null,null,null,null,null,null,null,null,null,null,null,null,5]
[null,7,"Course Learning Outcomes (CLO)",null,null,"CLO1",null," Explain human resources development (HRD) and its theories, the difference between education, training, learning and the concept of the transfer of learning (C3F, PLO7)",null,null,null,null,null,null,null,null,null,null,null,null,null,null,null,null,null,null,null,null,null,null,null,null,null,null,6]
[null,null,null,null,null,"CLO2",null,"Apply and evaluate a learning process starting with training needs analysis to assessment and evaluation process (C4A, PLO8)",null,null,null,null,null,null,null,null,null,null,null,null,null,null,null,null,null,null,null,null,null,null,null,null,null,null,7]
[null,null,null,null,null,"CLO3",null," Evaluate the HRD role dealing with contemporary challenges (C3B, PLO4)",null,null,null,null,null,null,null,null,null,null,null,null,null,null,null,null,null,null,null,null,null,null,null,null,null,null,8]
[]
[null,null,null,null,null,null,null,null,null,null,null,null,null,null,null,null,null,null,null,null,null,null,null,null,null,null,null,null,null,null,null,null,null,null,"Compulsory"]
[null,null,null,null,null,null,null,null,null,null,null,null,null,null,null,null,null,null,null,null,null,null,null,null,null,null,null,null,null,null,null,null,null,null,"Major (core) "]
[null,null,null,null,null,null,null,null,null,null,null,null,null,null,null,null,null,null,null,null,null,null,null,null,null,null,null,null,null,null,null,null,null,null,"Minor"]
[null,null,null,null,null,null,null,null,null,null,null,null,null,null,null,null,null,null,null,null,null,null,null,null,null,null,null,null,null,null,null,null,null,null,"Elective (core) "]
[null,null,null,null,null,null,null,null,null,null,null,null,null,null,null,null,null,null,null,null,null,null,null,null,null,null,null,null,null,null,null,null,null,null,"Elective (open/free)"]
[null,8,"Mapping of the Course Learning Outcomes to the Programme Learning Outcomes, Teaching Methods and Assessment Methods"]
[]
[null,null,null,"Course Learning Outcomes",null,"Programme Learning Outcomes (PLO)",null,null,null,null,null,null,null,null,null,null,null,"Teaching Methods",null,null,null,null,"Assessment Methods"]
[null,null,null,null,null,"PLO 1","PLO 2","PLO 3","PLO 4","PLO 5","PLO 6","PLO 7","PLO 8","PLO 9","PLO 10","PLO 11"]
[null,null,null,{"$f":"IF(ISBLANK(F16),\"\",F16)","v":"CLO1"},null,null,null,null,null,null,null,"√",null,null,null,null,null,"Pre-recorded  video lectures, Tutorials",null,null,null,null,"Forum,                                       Individual Assignment,                  Final Examination"]
[null,null,null,{"$f":"IF(ISBLANK(F17),\"\",F17)","v":"CLO2"},null,null,null,null,null,null,null,null,"√",null,null,null,null,"Online Discussion Forum     Tutorials",null,null,null,null,"Journal Review,Case Study,Final Examination"]
[null,null,null,"CLO3",null,null,null,null,"√",null,null,null,null,null,null,null,null,"Online Discussion Forum     Tutorials",null,null,null,null,"Journal Review,Case Study,Individual Assignment,Final Examination"]
[null,null,null,""]
[null,null,null,""]
[null,null,null,""]
[null,null,null,""]
[null,null,null,"",null,null,null,null,null,null,null,null,null,null,null,null,null,null,null,null,null,null,null,null,null,null,null,null,null,null,null,null,null,null,"Cognitive skills  "]
[null,null,null,"Mapping with MQF Cluster of Learning Outcomes",null,null,null,null,null,null,null,"C3F",null,null,null,null,null,null,null,null,null,null,null,null,null,null,null,null,null,null,null,null,null,null,"Interpersonal skills"]
[null,null,null,null,null,null,null,null,null,null,null,null,"C4A",null,null,null,null,null,null,null,null,null,null,null,null,null,null,null,null,null,null,null,null,null,"Communication Skills"]
[null,null,null,null,null,null,null,null,"C3B",null,null,null,null,null,null,null,null,null,null,null,null,null,null,null,null,null,null,null,null,null,null,null,null,null,"Digital Skills"]
[null,null,null,null,null,null,null,null,null,null,null,null,null,null,null,null,null,null,null,null,null,null,null,null,null,null,null,null,null,null,null,null,null,null,"Numeracy Skills"]
[null,null,null,"Indicate the primary causal link between the CLO and PLO by ticking  '√' in the appropriate box.",null,null,null,null,null,null,null,null,null,null,null,null,null,null,null,null,null,null,null,null,null,null,null,null,null,null,null,null,null,null,"Leadership, Autonomy and Responsibility"]
[null,null,null,"C1 = Knowledge & Understanding, C2 = Cognitive Skills, C3A = Practical Skills, C3B = Interpersonal Skills, C3C = Communication Skills, C3D = Digital Skills,",null,null,null,null,null,null,null,null,null,null,null,null,null,null,null,null,null,null,null,null,null,null,null,null,null,null,null,null,null,null,"Personal Skills"]
[null,null,null,"C3E = Numeracy Skills, C3F = Leadership, Autonomy & Responsibility, C4A = Personal Skills, C4B = Entrepreneurial Skills, C5 = Ethics & Professionalism",null,null,null,null,null,null,null,null,null,null,null,null,null,null,null,null,null,null,null,null,null,null,null,null,null,null,null,null,null,null,"Entrepreneurial Skills"]
[null,null,null,null,null,null,null,null,null,null,null,null,null,null,null,null,null,null,null,null,null,null,null,null,null,null,null,null,null,null,null,null,null,null,"Ethics and Professionalism"]
[null,9,"Transferable Skills (if applicable)"]
[null,null,"(Skills learned in the course of study which can be useful and utilized in other settings)",null,null,null,null,null,1,"Communication Skills",null,null,null,null,null,null,null,null,null,null,null,null,null,null,null,null,null,null,null,null,null,null,null,null,"C1"]
[null,null,null,null,null,null,null,null,2,"Interpersonal skills",null,null,null,null,null,null,null,null,null,null,null,null,null,null,null,null,null,null,null,null,null,null,null,null,"C2"]
[null,null,null,null,null,null,null,null,3,"Leadership, Autonomy and Responsibility",null,null,null,null,null,null,null,null,null,null,null,null,null,null,null,null,null,null,null,null,null,null,null,null,"C3A"]
[null,null,null,null,null,null,null,null,"Open-ended response (if any)",null,null,null,null,null,null,null,null,null,null,null,null,null,null,null,null,null,null,null,null,null,null,null,null,null,"C3B"]
[null,null,null,null,null,null,null,null,4,null,null,null,null,null,null,null,null,null,null,null,null,null,null,null,null,null,null,null,null,null,null,null,null,null,"C3C"]
[null,null,null,null,null,null,null,null,null,null,null,null,null,null,null,null,null,null,null,null,null,null,null,null,null,null,null,null,null,null,null,null,null,null,"C3D"]
[null,null,null,null,null,null,null,null,null,null,null,null,null,null,null,null,null,null,null,null,null,null,null,null,null,null,null,"`",null,null,null,null,null,null,"C3E"]
[null,10,"Distribution of Student Learning Time (SLT)",null,null,null,null,null,null,null,null,null,null,null,null,null,null,null,null,null,null,null,null,null,null,null,null,null,null,null,null,null,null,null,"C3F"]
[null,null,"Note: This SLT calculation is designed for home grown programme only.",null,null,null,null,null,null,null,null,null,null,null,null,null,null,null,null,null,null,null,null,null,null,null,null,null,null,null,null,null,null,null,"C4A"]
[null,null,null,null,null,null,null,null,null,null,null,null,null,null,null,null,null,null,null,null,null,null,null,null,null,null,null,null,null,null,null,null,null,null,"C4B"]
[null,null,null,"Course Content Outline and Subtopics",null,null,null,null,null,null,"CLO*",null,"Learning and Teaching Activities**",null,null,null,null,null,null,null,null,null,null,"Total SLT",null,null,null,null,null,null,null,null,null,null,"C5"]
[null,null,null,null,null,null,null,null,null,null,null,null,"Face-to-Face (F2F)",null,null,null,null,null,null,null,"NF2F\nIndependent Learning\n(Asynchronous)"]
[null,null,null,null,null,null,null,null,null,null,null,null,"Physical",null,null,null,"Online/ Technology-mediated (Synchronous)"]
[null,null,null,null,null,null,null,null,null,null,null,null,"L","T","P","O","L","T","P","O"]
[null,null,null,1,"Introduction to  Human Resource Development (HRD)\n•\tRelate development of HRD\n•\tIdentify & describe major HRD functions\n•\tRecognize various competencies of an HRD professional\n•\tIdentify major phases of HRD process",null,null,null,null,null,null,null,null,null,null,null,null,1,null,null,4]
[null,null,null,2,"Adult Learning Theory and  Workplace Learning\n•\tDefine andragogy and pedagogy.\n•\tDescribe principle and characteristics of adult learners.\n•\tDefine learning and list at least three learning principles\n•\tDescribe the three broad categories of issues that should be considered to maximize learning\n•\tIdentify and discuss the factors that affect the transfer of training, and how these can be used to maximize learning",null,null,null,null,null,null,null,null,null,null,null,null,1,null,null,4]
[null,null,null,3,"Assessing Human Resource Development Needs\n•\tReasons for conducting a needs assessment\n•\tPurpose of conducting a strategic/organizational analysis \n•\tKnow the five steps that can be used to conduct a task analysis",null,null,null,null,null,null,null,null,null,null,null,null,2,null,null,8]
[null,null,null,4,"Designing Effective Human Resource Development Programs\n•\tWrite training objectives for a specific program\n•\tIdentify several sources where HRD programs could be obtained\n•\tCompare various types of training materials\n•\tPoint out some of the constraints to scheduling HRD programs",null,null,null,null,null,null,null,null,null,null,null,null,2,null,null,8]
[null,null,null,5,"Implementing Human Resource Development Programs\n•\tDescribe three broad approaches to training delivery and the advantages and disadvantages of each approach\n•\tDescribe five primary categories of classroom training and the advantages and disadvantages of each one\n•\tDescribe the advantages and disadvantages of self-paced training approaches to training delivery\n•\tDetermine when various training techniques are more or less effective in different situations",null,null,null,null,null,null,null,null,null,null,null,null,1,null,null,6]
[null,null,null,6,"Evaluating Human Resource Development Programs\n•\tDefine evaluation and explain its role in HRD\n•\tCompare different frameworks for HRD evaluation\n•\tDiscuss the various types of evaluation information available and compare the methods of data collection",null,null,null,null,null,null,null,null,null,null,null,null,2,null,null,8]
[null,null,null,7,"Employee Skills And Technical Training\n•\tIdentify and describe basic workplace competencies\n•\tDescribe a typical technical skills training program\n•\tUnderstand the professional development and education practices common in many organizations",null,null,null,null,null,null,null,null,null,null,null,null,1,null,null,6]
[null,null,null,8,"Employee Socialization And Orientation\n•\tDiscuss the content and process of organizational socialization \n•\tDescribe the realistic job preview approach to recruiting, and explain how it can benefit organizations and new employees\n•\tLearn the key elements necessary to design, implement, and evaluate an effective orientation program",null,null,null,null,null,null,null,null,null,null,null,null,2,null,null,6]
[null,null,null,9,"Management Development \n•\tDefine management development and describe the extent to which it is used in organizations\n•\tExplain specific ways that management development can be linked to organizational goals and strategies\n•\tDescribe the components of two approaches frequently used in management development programs: \n–\tleadership training\n–\tbehavior modeling training\n•\tUse the HRD process model to design, implement, and evaluate management development programs",null,null,null,null,null,null,null,null,null,null,null,null,1,null,null,6]
[null,null,null,10,"Career Management And Development\n•\tDefine the term career, and explain the roles involved in career management and development\n•\tDescribe models of career development\n•\tUnderstand what is involved in designing a career management program",null,null,null,null,null,null,null,null,null,null,null,null,1,null,null,6]
[null,null,null,{"$f":"D69+1","v":11}]
[null,null,null,{"$f":"D70+1","v":12}]
[null,null,null,13]
[null,null,null,14]
[null,null,null,15]
[null,null,null,16]
[null,null,null,17]
[null,null,null,18]
[null,null,null,19]
[null,null,null,20]
[null,null,null,"SUB-TOTAL SLT: ",null,null,null,null,null,null,null,null,null,null,null,null,null,null,null,null,null,null,null,{"$f":"SUM(M60:P79)+SUM(Q60:T79)+SUM(U60:W79)","v":76}]
[null,null,null,"Continous Assessement",null,null,null,null,null,null,"%",null,"Face-to-Face (F2F)",null,null,null,null,null,null,null,"NF2F\nIndependent Learning for Assessment (Asynchronous)"]
[null,null,null,null,null,null,null,null,null,null,null,null,"Physical",null,null,null,"Online/ Technology-mediated (Synchronous)"]
[null,null,null,1,"Forum",null,null,null,null,null,20,null,null,null,null,null,null,null,null,null,8]
[null,null,null,2,"Case Study",null,null,null,null,null,10,null,null,null,null,null,null,null,null,null,6]
[null,null,null,3,"Journal Review",null,null,null,null,null,20,null,null,null,null,null,null,null,null,null,8]
[null,null,null,4,"Individual Assignment ",null,null,null,null,null,20,null,null,null,null,null,null,null,null,null,12]
[null,null,null,5]
[null,null,null,"SUB-TOTAL SLT: ",null,null,null,null,null,null,null,null,null,null,null,null,null,null,null,null,null,null,null,{"$f":"SUM(M83:W87)","v":34}]
[null,null,null,"Final Assessement",null,null,null,null,null,null,"%",null,"Face-to-Face (F2F)",null,null,null,null,null,null,null,"NF2F\nIndependent Learning for Assessment (Asynchronous)"]
[null,null,null,null,null,null,null,null,null,null,null,null,"Physical",null,null,null,"Online/ Technology-mediated (Synchronous)"]
[null,null,null,1,"Final Examination",null,null,null,null,null,30,null,null,null,null,null,3,null,null,null,7]
[null,null,null,2]
[null,null,null,3]
[null,null,null,4]
[null,null,null,5]
[null,null,null,"SUB-TOTAL SLT: ",null,null,null,null,null,null,null,null,null,null,null,null,null,null,null,null,null,null,null,{"$f":"SUM(M91:W95)","v":10}]
[]
[null,null,null,"SLT for Assessment:",null,null,null,null,null,null,null,null,null,null,null,null,null,null,null,null,null,null,null,{"$f":"X88+X96","v":44}]
[null,null,null,"GRAND TOTAL SLT:",null,null,null,null,null,null,null,null,null,null,null,null,null,null,null,null,null,null,null,{"$f":"X98+X80","v":120}]
[null,null,null,"A","% SLT for F2F Physical Component: \n[Total F2F Physical /(Total F2F Physical + Total F2F Online + Total Independent Learning) x 100)]",null,null,null,null,null,null,null,null,null,null,null,null,null,null,null,null,null,null,{"$f":"IFERROR(((SUM(M60:P79)+SUM(M83:P87)+SUM(M91:P95))/X99)* 100,\"\")","v":0}]
[]
[null,null,null,"B","% SLT for Online & Independent Learning Component:\n[(Total F2F Online + Total Independent Learning) /( Total F2F Physical + Total F2F Online + Total Independent Learning) x 100]",null,null,null,null,null,null,null,null,null,null,null,null,null,null,null,null,null,null,{"$f":"IFERROR((SUM(Q60:W79)+SUM(Q83:W87) + SUM(Q91:W95))/X99 * 100,\"\")","v":100}]
[null,null,null,"C","% SLT for All Practical Component:\n[% F2F Physical Practical + % F2F Online Practical]",null,null,null,null,null,null,null,null,null,null,null,null,null,null,null,null,null,null,{"$f":"IFERROR(X104+X105,\"\")","v":0}]
[null,null,null,"C1","% SLT for F2F Physical Practical Component\n[Total F2F Physical Practical /( Total F2F Physical + Total F2F Online + Total Independent Learning)  x 100)]",null,null,null,null,null,null,null,null,null,null,null,null,null,null,null,null,null,null,{"$f":"IFERROR(SUM(O60:O79)/X99*100,\"\")","v":0}]
[null,null,null,"C2","% SLT for F2F Online Practical Component\n[Total F2F Online Practical / (Total F2F Physical + Total F2F Online + Total Independent Learning) x 100]",null,null,null,null,null,null,null,null,null,null,null,null,null,null,null,null,null,null,{"$f":"IFERROR(SUM(S60:S79)/X99 *100,\"\")","v":0}]
[null,null,null,null,null,null,null,null,null,null,null,null,null,null,null,null,null,null,null,null,null,null,null,null,null,{"$f":"IFERROR(X102+X104,\"\")","v":100}]
[null,null,null,"Please  tick (√) if this course is Industrial Training/ Clinical Placement/ Practicum using 50% of Effective Learning Time (ELT)"]
[null,null,null,"Note: "]
[null,null,null,"* Indicate the CLO based on the CLO's numbering in Item 8"]
[null,null,null,"** For ODL programme: Courses with mandatory practical requiremnets imposed by the programme standards or any related standards can be exempted from complying to the minimum 80% ODL delivery rule in the SLT."]
[]
[null,11,"Identify special requirement or resources to deliver the course (e.g., software, nursery, computer lab, simulation room etc)",null,null,null,null,null,null,null,"None"]
[]
[null,12,"References (include required and further readings, and should be the most current)",null,null,null,null,null,null,null,"*Jon M. Werner. (2021). Human Resource Development: Talent Development, (8th ed.). Cengage.\nAdditional Reference Text:\n•\tRaymond A. Noe. (2017). Employee Training and Development, (7th ed.). McGraw-Hill Education. \n•\tDavid McGuive. (2015). Human Resource Development, (2nd ed.). SAGE publication."]
[]
[null,13,"Other additional information (if applicable)",null,null,null,null,null,null,null,"None"]
[]
[]
[null,null,"Note: Number of PLO indicated is purely for illustration purposes only and the number is subjected to the curriculum design."]

{"sheet":"OBM4402","index":17,"n_rows":119,"n_cols":35,"rows_kept":119,"cut":false,"hidden":false,"merged":[[8,1,10,1],[8,2,10,4],[8,6,8,27],[9,6,9,27],[10,6,10,27],[3,2,3,4],[3,5,3,27],[4,2,4,4],[4,5,4,27],[5,2,5,4],[5,5,5,27],[11,2,11,4],[11,5,11,7],[11,9,11,10],[11,12,11,27],[12,2,12,4],[12,5,12,7],[6,2,6,4],[6,5,6,11],[7,2,7,4],[7,5,7,27],[13,2,13,4],[13,5,13,27],[15,2,22,4],[15,5,15,6],[15,7,15,26],[16,5,16,6],[16,7,16,26],[17,5,17,6],[17,7,17,26],[18,5,18,6],[22,5,22,6],[22,7,22,26],[24,2,24,27],[26,3,27,4],[26,5,26,16],[26,17,27,21],[26,22,27,25],[18,7,18,26],[19,5,19,6],[19,7,19,26],[20,5,20,6],[20,7,20,26],[21,5,21,6],[21,7,21,26],[30,3,30,4],[30,17,30,21],[30,22,30,25],[31,3,31,4],[31,17,31,21],[31,22,31,25],[28,3,28,4],[28,17,28,21],[28,22,28,25],[29,3,29,4],[29,17,29,21],[29,22,29,25],[34,3,34,4],[34,17,34,21],[34,22,34,25],[35,3,35,4],[35,17,35,21],[35,22,35,25],[32,3,32,4],[32,17,32,21],[32,22,32,25],[33,3,33,4],[33,17,33,21],[33,22,33,25],[42,3,42,25],[44,2,44,7],[45,2,46,7],[45,9,45,25],[46,9,46,25],[47,9,47,25],[36,3,38,4],[36,17,36,21],[37,17,37,21],[38,17,38,21],[40,3,40,25],[41,3,41,25],[56,20,58,22],[57,12,57,15],[57,16,57,19],[59,4,59,9],[59,10,59,11],[59,20,59,22],[48,8,48,25],[49,8,50,8],[49,9,50,25],[52,2,52,27],[53,2,53,26],[55,3,58,9],[55,10,58,11],[55,12,55,22],[55,23,58,25],[56,12,56,19],[59,23,59,25],[60,4,60,9],[60,10,60,11],[60,20,60,22],[60,23,60,25],[61,4,61,9],[61,10,61,11],[61,20,61,22],[61,23,61,25],[64,4,64,9],[64,10,64,11],[64,20,64,22],[64,23,64,25],[65,4,65,9],[65,10,65,11],[65,20,65,22],[65,23,65,25],[62,4,62,9],[62,10,62,11],[62,20,62,22],[62,23,62,25],[63,4,63,9],[63,10,63,11],[63,20,63,22],[63,23,63,25],[68,23,68,25],[69,4,69,9],[69,20,69,22],[66,4,66,9],[66,10,66,11],[66,20,66,22],[66,23,66,25],[67,4,67,9],[67,10,67,11],[67,20,67,22],[67,23,67,25],[70,4,70,9],[70,20,70,22],[71,4,71,9],[71,20,71,22],[72,4,72,9],[72,20,72,22],[68,4,68,9],[68,10,68,11],[68,20,68,22],[73,4,73,9],[74,4,74,9],[74,10,74,11],[74,20,74,22],[74,23,74,25],[75,4,75,9],[75,10,75,11],[75,20,75,22],[75,23,75,25],[78,23,78,25],[79,3,79,22],[79,23,79,25],[76,4,76,9],[76,10,76,11],[76,20,76,22],[76,23,76,25],[77,4,77,9],[77,10,77,11],[77,20,77,22],[77,23,77,25],[80,3,81,9],[80,10,81,11],[80,12,80,19],[80,20,81,22],[81,12,81,15],[81,16,81,19],[78,4,78,9],[78,10,78,11],[78,20,78,22],[82,4,82,9],[82,10,82,11],[82,12,82,15],[82,16,82,19],[82,20,82,22],[83,4,83,9],[83,10,83,11],[83,12,83,15],[83,16,83,19],[83,20,83,22],[84,4,84,9],[84,10,84,11],[84,12,84,15],[84,16,84,19],[84,20,84,22],[85,4,85,9],[85,10,85,11],[85,12,85,15],[85,16,85,19],[85,20,85,22],[87,23,87,25],[88,3,89,9],[88,10,89,11],[88,12,88,19],[88,20,89,22],[89,12,89,15],[89,16,89,19],[86,4,86,9],[86,10,86,11],[86,12,86,15],[86,16,86,19],[86,20,86,22],[87,3,87,22],[90,4,90,9],[90,10,90,11],[90,12,90,15],[90,16,90,19],[90,20,90,22],[91,4,91,9],[91,10,91,11],[91,12,91,15],[91,16,91,19],[91,20,91,22],[92,4,92,9],[92,10,92,11],[92,12,92,15],[92,16,92,19],[92,20,92,22],[93,4,93,9],[93,10,93,11],[93,12,93,15],[93,16,93,19],[93,20,93,22],[95,23,95,25],[97,3,97,22],[97,23,97,25],[98,3,98,22],[98,23,98,25],[99,3,100,3],[99,4,100,22],[99,23,100,25],[94,4,94,9],[94,10,94,11],[94,12,94,15],[94,16,94,19],[94,20,94,22],[95,3,95,22],[104,4,104,22],[104,23,104,25],[106,3,106,22],[106,23,106,25],[108,3,108,25],[109,3,109,25],[101,4,101,22],[101,23,101,25],[102,4,102,22],[102,23,102,25],[103,4,103,22],[103,23,103,25],[115,1,116,1],[115,2,116,9],[115,10,116,27],[118,2,118,27],[119,1,119,27],[110,3,110,22],[111,1,112,1],[111,2,112,9],[111,10,112,27],[113,1,114,1],[113,2,114,9],[113,10,114,27]]}
[]
[null,"Back To FORM @ TEMPLATE"]
[null,null,null,null,null,null,null,null,null,null,null,null,null,null,null,null,null,null,null,null,null,null,null,null,null,null,null,null,null,null,null,null,null,null,"√"]
[]
[null,1,"Course Name:",null,null,"Operations Management",null,null,null,null,null,null,null,null,null,null,null,null,null,null,null,null,null,null,null,null,null,null,null,null,null,null,null,null,"Semester"]
[null,null,"Course Code:",null,null,"OBM4402",null,null,null,null,null,null,null,null,null,null,null,null,null,null,null,null,null,null,null,null,null,null,null,null,null,null,null,null,1]
[null,null,"Course Classification:",null,null,"Elective (core) ",null,null,null,null,null,null,null,null,null,null,null,null,null,null,null,null,null,null,null,null,null,null,null,null,null,null,null,null,2]
[null,2,"Synopsis:",null,null,"This module examines the operations and the related management processes.  The level of discussions varies from operational functions to daily control of business processes from various perspectives such as efficiency, responsiveness, quality and productivity.",null,null,null,null,null,null,null,null,null,null,null,null,null,null,null,null,null,null,null,null,null,null,null,null,null,null,null,null,3]
[null,{"$f":"B8+1","v":3},"Name(s) of Academic Staff:",null,null,1,"Dr. Gan Joo Kong"]
[null,null,null,null,null,2,null,null,null,null,null,null,null,null,null,null,null,null,null,null,null,null,null,null,null,null,null,null,null,null,null,null,null,null,"Year Offered"]
[null,null,null,null,null,3,null,null,null,null,null,null,null,null,null,null,null,null,null,null,null,null,null,null,null,null,null,null,null,null,null,null,null,null,1]
[null,{"$f":"B9+1","v":4},"Semester and Year offered:",null,null,"Year Offered",null,null,1,"Semester",null,2,"Remarks:",null,null,null,null,null,null,null,null,null,null,null,null,null,null,null,null,null,null,null,null,null,2]
[null,{"$f":"B12+1","v":5},"Credit Value:",null,null,{"$f":"IF(X107 =\"√\",INT(X99/80),INT(X99/40))","v":3},null,null,3,null,null,null,null,null,null,null,null,null,null,null,null,null,null,null,null,null,null,null,null,null,null,null,null,null,3]
[null,6,"Pre-requisite/ co-requisite (if any):",null,null,null,null,null,null,null,null,null,null,null,null,null,null,null,null,null,null,null,null,null,null,null,null,null,null,null,null,null,null,null,4]
[null,null,null,null,null,null,null,null,null,null,null,null,null,null,null,null,null,null,null,null,null,null,null,null,null,null,null,null,null,null,null,null,null,null,5]
[null,7,"Course Learning Outcomes (CLO)",null,null,"CLO1",null,"Apply the elements of operation strategy to attaining competitive advantage of the firm (CLO1, PLO2)",null,null,null,null,null,null,null,null,null,null,null,null,null,null,null,null,null,null,null,null,null,null,null,null,null,null,6]
[null,null,null,null,null,"CLO2",null,"Evaluate and uilse information to manage projects, demand situations, quality products for customers and to plan capacity layout and location of production facilities. (CLO2, PLO5)",null,null,null,null,null,null,null,null,null,null,null,null,null,null,null,null,null,null,null,null,null,null,null,null,null,null,7]
[null,null,null,null,null,"CLO3",null,"Demontrate the ability to manage the supply chain, inventory and scheduling of productions to long term term sustainability. (CLO3, PLO6)",null,null,null,null,null,null,null,null,null,null,null,null,null,null,null,null,null,null,null,null,null,null,null,null,null,null,8]
[]
[null,null,null,null,null,null,null,null,null,null,null,null,null,null,null,null,null,null,null,null,null,null,null,null,null,null,null,null,null,null,null,null,null,null,"Compulsory"]
[null,null,null,null,null,null,null,null,null,null,null,null,null,null,null,null,null,null,null,null,null,null,null,null,null,null,null,null,null,null,null,null,null,null,"Major (core) "]
[null,null,null,null,null,null,null,null,null,null,null,null,null,null,null,null,null,null,null,null,null,null,null,null,null,null,null,null,null,null,null,null,null,null,"Minor"]
[null,null,null,null,null,null,null,null,null,null,null,null,null,null,null,null,null,null,null,null,null,null,null,null,null,null,null,null,null,null,null,null,null,null,"Elective (core) "]
[null,null,null,null,null,null,null,null,null,null,null,null,null,null,null,null,null,null,null,null,null,null,null,null,null,null,null,null,null,null,null,null,null,null,"Elective (open/free)"]
[null,8,"Mapping of the Course Learning Outcomes to the Programme Learning Outcomes, Teaching Methods and Assessment Methods"]
[]
[null,null,null,"Course Learning Outcomes",null,"Programme Learning Outcomes (PLO)",null,null,null,null,null,null,null,null,null,null,null,"Teaching Methods",null,null,null,null,"Assessment Methods"]
[null,null,null,null,null,"PLO 1","PLO 2","PLO 3","PLO 4","PLO 5","PLO 6","PLO 7","PLO 8","PLO 9","PLO 10","PLO 11"]
[null,null,null,{"$f":"IF(ISBLANK(F16),\"\",F16)","v":"CLO1"},null,null,"√",null,null,null,null,null,null,null,null,null,null,"Online Technology Mediated\nVideo Based Learning\nTutorial",null,null,null,null,"assignments, Final Exam"]
[null,null,null,{"$f":"IF(ISBLANK(F17),\"\",F17)","v":"CLO2"},null,null,null,null,"√",null,null,null,null,null,null,null,null,"Online Technology Mediated\nVideo Based Learning\nTutorial",null,null,null,null,"assignments, Final Exam"]
[null,null,null,"CLO3",null,null,null,null,null,null,"√",null,null,null,null,null,null,"Online Technology Mediated\nVideo Based Learning\nTutorial",null,null,null,null,"assignments, Final Exam"]
[null,null,null,""]
[null,null,null,""]
[null,null,null,""]
[null,null,null,""]
[null,null,null,"",null,null,null,null,null,null,null,null,null,null,null,null,null,null,null,null,null,null,null,null,null,null,null,null,null,null,null,null,null,null,"Cognitive skills  "]
[null,null,null,"Mapping with MQF Cluster of Learning Outcomes",null,null,"C2",null,null,null,null,null,null,null,null,null,null,null,null,null,null,null,null,null,null,null,null,null,null,null,null,null,null,null,"Interpersonal skills"]
[null,null,null,null,null,null,null,null,"C3B",null,null,null,null,null,null,null,null,null,null,null,null,null,null,null,null,null,null,null,null,null,null,null,null,null,"Communication Skills"]
[null,null,null,null,null,null,null,null,null,null,"C3E",null,null,null,null,null,null,null,null,null,null,null,null,null,null,null,null,null,null,null,null,null,null,null,"Digital Skills"]
[null,null,null,null,null,null,null,null,null,null,null,null,null,null,null,null,null,null,null,null,null,null,null,null,null,null,null,null,null,null,null,null,null,null,"Numeracy Skills"]
[null,null,null,"Indicate the primary causal link between the CLO and PLO by ticking  '√' in the appropriate box.",null,null,null,null,null,null,null,null,null,null,null,null,null,null,null,null,null,null,null,null,null,null,null,null,null,null,null,null,null,null,"Leadership, Autonomy and Responsibility"]
[null,null,null,"C1 = Knowledge & Understanding, C2 = Cognitive Skills, C3A = Practical Skills, C3B = Interpersonal Skills, C3C = Communication Skills, C3D = Digital Skills,",null,null,null,null,null,null,null,null,null,null,null,null,null,null,null,null,null,null,null,null,null,null,null,null,null,null,null,null,null,null,"Personal Skills"]
[null,null,null,"C3E = Numeracy Skills, C3F = Leadership, Autonomy & Responsibility, C4A = Personal Skills, C4B = Entrepreneurial Skills, C5 = Ethics & Professionalism",null,null,null,null,null,null,null,null,null,null,null,null,null,null,null,null,null,null,null,null,null,null,null,null,null,null,null,null,null,null,"Entrepreneurial Skills"]
[null,null,null,null,null,null,null,null,null,null,null,null,null,null,null,null,null,null,null,null,null,null,null,null,null,null,null,null,null,null,null,null,null,null,"Ethics and Professionalism"]
[null,9,"Transferable Skills (if applicable)"]
[null,null,"(Skills learned in the course of study which can be useful and utilized in other settings)",null,null,null,null,null,1,"Interpersonal skills",null,null,null,null,null,null,null,null,null,null,null,null,null,null,null,null,null,null,null,null,null,null,null,null,"C1"]
[null,null,null,null,null,null,null,null,2,"Communication skills",null,null,null,null,null,null,null,null,null,null,null,null,null,null,null,null,null,null,null,null,null,null,null,null,"C2"]
[null,null,null,null,null,null,null,null,3,"Numeracy skills",null,null,null,null,null,null,null,null,null,null,null,null,null,null,null,null,null,null,null,null,null,null,null,null,"C3A"]
[null,null,null,null,null,null,null,null,"Open-ended response (if any)",null,null,null,null,null,null,null,null,null,null,null,null,null,null,null,null,null,null,null,null,null,null,null,null,null,"C3B"]
[null,null,null,null,null,null,null,null,4,null,null,null,null,null,null,null,null,null,null,null,null,null,null,null,null,null,null,null,null,null,null,null,null,null,"C3C"]
[null,null,null,null,null,null,null,null,null,null,null,null,null,null,null,null,null,null,null,null,null,null,null,null,null,null,null,null,null,null,null,null,null,null,"C3D"]
[null,null,null,null,null,null,null,null,null,null,null,null,null,null,null,null,null,null,null,null,null,null,null,null,null,null,null,"`",null,null,null,null,null,null,"C3E"]
[null,10,"Distribution of Student Learning Time (SLT)",null,null,null,null,null,null,null,null,null,null,null,null,null,null,null,null,null,null,null,null,null,null,null,null,null,null,null,null,null,null,null,"C3F"]
[null,null,"Note: This SLT calculation is designed for home grown programme only.",null,null,null,null,null,null,null,null,null,null,null,null,null,null,null,null,null,null,null,null,null,null,null,null,null,null,null,null,null,null,null,"C4A"]
[null,null,null,null,null,null,null,null,null,null,null,null,null,null,null,null,null,null,null,null,null,null,null,null,null,null,null,null,null,null,null,null,null,null,"C4B"]
[null,null,null,"Course Content Outline and Subtopics",null,null,null,null,null,null,"CLO*",null,"Learning and Teaching Activities**",null,null,null,null,null,null,null,null,null,null,"Total SLT",null,null,null,null,null,null,null,null,null,null,"C5"]
[null,null,null,null,null,null,null,null,null,null,null,null,"Face-to-Face (F2F)",null,null,null,null,null,null,null,"NF2F\nIndependent Learning\n(Asynchronous)"]
[null,null,null,null,null,null,null,null,null,null,null,null,"Physical",null,null,null,"Online/ Technology-mediated (Synchronous)"]
[null,null,null,null,null,null,null,null,null,null,null,null,"L","T","P","O","L","T","P","O"]
[null,null,null,1,"The global environment and operations strategy",null,null,null,null,null,1,null,null,null,null,null,null,1,null,null,5]
[null,null,null,2,"Managing projects: CPM and PERT to determine critical path, expected time of completion and crashing time of project to complete on time.",null,null,null,null,null,"1,2",null,null,null,null,null,null,1,null,null,5]
[null,null,null,3,"Forescasting demands: forecasting methods, independent and dependent variables.",null,null,null,null,null,1.2,null,null,null,null,null,null,1,null,null,5]
[null,null,null,4,"Product Design: product strategy, product life cycle, product development, quality function, seervice design",null,null,null,null,null,1.2,null,null,null,null,null,null,1,null,null,5]
[null,null,null,5,"Quality management and international standards, JIT, TQM, TPS and LO; managing cost of quality",null,null,null,null,null,"1,2",null,null,null,null,null,null,1,null,null,5]
[null,null,null,6,"Process Design: process strategy, analysis and design; special consideration for service process design, selection of equipment and production technology, technology in services",null,null,null,null,null,"1,2",null,null,null,null,null,null,1,null,null,5]
[null,null,null,7,"Capacity Planning: design and effective capacity, demand and capacity management in the service sector, constraiints and bottlenecks, breakeven analysis, reducing risk with incremental hanges",null,null,null,null,null,"1,2",null,null,null,null,null,null,1,null,null,5]
[null,null,null,8,"Facility location planning: location effects on costs and revenues, reasons for locational changes, general procedures for facility location planning, behavioural impact in facility location",null,null,null,null,null,"1,2",null,null,null,null,null,null,1,null,null,5]
[null,null,null,9,"Layout planning: layout concepts, strategic importance of layout decisions, service layout, designing product layouts, designing process layout",null,null,null,null,null,"1,2",null,null,null,null,null,null,1,null,null,5]
[null,null,null,10,"Managing supply chain: effect on company strategy, supply chain economics, supply chain strategies, issues and opportunities in supply chain logistics management",null,null,null,null,null,"1,3",null,null,null,null,null,null,1,null,null,5]
[null,null,null,{"$f":"D69+1","v":11},"Managing inventory, importance, inventory models: EOQ model",null,null,null,null,null,null,"1,3",null,null,null,null,null,1,null,null,5]
[null,null,null,{"$f":"D70+1","v":12},"Scheduling: aggregate scheduling, the planning horizons, methods for aggregate planning, in products and services, disaggregating the aggregate plan, master schedule",null,null,null,null,null,"1,2,3",null,null,null,null,null,null,1,null,null,5]
[null,null,null,13,"Revision",null,null,null,null,null,null,null,null,null,null,null,null,1,null,null,5]
[null,null,null,14,"Revision",null,null,null,null,null,null,null,null,null,null,null,null,1,null,null,5]
[null,null,null,15]
[null,null,null,16]
[null,null,null,17]
[null,null,null,18]
[null,null,null,19]
[null,null,null,20]
[null,null,null,"SUB-TOTAL SLT: ",null,null,null,null,null,null,null,null,null,null,null,null,null,null,null,null,null,null,null,{"$f":"SUM(M60:P79)+SUM(Q60:T79)+SUM(U60:W79)","v":84}]
[null,null,null,"Continous Assessement",null,null,null,null,null,null,"%",null,"Face-to-Face (F2F)",null,null,null,null,null,null,null,"NF2F\nIndependent Learning for Assessment (Asynchronous)"]
[null,null,null,null,null,null,null,null,null,null,null,null,"Physical",null,null,null,"Online/ Technology-mediated (Synchronous)"]
[null,null,null,1,"Individual assignment",null,null,null,null,null,20,null,null,null,null,null,null,null,null,null,4]
[null,null,null,2,"Group assignment 1 with presentation",null,null,null,null,null,20,null,null,null,null,null,null,null,null,null,8]
[null,null,null,3,"Group assignment 2 with presentation",null,null,null,null,null,30,null,null,null,null,null,null,null,null,null,12]
[null,null,null,4]
[null,null,null,5]
[null,null,null,"SUB-TOTAL SLT: ",null,null,null,null,null,null,null,null,null,null,null,null,null,null,null,null,null,null,null,{"$f":"SUM(M83:W87)","v":24}]
[null,null,null,"Final Assessement",null,null,null,null,null,null,"%",null,"Face-to-Face (F2F)",null,null,null,null,null,null,null,"NF2F\nIndependent Learning for Assessment (Asynchronous)"]
[null,null,null,null,null,null,null,null,null,null,null,null,"Physical",null,null,null,"Online/ Technology-mediated (Synchronous)"]
[null,null,null,1,"Final exam",null,null,null,null,null,30,null,null,null,null,null,null,null,null,null,12]
[null,null,null,2]
[null,null,null,3]
[null,null,null,4]
[null,null,null,5]
[null,null,null,"SUB-TOTAL SLT: ",null,null,null,null,null,null,null,null,null,null,null,null,null,null,null,null,null,null,null,{"$f":"SUM(M91:W95)","v":12}]
[]
[null,null,null,"SLT for Assessment:",null,null,null,null,null,null,null,null,null,null,null,null,null,null,null,null,null,null,null,{"$f":"X88+X96","v":36}]
[null,null,null,"GRAND TOTAL SLT:",null,null,null,null,null,null,null,null,null,null,null,null,null,null,null,null,null,null,null,{"$f":"X98+X80","v":120}]
[null,null,null,"A","% SLT for F2F Physical Component: \n[Total F2F Physical /(Total F2F Physical + Total F2F Online + Total Independent Learning) x 100)]",null,null,null,null,null,null,null,null,null,null,null,null,null,null,null,null,null,null,{"$f":"IFERROR(((SUM(M60:P79)+SUM(M83:P87)+SUM(M91:P95))/X99)* 100,\"\")","v":0}]
[]
[null,null,null,"B","% SLT for Online & Independent Learning Component:\n[(Total F2F Online + Total Independent Learning) /( Total F2F Physical + Total F2F Online + Total Independent Learning) x 100]",null,null,null,null,null,null,null,null,null,null,null,null,null,null,null,null,null,null,{"$f":"IFERROR((SUM(Q60:W79)+SUM(Q83:W87) + SUM(Q91:W95))/X99 * 100,\"\")","v":100}]
[null,null,null,"C","% SLT for All Practical Component:\n[% F2F Physical Practical + % F2F Online Practical]",null,null,null,null,null,null,null,null,null,null,null,null,null,null,null,null,null,null,{"$f":"IFERROR(X104+X105,\"\")","v":0}]
[null,null,null,"C1","% SLT for F2F Physical Practical Component\n[Total F2F Physical Practical /( Total F2F Physical + Total F2F Online + Total Independent Learning)  x 100)]",null,null,null,null,null,null,null,null,null,null,null,null,null,null,null,null,null,null,{"$f":"IFERROR(SUM(O60:O79)/X99*100,\"\")","v":0}]
[null,null,null,"C2","% SLT for F2F Online Practical Component\n[Total F2F Online Practical / (Total F2F Physical + Total F2F Online + Total Independent Learning) x 100]",null,null,null,null,null,null,null,null,null,null,null,null,null,null,null,null,null,null,{"$f":"IFERROR(SUM(S60:S79)/X99 *100,\"\")","v":0}]
[null,null,null,null,null,null,null,null,null,null,null,null,null,null,null,null,null,null,null,null,null,null,null,null,null,{"$f":"IFERROR(X102+X104,\"\")","v":100}]
[null,null,null,"Please  tick (√) if this course is Industrial Training/ Clinical Placement/ Practicum using 50% of Effective Learning Time (ELT)"]
[null,null,null,"Note: "]
[null,null,null,"* Indicate the CLO based on the CLO's numbering in Item 8"]
[null,null,null,"** For ODL programme: Courses with mandatory practical requiremnets imposed by the programme standards or any related standards can be exempted from complying to the minimum 80% ODL delivery rule in the SLT."]
[]
[null,11,"Identify special requirement or resources to deliver the course (e.g., software, nursery, computer lab, simulation room etc)",null,null,null,null,null,null,null,"None"]
[]
[null,12,"References (include required and further readings, and should be the most current)",null,null,null,null,null,null,null," 1. Jay Heizer, Barry Render & Chuck Munson, 2017.  Operations Management, Sustainability and Supply Chain Management, 12th edition, Pearson, Essex, England.                                                                                                                                                                                                                                                               2. Lee J. Krajewski, Manoj K. Malhotra & Larry P. Ritzman (2019). Operations Management, Processes & Supply Chains, 12 Edition, Pearson, UK."]
[]
[null,13,"Other additional information (if applicable)",null,null,null,null,null,null,null,"None"]
[]
[]
[null,null,"Note: Number of PLO indicated is purely for illustration purposes only and the number is subjected to the curriculum design."]

{"sheet":"OBM4427","index":18,"n_rows":119,"n_cols":35,"rows_kept":119,"cut":false,"hidden":false,"merged":[[8,1,10,1],[8,2,10,4],[8,6,8,27],[9,6,9,27],[10,6,10,27],[3,2,3,4],[3,5,3,27],[4,2,4,4],[4,5,4,27],[5,2,5,4],[5,5,5,27],[11,2,11,4],[11,5,11,7],[11,9,11,10],[11,12,11,27],[12,2,12,4],[12,5,12,7],[6,2,6,4],[6,5,6,11],[7,2,7,4],[7,5,7,27],[13,2,13,4],[13,5,13,27],[15,2,22,4],[15,5,15,6],[15,7,15,26],[16,5,16,6],[16,7,16,26],[17,5,17,6],[17,7,17,26],[18,5,18,6],[22,5,22,6],[22,7,22,26],[24,2,24,27],[26,3,27,4],[26,5,26,16],[26,17,27,21],[26,22,27,25],[18,7,18,26],[19,5,19,6],[19,7,19,26],[20,5,20,6],[20,7,20,26],[21,5,21,6],[21,7,21,26],[30,3,30,4],[30,17,30,21],[30,22,30,25],[31,3,31,4],[31,17,31,21],[31,22,31,25],[28,3,28,4],[28,17,28,21],[28,22,28,25],[29,3,29,4],[29,17,29,21],[29,22,29,25],[34,3,34,4],[34,17,34,21],[34,22,34,25],[35,3,35,4],[35,17,35,21],[35,22,35,25],[32,3,32,4],[32,17,32,21],[32,22,32,25],[33,3,33,4],[33,17,33,21],[33,22,33,25],[42,3,42,25],[44,2,44,7],[45,2,46,7],[45,9,45,25],[46,9,46,25],[47,9,47,25],[36,3,38,4],[36,17,36,21],[37,17,37,21],[38,17,38,21],[40,3,40,25],[41,3,41,25],[56,20,58,22],[57,12,57,15],[57,16,57,19],[59,4,59,9],[59,10,59,11],[59,20,59,22],[48,8,48,25],[49,8,50,8],[49,9,50,25],[52,2,52,27],[53,2,53,26],[55,3,58,9],[55,10,58,11],[55,12,55,22],[55,23,58,25],[56,12,56,19],[59,23,59,25],[60,4,60,9],[60,10,60,11],[60,20,60,22],[60,23,60,25],[61,4,61,9],[61,10,61,11],[61,20,61,22],[61,23,61,25],[64,4,64,9],[64,10,64,11],[64,20,64,22],[64,23,64,25],[65,4,65,9],[65,10,65,11],[65,20,65,22],[65,23,65,25],[62,4,62,9],[62,10,62,11],[62,20,62,22],[62,23,62,25],[63,4,63,9],[63,10,63,11],[63,20,63,22],[63,23,63,25],[68,23,68,25],[69,4,69,9],[69,20,69,22],[66,4,66,9],[66,10,66,11],[66,20,66,22],[66,23,66,25],[67,4,67,9],[67,10,67,11],[67,20,67,22],[67,23,67,25],[70,4,70,9],[70,20,70,22],[71,4,71,9],[71,20,71,22],[72,4,72,9],[72,20,72,22],[68,4,68,9],[68,10,68,11],[68,20,68,22],[73,4,73,9],[74,4,74,9],[74,10,74,11],[74,20,74,22],[74,23,74,25],[75,4,75,9],[75,10,75,11],[75,20,75,22],[75,23,75,25],[78,23,78,25],[79,3,79,22],[79,23,79,25],[76,4,76,9],[76,10,76,11],[76,20,76,22],[76,23,76,25],[77,4,77,9],[77,10,77,11],[77,20,77,22],[77,23,77,25],[80,3,81,9],[80,10,81,11],[80,12,80,19],[80,20,81,22],[81,12,81,15],[81,16,81,19],[78,4,78,9],[78,10,78,11],[78,20,78,22],[82,4,82,9],[82,10,82,11],[82,12,82,15],[82,16,82,19],[82,20,82,22],[83,4,83,9],[83,10,83,11],[83,12,83,15],[83,16,83,19],[83,20,83,22],[84,4,84,9],[84,10,84,11],[84,12,84,15],[84,16,84,19],[84,20,84,22],[85,4,85,9],[85,10,85,11],[85,12,85,15],[85,16,85,19],[85,20,85,22],[87,23,87,25],[88,3,89,9],[88,10,89,11],[88,12,88,19],[88,20,89,22],[89,12,89,15],[89,16,89,19],[86,4,86,9],[86,10,86,11],[86,12,86,15],[86,16,86,19],[86,20,86,22],[87,3,87,22],[90,4,90,9],[90,10,90,11],[90,12,90,15],[90,16,90,19],[90,20,90,22],[91,4,91,9],[91,10,91,11],[91,12,91,15],[91,16,91,19],[91,20,91,22],[92,4,92,9],[92,10,92,11],[92,12,92,15],[92,16,92,19],[92,20,92,22],[93,4,93,9],[93,10,93,11],[93,12,93,15],[93,16,93,19],[93,20,93,22],[95,23,95,25],[97,3,97,22],[97,23,97,25],[98,3,98,22],[98,23,98,25],[99,3,100,3],[99,4,100,22],[99,23,100,25],[94,4,94,9],[94,10,94,11],[94,12,94,15],[94,16,94,19],[94,20,94,22],[95,3,95,22],[104,4,104,22],[104,23,104,25],[106,3,106,22],[106,23,106,25],[108,3,108,25],[109,3,109,25],[101,4,101,22],[101,23,101,25],[102,4,102,22],[102,23,102,25],[103,4,103,22],[103,23,103,25],[115,1,116,1],[115,2,116,9],[115,10,116,27],[118,2,118,27],[119,1,119,27],[110,3,110,22],[111,1,112,1],[111,2,112,9],[111,10,112,27],[113,1,114,1],[113,2,114,9],[113,10,114,27]]}
[]
[null,"Back To FORM @ TEMPLATE"]
[null,null,null,null,null,null,null,null,null,null,null,null,null,null,null,null,null,null,null,null,null,null,null,null,null,null,null,null,null,null,null,null,null,null,"√"]
[]
[null,1,"Course Name:",null,null,"Project Paper (General)",null,null,null,null,null,null,null,null,null,null,null,null,null,null,null,null,null,null,null,null,null,null,null,null,null,null,null,null,"Semester"]
[null,null,"Course Code:",null,null,"OBM4427",null,null,null,null,null,null,null,null,null,null,null,null,null,null,null,null,null,null,null,null,null,null,null,null,null,null,null,null,1]
[null,null,"Course Classification:",null,null,"Major (core) ",null,null,null,null,null,null,null,null,null,null,null,null,null,null,null,null,null,null,null,null,null,null,null,null,null,null,null,null,2]
[null,2,"Synopsis:",null,null,"The importance of the thesis or dissertation in the educational experience of the undergraduate or graduate student should not be underestimated. Nilai UC views the dissertation as a cumulative effort: representative of the entirety of the educational experience. The quality of the dissertation is measured on a number of different criteria: including format, consistency, language development, source quality and overall presentation. ",null,null,null,null,null,null,null,null,null,null,null,null,null,null,null,null,null,null,null,null,null,null,null,null,null,null,null,null,3]
[null,{"$f":"B8+1","v":3},"Name(s) of Academic Staff:",null,null,1,"Prof. Dr. Sivakumar Velayutham"]
[null,null,null,null,null,2,"AP Dr Vikineswaran M",null,null,null,null,null,null,null,null,null,null,null,null,null,null,null,null,null,null,null,null,null,null,null,null,null,null,null,"Year Offered"]
[null,null,null,null,null,3,"Dr. Chandramalar M",null,null,null,null,null,null,null,null,null,null,null,null,null,null,null,null,null,null,null,null,null,null,null,null,null,null,null,1]
[null,{"$f":"B9+1","v":4},"Semester and Year offered:",null,null,"Year Offered",null,null,1,"Semester",null,3,"Remarks:",null,null,null,null,null,null,null,null,null,null,null,null,null,null,null,null,null,null,null,null,null,2]
[null,{"$f":"B12+1","v":5},"Credit Value:",null,null,{"$f":"IF(X107 =\"√\",INT(X99/80),INT(X99/40))","v":7},null,null,3,null,null,null,null,null,null,null,null,null,null,null,null,null,null,null,null,null,null,null,null,null,null,null,null,null,3]
[null,6,"Pre-requisite/ co-requisite (if any):",null,null,"None",null,null,null,null,null,null,null,null,null,null,null,null,null,null,null,null,null,null,null,null,null,null,null,null,null,null,null,null,4]
[null,null,null,null,null,null,null,null,null,null,null,null,null,null,null,null,null,null,null,null,null,null,null,null,null,null,null,null,null,null,null,null,null,null,5]
[null,7,"Course Learning Outcomes (CLO)",null,null,"CLO1",null,"Examine research based literature critically to build problem statement , identify knowledge gap and research  objectives for scientific investigation. (C4, PLO3)",null,null,null,null,null,null,null,null,null,null,null,null,null,null,null,null,null,null,null,null,null,null,null,null,null,null,6]
[null,null,null,null,null,"CLO2",null,"Evaluate relevant data gathered using quantitative and qualitative research approaches in making practical business and management decisions through systematic methods. (C5, PL06)",null,null,null,null,null,null,null,null,null,null,null,null,null,null,null,null,null,null,null,null,null,null,null,null,null,null,7]
[null,null,null,null,null,"CLO3",null,"Propose solutions and alternative research strategies infered from findings and analysis of research objectives for organizations. (C6, PL08)",null,null,null,null,null,null,null,null,null,null,null,null,null,null,null,null,null,null,null,null,null,null,null,null,null,null,8]
[]
[null,null,null,null,null,null,null,null,null,null,null,null,null,null,null,null,null,null,null,null,null,null,null,null,null,null,null,null,null,null,null,null,null,null,"Compulsory"]
[null,null,null,null,null,null,null,null,null,null,null,null,null,null,null,null,null,null,null,null,null,null,null,null,null,null,null,null,null,null,null,null,null,null,"Major (core) "]
[null,null,null,null,null,null,null,null,null,null,null,null,null,null,null,null,null,null,null,null,null,null,null,null,null,null,null,null,null,null,null,null,null,null,"Minor"]
[null,null,null,null,null,null,null,null,null,null,null,null,null,null,null,null,null,null,null,null,null,null,null,null,null,null,null,null,null,null,null,null,null,null,"Elective (core) "]
[null,null,null,null,null,null,null,null,null,null,null,null,null,null,null,null,null,null,null,null,null,null,null,null,null,null,null,null,null,null,null,null,null,null,"Elective (open/free)"]
[null,8,"Mapping of the Course Learning Outcomes to the Programme Learning Outcomes, Teaching Methods and Assessment Methods"]
[]
[null,null,null,"Course Learning Outcomes",null,"Programme Learning Outcomes (PLO)",null,null,null,null,null,null,null,null,null,null,null,"Teaching Methods",null,null,null,null,"Assessment Methods"]
[null,null,null,null,null,"PLO 1","PLO 2","PLO 3","PLO 4","PLO 5","PLO 6","PLO 7","PLO 8","PLO 9","PLO 10","PLO 11"]
[null,null,null,{"$f":"IF(ISBLANK(F16),\"\",F16)","v":"CLO1"},null,null,null,"√",null,null,null,null,null,null,null,null,null,"Online Consultation",null,null,null,null,"Project Paper"]
[null,null,null,{"$f":"IF(ISBLANK(F17),\"\",F17)","v":"CLO2"},null,null,null,null,null,null,"√",null,null,null,null,null,null,"Online Consultation",null,null,null,null,"Project Paper"]
[null,null,null,"CLO3",null,null,null,null,null,null,null,null,"√",null,null,null,null,"Online Consultation",null,null,null,null,"Project Paper"]
[null,null,null,""]
[null,null,null,""]
[null,null,null,""]
[null,null,null,""]
[null,null,null,"",null,null,null,null,null,null,null,null,null,null,null,null,null,null,null,null,null,null,null,null,null,null,null,null,null,null,null,null,null,null,"Cognitive skills  "]
[null,null,null,"Mapping with MQF Cluster of Learning Outcomes",null,null,null,"C3A",null,null,"C3E",null,null,"C4B",null,null,null,null,null,null,null,null,null,null,null,null,null,null,null,null,null,null,null,null,"Interpersonal skills"]
[null,null,null,null,null,null,null,null,null,null,null,null,null,null,null,null,null,null,null,null,null,null,null,null,null,null,null,null,null,null,null,null,null,null,"Communication Skills"]
[null,null,null,null,null,null,null,null,null,null,null,null,null,null,null,null,null,null,null,null,null,null,null,null,null,null,null,null,null,null,null,null,null,null,"Digital Skills"]
[null,null,null,null,null,null,null,null,null,null,null,null,null,null,null,null,null,null,null,null,null,null,null,null,null,null,null,null,null,null,null,null,null,null,"Numeracy Skills"]
[null,null,null,"Indicate the primary causal link between the CLO and PLO by ticking  '√' in the appropriate box.",null,null,null,null,null,null,null,null,null,null,null,null,null,null,null,null,null,null,null,null,null,null,null,null,null,null,null,null,null,null,"Leadership, Autonomy and Responsibility"]
[null,null,null,"C1 = Knowledge & Understanding, C2 = Cognitive Skills, C3A = Practical Skills, C3B = Interpersonal Skills, C3C = Communication Skills, C3D = Digital Skills,",null,null,null,null,null,null,null,null,null,null,null,null,null,null,null,null,null,null,null,null,null,null,null,null,null,null,null,null,null,null,"Personal Skills"]
[null,null,null,"C3E = Numeracy Skills, C3F = Leadership, Autonomy & Responsibility, C4A = Personal Skills, C4B = Entrepreneurial Skills, C5 = Ethics & Professionalism",null,null,null,null,null,null,null,null,null,null,null,null,null,null,null,null,null,null,null,null,null,null,null,null,null,null,null,null,null,null,"Entrepreneurial Skills"]
[null,null,null,null,null,null,null,null,null,null,null,null,null,null,null,null,null,null,null,null,null,null,null,null,null,null,null,null,null,null,null,null,null,null,"Ethics and Professionalism"]
[null,9,"Transferable Skills (if applicable)"]
[null,null,"(Skills learned in the course of study which can be useful and utilized in other settings)",null,null,null,null,null,1,"Communication Skills",null,null,null,null,null,null,null,null,null,null,null,null,null,null,null,null,null,null,null,null,null,null,null,null,"C1"]
[null,null,null,null,null,null,null,null,2,"Leadership, Autonomy and Responsibility",null,null,null,null,null,null,null,null,null,null,null,null,null,null,null,null,null,null,null,null,null,null,null,null,"C2"]
[null,null,null,null,null,null,null,null,3,"Personal Skills",null,null,null,null,null,null,null,null,null,null,null,null,null,null,null,null,null,null,null,null,null,null,null,null,"C3A"]
[null,null,null,null,null,null,null,null,"Open-ended response (if any)",null,null,null,null,null,null,null,null,null,null,null,null,null,null,null,null,null,null,null,null,null,null,null,null,null,"C3B"]
[null,null,null,null,null,null,null,null,4,null,null,null,null,null,null,null,null,null,null,null,null,null,null,null,null,null,null,null,null,null,null,null,null,null,"C3C"]
[null,null,null,null,null,null,null,null,null,null,null,null,null,null,null,null,null,null,null,null,null,null,null,null,null,null,null,null,null,null,null,null,null,null,"C3D"]
[null,null,null,null,null,null,null,null,null,null,null,null,null,null,null,null,null,null,null,null,null,null,null,null,null,null,null,"`",null,null,null,null,null,null,"C3E"]
[null,10,"Distribution of Student Learning Time (SLT)",null,null,null,null,null,null,null,null,null,null,null,null,null,null,null,null,null,null,null,null,null,null,null,null,null,null,null,null,null,null,null,"C3F"]
[null,null,"Note: This SLT calculation is designed for home grown programme only.",null,null,null,null,null,null,null,null,null,null,null,null,null,null,null,null,null,null,null,null,null,null,null,null,null,null,null,null,null,null,null,"C4A"]
[null,null,null,null,null,null,null,null,null,null,null,null,null,null,null,null,null,null,null,null,null,null,null,null,null,null,null,null,null,null,null,null,null,null,"C4B"]
[null,null,null,"Course Content Outline and Subtopics",null,null,null,null,null,null,"CLO*",null,"Learning and Teaching Activities**",null,null,null,null,null,null,null,null,null,null,"Total SLT",null,null,null,null,null,null,null,null,null,null,"C5"]
[null,null,null,null,null,null,null,null,null,null,null,null,"Face-to-Face (F2F)",null,null,null,null,null,null,null,"NF2F\nIndependent Learning\n(Asynchronous)"]
[null,null,null,null,null,null,null,null,null,null,null,null,"Physical",null,null,null,"Online/ Technology-mediated (Synchronous)"]
[null,null,null,null,null,null,null,null,null,null,null,null,"L","T","P","O","L","T","P","O"]
[null,null,null,1]
[null,null,null,2]
[null,null,null,3]
[null,null,null,4]
[null,null,null,5]
[null,null,null,6]
[null,null,null,7]
[null,null,null,8]
[null,null,null,9]
[null,null,null,10]
[null,null,null,{"$f":"D69+1","v":11}]
[null,null,null,{"$f":"D70+1","v":12}]
[null,null,null,13]
[null,null,null,14]
[null,null,null,15]
[null,null,null,16]
[null,null,null,17]
[null,null,null,18]
[null,null,null,19]
[null,null,null,20]
[null,null,null,"SUB-TOTAL SLT: ",null,null,null,null,null,null,null,null,null,null,null,null,null,null,null,null,null,null,null,{"$f":"SUM(M60:P79)+SUM(Q60:T79)+SUM(U60:W79)","v":0}]
[null,null,null,"Continous Assessement",null,null,null,null,null,null,"%",null,"Face-to-Face (F2F)",null,null,null,null,null,null,null,"NF2F\nIndependent Learning for Assessment (Asynchronous)"]
[null,null,null,null,null,null,null,null,null,null,null,null,"Physical",null,null,null,"Online/ Technology-mediated (Synchronous)"]
[null,null,null,1,"Project Paper",null,null,null,null,null,100,null,null,null,null,null,40,null,null,null,240]
[null,null,null,2]
[null,null,null,3]
[null,null,null,4]
[null,null,null,5]
[null,null,null,"SUB-TOTAL SLT: ",null,null,null,null,null,null,null,null,null,null,null,null,null,null,null,null,null,null,null,{"$f":"SUM(M83:W87)","v":280}]
[null,null,null,"Final Assessement",null,null,null,null,null,null,"%",null,"Face-to-Face (F2F)",null,null,null,null,null,null,null,"NF2F\nIndependent Learning for Assessment (Asynchronous)"]
[null,null,null,null,null,null,null,null,null,null,null,null,"Physical",null,null,null,"Online/ Technology-mediated (Synchronous)"]
[null,null,null,1]
[null,null,null,2]
[null,null,null,3]
[null,null,null,4]
[null,null,null,5]
[null,null,null,"SUB-TOTAL SLT: ",null,null,null,null,null,null,null,null,null,null,null,null,null,null,null,null,null,null,null,{"$f":"SUM(M91:W95)","v":0}]
[]
[null,null,null,"SLT for Assessment:",null,null,null,null,null,null,null,null,null,null,null,null,null,null,null,null,null,null,null,{"$f":"X88+X96","v":280}]
[null,null,null,"GRAND TOTAL SLT:",null,null,null,null,null,null,null,null,null,null,null,null,null,null,null,null,null,null,null,{"$f":"X98+X80","v":280}]
[null,null,null,"A","% SLT for F2F Physical Component: \n[Total F2F Physical /(Total F2F Physical + Total F2F Online + Total Independent Learning) x 100)]",null,null,null,null,null,null,null,null,null,null,null,null,null,null,null,null,null,null,{"$f":"IFERROR(((SUM(M60:P79)+SUM(M83:P87)+SUM(M91:P95))/X99)* 100,\"\")","v":0}]
[]
[null,null,null,"B","% SLT for Online & Independent Learning Component:\n[(Total F2F Online + Total Independent Learning) /( Total F2F Physical + Total F2F Online + Total Independent Learning) x 100]",null,null,null,null,null,null,null,null,null,null,null,null,null,null,null,null,null,null,{"$f":"IFERROR((SUM(Q60:W79)+SUM(Q83:W87) + SUM(Q91:W95))/X99 * 100,\"\")","v":100}]
[null,null,null,"C","% SLT for All Practical Component:\n[% F2F Physical Practical + % F2F Online Practical]",null,null,null,null,null,null,null,null,null,null,null,null,null,null,null,null,null,null,{"$f":"IFERROR(X104+X105,\"\")","v":0}]
[null,null,null,"C1","% SLT for F2F Physical Practical Component\n[Total F2F Physical Practical /( Total F2F Physical + Total F2F Online + Total Independent Learning)  x 100)]",null,null,null,null,null,null,null,null,null,null,null,null,null,null,null,null,null,null,{"$f":"IFERROR(SUM(O60:O79)/X99*100,\"\")","v":0}]
[null,null,null,"C2","% SLT for F2F Online Practical Component\n[Total F2F Online Practical / (Total F2F Physical + Total F2F Online + Total Independent Learning) x 100]",null,null,null,null,null,null,null,null,null,null,null,null,null,null,null,null,null,null,{"$f":"IFERROR(SUM(S60:S79)/X99 *100,\"\")","v":0}]
[null,null,null,null,null,null,null,null,null,null,null,null,null,null,null,null,null,null,null,null,null,null,null,null,null,{"$f":"IFERROR(X102+X104,\"\")","v":100}]
[null,null,null,"Please  tick (√) if this course is Industrial Training/ Clinical Placement/ Practicum using 50% of Effective Learning Time (ELT)"]
[null,null,null,"Note: "]
[null,null,null,"* Indicate the CLO based on the CLO's numbering in Item 8"]
[null,null,null,"** For ODL programme: Courses with mandatory practical requiremnets imposed by the programme standards or any related standards can be exempted from complying to the minimum 80% ODL delivery rule in the SLT."]
[]
[null,11,"Identify special requirement or resources to deliver the course (e.g., software, nursery, computer lab, simulation room etc)",null,null,null,null,null,null,null,"None"]
[]
[null,12,"References (include required and further readings, and should be the most current)",null,null,null,null,null,null,null,"Main references supporting the course:\nWilson, J. (2014 ) Essentials of Business Research: A Guide to doing your Research Project. Sage.\nThere is no set general text. Reading draws heavily on journal articles and book chapters, according to the research project topic selected.  "]
[]
[null,13,"Other additional information (if applicable)",null,null,null,null,null,null,null,"None"]
[]
[]
[null,null,"Note: Number of PLO indicated is purely for illustration purposes only and the number is subjected to the curriculum design."]